{"text_format":"1","workbook":"xlsx","n_sheets":4,"sheets":["Sheet1","قيد يومية","Journal.","Sheet3"],"not_rendered":{"charts":0,"images":0,"macros":0,"external_links":0,"defined_names":0,"comments":0,"pivot_tables":0},"unopened":[],"bounds":{"document_bytes":16777216,"sheet_cells":100000,"rows_first":2000,"rows_last":500,"rows_between":2000,"halvings":0,"cell_chars":16384,"cell_head_chars":4096},"cells_cut":0,"cells_raw":0,"read":"whole","date_system":"1900"}

{"sheet":"Sheet1","index":0,"n_rows":0,"n_cols":0,"rows_kept":0,"cut":false,"hidden":false,"merged":[]}

{"sheet":"قيد يومية","index":1,"n_rows":80,"n_cols":16,"rows_kept":80,"cut":false,"hidden":false,"merged":[[76,5,76,8],[4,10,4,11],[6,6,8,6],[6,7,8,8],[6,9,6,12],[7,9,7,10],[7,11,7,12]]}
[]
[]
[]
[]
[null,null,null,null,null,"J. NO..",null,null,null,"DATE /…",null,null,null,null,null,1111]
[]
[null,null,null,null,null,null,"ACCOUNT DESC..اسم الحساب","COST CENTER..مركز تكلفة",null,"AMOUNT....مبلغ"]
[null,null,null,null,null,"CODE..كود",null,null,null,"مدين..DEBIT",null,"دائن..CREDIT"]
[null,null,null,null,null,null,null,null,null,"T.LE","SUB","T.LE","SUB"]
[null,null,null,null,null,null,{"$f":"IF(F10>1,(LOOKUP(F10,$AA$7:$AB$411,$AB$7:$AB$412)),\"''\")","v":"''"},null,{"$f":"IF(H10>1,LOOKUP(H10,$AE$8:$AF$27,AF8:$AF$27),\"\")","v":""}]
[null,null,null,null,1,null,"''",null,{"$f":"IF(H11>1,LOOKUP(H11,$AE$8:$AF$27,AF9:$AF$27),\"\")","v":""}]
[null,null,null,null,2,null,"''",null,{"$f":"IF(H12>1,LOOKUP(H12,$AE$8:$AF$27,AF10:$AF$27),\"\")","v":""}]
[null,null,null,null,3,null,"''",null,{"$f":"IF(H13>1,LOOKUP(H13,$AE$8:$AF$27,AF11:$AF$27),\"\")","v":""}]
[null,null,null,null,4,null,"''",null,{"$f":"IF(H14>1,LOOKUP(H14,$AE$8:$AF$27,AF12:$AF$27),\"\")","v":""}]
[null,null,null,null,5,null,"''",null,{"$f":"IF(H15>1,LOOKUP(H15,$AE$8:$AF$27,AF13:$AF$27),\"\")","v":""}]
[null,null,null,null,6,null,"''",null,{"$f":"IF(H16>1,LOOKUP(H16,$AE$8:$AF$27,AF14:$AF$27),\"\")","v":""}]
[null,null,null,null,7,null,"''",null,{"$f":"IF(H17>1,LOOKUP(H17,$AE$8:$AF$27,AF15:$AF$27),\"\")","v":""}]
[null,null,null,null,8,null,"''",null,{"$f":"IF(H18>1,LOOKUP(H18,$AE$8:$AF$27,AF16:$AF$27),\"\")","v":""}]
[null,null,null,null,9,null,"''",null,{"$f":"IF(H19>1,LOOKUP(H19,$AE$8:$AF$27,AF17:$AF$27),\"\")","v":""}]
[null,null,null,null,10,null,"''",null,{"$f":"IF(H20>1,LOOKUP(H20,$AE$8:$AF$27,AF18:$AF$27),\"\")","v":""}]
[null,null,null,null,11,null,"''",null,{"$f":"IF(H21>1,LOOKUP(H21,$AE$8:$AF$27,AF19:$AF$27),\"\")","v":""}]
[null,null,null,null,12,null,"''",null,{"$f":"IF(H22>1,LOOKUP(H22,$AE$8:$AF$27,AF20:$AF$27),\"\")","v":""}]
[null,null,null,null,13,null,"''",null,{"$f":"IF(H23>1,LOOKUP(H23,$AE$8:$AF$27,AF21:$AF$27),\"\")","v":""}]
[null,null,null,null,14,null,"''",null,{"$f":"IF(H24>1,LOOKUP(H24,$AE$8:$AF$27,AF22:$AF$27),\"\")","v":""}]
[null,null,null,null,15,null,"''",null,{"$f":"IF(H25>1,LOOKUP(H25,$AE$8:$AF$27,AF23:$AF$27),\"\")","v":""}]
[null,null,null,null,16,null,"''",null,{"$f":"IF(H26>1,LOOKUP(H26,$AE$8:$AF$27,AF24:$AF$27),\"\")","v":""}]
[null,null,null,null,17,null,"''",null,{"$f":"IF(H27>1,LOOKUP(H27,$AE$8:$AF$27,AF25:$AF$27),\"\")","v":""}]
[null,null,null,null,18,null,"''",null,{"$f":"IF(H28>1,LOOKUP(H28,$AE$8:$AF$27,AF26:$AF$27),\"\")","v":""}]
[null,null,null,null,19,null,"''",null,{"$f":"IF(H29>1,LOOKUP(H29,$AE$8:$AF$27,AF27:$AF$27),\"\")","v":""}]
[null,null,null,null,20,null,"''"]
[null,null,null,null,21,null,"''"]
[null,null,null,null,22,null,"''"]
[null,null,null,null,23,null,"''"]
[null,null,null,null,24,null,"''"]
[null,null,null,null,25,null,"''"]
[null,null,null,null,26,null,"''"]
[null,null,null,null,27,null,"''"]
[null,null,null,null,28,null,"''"]
[null,null,null,null,29,null,"''"]
[null,null,null,null,30,null,"''"]
[null,null,null,null,31,null,"''"]
[null,null,null,null,32,null,"''"]
[null,null,null,null,33,null,"''"]
[null,null,null,null,34,null,"''"]
[null,null,null,null,35,null,"''"]
[null,null,null,null,36,null,"''"]
[null,null,null,null,37,null,"''"]
[null,null,null,null,38,null,"''"]
[null,null,null,null,39,null,"''"]
[null,null,null,null,40,null,"''"]
[null,null,null,null,41,null,"''"]
[null,null,null,null,42,null,"''"]
[null,null,null,null,43,null,"''"]
[null,null,null,null,44,null,"''"]
[null,null,null,null,45,null,"''"]
[null,null,null,null,46,null,"''"]
[null,null,null,null,47,null,"''"]
[null,null,null,null,48,null,"''"]
[null,null,null,null,49,null,"''"]
[null,null,null,null,50,null,"''"]
[null,null,null,null,51,null,"''"]
[null,null,null,null,52,null,"''"]
[null,null,null,null,53,null,"''"]
[null,null,null,null,54,null,"''"]
[null,null,null,null,55,null,"''"]
[null,null,null,null,56,null,"''"]
[null,null,null,null,57,null,"''"]
[null,null,null,null,58,null,"''"]
[null,null,null,null,59,null,"''"]
[null,null,null,null,60,null,"''"]
[null,null,null,null,61,null,"''"]
[null,null,null,null,62,null,"''"]
[null,null,null,null,63,null,"''"]
[null,null,null,null,64,null,{"$f":"IF(F74>1,(LOOKUP(F74,$AA$7:$AB$411,$AB$7:$AB$412)),\"''\")","v":"''"}]
[null,null,null,null,65,null,"''"]
[null,null,null,null,66,null,{"$f":"IF(F76>1,(LOOKUP(F76,$AA$7:$AB$411,$AB$7:$AB$412)),\"''\")","v":"''"},null,{"$f":"IF(H76>1,LOOKUP(H76,$AE$8:$AF$27,AF$27:$AF28),\"\")","v":""}]
[null,null,null,null,null,"فقط (                                                                                                                                                                                                                                                                            )",null,null,null,{"$f":"SUM(J10:J76)","v":0},{"$f":"SUM(K10:K76)","v":0},{"$f":"SUM(L10:L76)","v":0},{"$f":"SUM(M10:M76)","v":0}]
[null,null,null,null,null,null,{"$f":"J77=L77","v":true}]
[]
[null,null,null,null,null,"NOTES :-",null,null,null,"الحسابات ،،",null,"يعتمد،،"]

{"sheet":"Journal.","index":2,"n_rows":2502,"n_cols":33,"rows_kept":2502,"cut":false,"hidden":false,"merged":[[3,29,4,29],[3,30,4,30],[3,31,4,31],[3,32,4,32],[3,18,3,19],[3,21,3,22],[3,24,4,24],[3,26,4,26],[3,27,4,27],[3,28,4,28],[3,15,3,16],[3,1,4,1],[3,2,4,2],[3,3,4,3],[3,4,4,4],[3,6,4,6],[3,8,4,8],[3,9,4,9],[3,10,4,10],[3,11,4,11],[3,12,4,12],[3,13,4,13]]}
[]
[]
[]
[]
[]
[]
[]
[null,null,null,null,null,null,null,"x",null,null,null,null,null,null,"x",null,null,"x",null,null,"x"]
[null,null,null,null,null,null,null,"x","كود الحساب","اسم الحساب.2","اسم الحساب.1","مركز التكلفة","اسم مركز التكلفة","مكافىء عملة","x","مدين Eur.","دائن Eur.","x","مدين $","دائن $","ء","مدين EGP.","دائن EGP.","ء","رصيد ح.","ء","رصيد ا. المدة","حركة الفترة","حركة ميزان تسويات","رصيد الفترة","y","y","y"]
[null,null,null,null,null,null,null,null,null,null,null,null,null,null,null,null,null,null,null,null,null,null,null,null,null,null,0,0,0]
[null,null,null,null,null,null,null,"x",null,"","",null,"",null,"x",null,null,"x",null,null,"x",0,0,null,0,null,0,0,0]
[null,null,null,null,null,null,null,"x",null,"","",null,"",null,"x",null,null,"x",null,null,"x",0,0,null,0,null,0,0,0]
[null,null,null,null,null,null,null,"x",null,"","",null,"",null,"x",null,null,"x",null,null,"x",0,0,null,0,null,0,0,0]
[null,null,null,null,null,null,null,"x",null,"","",null,"",null,"x",null,null,"x",null,null,"x",0,0,null,0,null,0,0,0]
[null,null,null,null,null,null,null,"x",null,"","",null,"",null,"x",null,null,"x",null,null,"x",0,0,null,0,null,0,0,0]
[null,null,null,null,null,null,null,"x",null,"","",null,"",null,"x",null,null,"x",null,null,"x",0,0,null,0,null,0,0,0]
[null,null,null,null,null,null,null,"x",null,"","",null,"",null,"x",null,null,"x",null,null,"x",0,0,null,0,null,0,0,0]
[null,null,null,null,null,null,null,"x",null,"","",null,"",null,"x",null,null,"x",null,null,"x",0,0,null,0,null,0,0,0]
[null,null,null,null,null,null,null,"x",null,"","",null,"",null,"x",null,null,"x",null,null,"x",0,0,null,0,null,0,0,0]
[null,null,null,null,null,null,null,"x",null,"","",null,"",null,"x",null,null,"x",null,null,"x",0,0,null,0,null,0,0,0]
[null,null,null,null,null,null,null,"x",null,"","",null,"",null,"x",null,null,"x",null,null,"x",0,0,null,0,null,0,0,0]
[null,null,null,null,null,null,null,"x",null,"","",null,"",null,"x",null,null,"x",null,null,"x",0,0,null,0,null,0,0,0]
[null,null,null,null,null,null,null,"x",null,"","",null,"",null,"x",null,null,"x",null,null,"x",0,0,null,0,null,0,0,0]
[null,null,null,null,null,null,null,"x",null,"","",null,"",null,"x",null,null,"x",null,null,"x",0,0,null,0,null,0,0,0]
[null,null,null,null,null,null,null,"x",null,"","",null,"",null,"x",null,null,"x",null,null,"x",0,0,null,0,null,0,0,0]
[null,null,null,null,null,null,null,"x",null,"","",null,"",null,"x",null,null,"x",null,null,"x",0,0,null,0,null,0,0,0]
[null,null,null,null,null,null,null,"x",null,"","",null,"",null,"x",null,null,"x",null,null,"x",0,0,null,0,null,0,0,0]
[null,null,null,null,null,null,null,"x",null,"","",null,"",null,"x",null,null,"x",null,null,"x",0,0,null,0,null,0,0,0]
[null,null,null,null,null,null,null,"x",null,"","",null,"",null,"x",null,null,"x",null,null,"x",0,0,null,0,null,0,0,0]
[null,null,null,null,null,null,null,"x",null,"","",null,"",null,"x",null,null,"x",null,null,"x",0,0,null,0,null,0,0,0]
[null,null,null,null,null,null,null,"x",null,"","",null,"",null,"x",null,null,"x",null,null,"x",0,0,null,0,null,0,0,0]
[null,null,null,null,null,null,null,"x",null,"","",null,"",null,"x",null,null,"x",null,null,"x",0,0,null,0,null,0,0,0]
[null,null,null,null,null,null,null,"x",null,"","",null,"",null,"x",null,null,"x",null,null,"x",0,0,null,0,null,0,0,0]
[null,null,null,null,null,null,null,"x",null,"","",null,"",null,"x",null,null,"x",null,null,"x",0,0,null,0,null,0,0,0]
[null,null,null,null,null,null,null,"x",null,"","",null,"",null,"x",null,null,"x",null,null,"x",0,0,null,0,null,0,0,0]
[null,null,null,null,null,null,null,"x",null,"","",null,"",null,"x",null,null,"x",null,null,"x",0,0,null,0,null,0,0,0]
[null,null,null,null,null,null,null,"x",null,"","",null,"",null,"x",null,null,"x",null,null,"x",0,0,null,0,null,0,0,0]
[null,null,null,null,null,null,null,"x",null,"","",null,"",null,"x",null,null,"x",null,null,"x",0,0,null,0,null,0,0,0]
[null,null,null,null,null,null,null,"x",null,"","",null,"",null,"x",null,null,"x",null,null,"x",0,0,null,0,null,0,0,0]
[null,null,null,null,null,null,null,"x",null,"","",null,"",null,"x",null,null,"x",null,null,"x",0,0,null,0,null,0,0,0]
[null,null,null,null,null,null,null,"x",null,"","",null,"",null,"x",null,null,"x",null,null,"x",0,0,null,0,null,0,0,0]
[null,null,null,null,null,null,null,"x",null,"","",null,"",null,"x",null,null,"x",null,null,"x",0,0,null,0,null,0,0,0]
[null,null,null,null,null,null,null,"x",null,"","",null,"",null,"x",null,null,"x",null,null,"x",0,0,null,0,null,0,0,0]
[null,null,null,null,null,null,null,"x",null,"","",null,"",null,"x",null,null,"x",null,null,"x",0,0,null,0,null,0,0,0]
[null,null,null,null,null,null,null,"x",null,"","",null,"",null,"x",null,null,"x",null,null,"x",0,0,null,0,null,0,0,0]
[null,null,null,null,null,null,null,"x",null,"","",null,"",null,"x",null,null,"x",null,null,"x",0,0,null,0,null,0,0,0]
[null,null,null,null,null,null,null,"x",null,"","",null,"",null,"x",null,null,"x",null,null,"x",0,0,null,0,null,0,0,0]
[null,null,null,null,null,null,null,"x",null,"","",null,"",null,"x",null,null,"x",null,null,"x",0,0,null,0,null,0,0,0]
[null,null,null,null,null,null,null,"x",null,"","",null,"",null,"x",null,null,"x",null,null,"x",0,0,null,0,null,0,0,0]
[null,null,null,null,null,null,null,"x",null,"","",null,"",null,"x",null,null,"x",null,null,"x",0,0,null,0,null,0,0,0]
[null,null,null,null,null,null,null,"x",null,"","",null,"",null,"x",null,null,"x",null,null,"x",0,0,null,0,null,0,0,0]
[null,null,null,null,null,null,null,"x",null,"","",null,"",null,"x",null,null,"x",null,null,"x",0,0,null,0,null,0,0,0]
[null,null,null,null,null,null,null,"x",null,"","",null,"",null,"x",null,null,"x",null,null,"x",0,0,null,0,null,0,0,0]
[null,null,null,null,null,null,null,"x",null,"","",null,"",null,"x",null,null,"x",null,null,"x",0,0,null,0,null,0,0,0]
[null,null,null,null,null,null,null,"x",null,"","",null,"",null,"x",null,null,"x",null,null,"x",0,0,null,0,null,0,0,0]
[null,null,null,null,null,null,null,"x",null,"","",null,"",null,"x",null,null,"x",null,null,"x",0,0,null,0,null,0,0,0]
[null,null,null,null,null,null,null,"x",null,"","",null,"",null,"x",null,null,"x",null,null,"x",0,0,null,0,null,0,0,0]
[null,null,null,null,null,null,null,"x",null,"","",null,"",null,"x",null,null,"x",null,null,"x",0,0,null,0,null,0,0,0]
[null,null,null,null,null,null,null,"x",null,"","",null,"",null,"x",null,null,"x",null,null,"x",0,0,null,0,null,0,0,0]
[null,null,null,null,null,null,null,"x",null,"","",null,"",null,"x",null,null,"x",null,null,"x",0,0,null,0,null,0,0,0]
[null,null,null,null,null,null,null,"x",null,"","",null,"",null,"x",null,null,"x",null,null,"x",0,0,null,0,null,0,0,0]
[null,null,null,null,null,null,null,"x",null,"","",null,"",null,"x",null,null,"x",null,null,"x",0,0,null,0,null,0,0,0]
[null,null,null,null,null,null,null,"x",null,"","",null,"",null,"x",null,null,"x",null,null,"x",0,0,null,0,null,0,0,0]
[null,null,null,null,null,null,null,"x",null,"","",null,"",null,"x",null,null,"x",null,null,"x",0,0,null,0,null,0,0,0]
[null,null,null,null,null,null,null,"x",null,"","",null,"",null,"x",null,null,"x",null,null,"x",0,0,null,0,null,0,0,0]
[null,null,null,null,null,null,null,"x",null,"","",null,"",null,"x",null,null,"x",null,null,"x",0,0,null,0,null,0,0,0]
[null,null,null,null,null,null,null,"x",null,"","",null,"",null,"x",null,null,"x",null,null,"x",0,0,null,0,null,0,0,0]
[null,null,null,null,null,null,null,"x",null,"","",null,"",null,"x",null,null,"x",null,null,"x",0,0,null,0,null,0,0,0]
[null,null,null,null,null,null,null,"x",null,"","",null,"",null,"x",null,null,"x",null,null,"x",0,0,null,0,null,0,0,0]
[null,null,null,null,null,null,null,"x",null,"","",null,"",null,"x",null,null,"x",null,null,"x",0,0,null,0,null,0,0,0]
[null,null,null,null,null,null,null,"x",null,"","",null,"",null,"x",null,null,"x",null,null,"x",0,0,null,0,null,0,0,0]
[null,null,null,null,null,null,null,"x",null,"","",null,"",null,"x",null,null,"x",null,null,"x",0,0,null,0,null,0,0,0]
[null,null,null,null,null,null,null,"x",null,"","",null,"",null,"x",null,null,"x",null,null,"x",0,0,null,0,null,0,0,0]
[null,null,null,null,null,null,null,"x",null,"","",null,"",null,"x",null,null,"x",null,null,"x",0,0,null,0,null,0,0,0]
[null,null,null,null,null,null,null,"x",null,"","",null,"",null,"x",null,null,"x",null,null,"x",0,0,null,0,null,0,0,0]
[null,null,null,null,null,null,null,"x",null,"","",null,"",null,"x",null,null,"x",null,null,"x",0,0,null,0,null,0,0,0]
[null,null,null,null,null,null,null,"x",null,"","",null,"",null,"x",null,null,"x",null,null,"x",0,0,null,0,null,0,0,0]
[null,null,null,null,null,null,null,"x",null,"","",null,"",null,"x",null,null,"x",null,null,"x",0,0,null,0,null,0,0,0]
[null,null,null,null,null,null,null,"x",null,"","",null,"",null,"x",null,null,"x",null,null,"x",0,0,null,0,null,0,0,0]
[null,null,null,null,null,null,null,"x",null,"","",null,"",null,"x",null,null,"x",null,null,"x",0,0,null,0,null,0,0,0]
[null,null,null,null,null,null,null,"x",null,"","",null,"",null,"x",null,null,"x",null,null,"x",0,0,null,0,null,0,0,0]
[null,null,null,null,null,null,null,"x",null,"","",null,"",null,"x",null,null,"x",null,null,"x",0,0,null,0,null,0,0,0]
[null,null,null,null,null,null,null,"x",null,"","",null,"",null,"x",null,null,"x",null,null,"x",0,0,null,0,null,0,0,0]
[null,null,null,null,null,null,null,"x",null,"","",null,"",null,"x",null,null,"x",null,null,"x",0,0,null,0,null,0,0,0]
[null,null,null,null,null,null,null,"x",null,"","",null,"",null,"x",null,null,"x",null,null,"x",0,0,null,0,null,0,0,0]
[null,null,null,null,null,null,null,"x",null,"","",null,"",null,"x",null,null,"x",null,null,"x",0,0,null,0,null,0,0,0]
[null,null,null,null,null,null,null,"x",null,"","",null,"",null,"x",null,null,"x",null,null,"x",0,0,null,0,null,0,0,0]
[null,null,null,null,null,null,null,"x",null,"","",null,"",null,"x",null,null,"x",null,null,"x",0,0,null,0,null,0,0,0]
[null,null,null,null,null,null,null,"x",null,"","",null,"",null,"x",null,null,"x",null,null,"x",0,0,null,0,null,0,0,0]
[null,null,null,null,null,null,null,"x",null,"","",null,"",null,"x",null,null,"x",null,null,"x",0,0,null,0,null,0,0,0]
[null,null,null,null,null,null,null,"x",null,"","",null,"",null,"x",null,null,"x",null,null,"x",0,0,null,0,null,0,0,0]
[null,null,null,null,null,null,null,"x",null,"","",null,"",null,"x",null,null,"x",null,null,"x",0,0,null,0,null,0,0,0]
[null,null,null,null,null,null,null,"x",null,"","",null,"",null,"x",null,null,"x",null,null,"x",0,0,null,0,null,0,0,0]
[null,null,null,null,null,null,null,"x",null,"","",null,"",null,"x",null,null,"x",null,null,"x",0,0,null,0,null,0,0,0]
[null,null,null,null,null,null,null,"x",null,"","",null,"",null,"x",null,null,"x",null,null,"x",0,0,null,0,null,0,0,0]
[null,null,null,null,null,null,null,"x",null,"","",null,"",null,"x",null,null,"x",null,null,"x",0,0,null,0,null,0,0,0]
[null,null,null,null,null,null,null,"x",null,"","",null,"",null,"x",null,null,"x",null,null,"x",0,0,null,0,null,0,0,0]
[null,null,null,null,null,null,null,"x",null,"","",null,"",null,"x",null,null,"x",null,null,"x",0,0,null,0,null,0,0,0]
[null,null,null,null,null,null,null,"x",null,"","",null,"",null,"x",null,null,"x",null,null,"x",0,0,null,0,null,0,0,0]
[null,null,null,null,null,null,null,"x",null,"","",null,"",null,"x",null,null,"x",null,null,"x",0,0,null,0,null,0,0,0]
[null,null,null,null,null,null,null,"x",null,"","",null,"",null,"x",null,null,"x",null,null,"x",0,0,null,0,null,0,0,0]
[null,null,null,null,null,null,null,"x",null,"","",null,"",null,"x",null,null,"x",null,null,"x",0,0,null,0,null,0,0,0]
[null,null,null,null,null,null,null,"x",null,"","",null,"",null,"x",null,null,"x",null,null,"x",0,0,null,0,null,0,0,0]
[null,null,null,null,null,null,null,"x",null,"","",null,"",null,"x",null,null,"x",null,null,"x",0,0,null,0,null,0,0,0]
[null,null,null,null,null,null,null,"x",null,"","",null,"",null,"x",null,null,"x",null,null,"x",0,0,null,0,null,0,0,0]
[null,null,null,null,null,null,null,"x",null,"","",null,"",null,"x",null,null,"x",null,null,"x",0,0,null,0,null,0,0,0]
[null,null,null,null,null,null,null,"x",null,"","",null,"",null,"x",null,null,"x",null,null,"x",0,0,null,0,null,0,0,0]
[null,null,null,null,null,null,null,"x",null,"","",null,"",null,"x",null,null,"x",null,null,"x",0,0,null,0,null,0,0,0]
[null,null,null,null,null,null,null,"x",null,"","",null,"",null,"x",null,null,"x",null,null,"x",0,0,null,0,null,0,0,0]
[null,null,null,null,null,null,null,"x",null,"","",null,"",null,"x",null,null,"x",null,null,"x",0,0,null,0,null,0,0,0]
[null,null,null,null,null,null,null,"x",null,"","",null,"",null,"x",null,null,"x",null,null,"x",0,0,null,0,null,0,0,0]
[null,null,null,null,null,null,null,"x",null,"","",null,"",null,"x",null,null,"x",null,null,"x",0,0,null,0,null,0,0,0]
[null,null,null,null,null,null,null,"x",null,"","",null,"",null,"x",null,null,"x",null,null,"x",0,0,null,0,null,0,0,0]
[null,null,null,null,null,null,null,"x",null,"","",null,"",null,"x",null,null,"x",null,null,"x",0,0,null,0,null,0,0,0]
[null,null,null,null,null,null,null,"x",null,"","",null,"",null,"x",null,null,"x",null,null,"x",0,0,null,0,null,0,0,0]
[null,null,null,null,null,null,null,"x",null,"","",null,"",null,"x",null,null,"x",null,null,"x",0,0,null,0,null,0,0,0]
[null,null,null,null,null,null,null,"x",null,"","",null,"",null,"x",null,null,"x",null,null,"x",0,0,null,0,null,0,0,0]
[null,null,null,null,null,null,null,"x",null,"","",null,"",null,"x",null,null,"x",null,null,"x",0,0,null,0,null,0,0,0]
[null,null,null,null,null,null,null,"x",null,"","",null,"",null,"x",null,null,"x",null,null,"x",0,0,null,0,null,0,0,0,0]
[null,null,null,null,null,null,null,"x",null,"","",null,"",null,"x",null,null,"x",null,null,"x",0,0,null,0,null,0,0,0,0]
[null,null,null,null,null,null,null,"x",null,"","",null,"",null,"x",null,null,"x",null,null,"x",0,0,null,0,null,0,0,0,0]
[null,null,null,null,null,null,null,"x",null,"","",null,"",null,"x",null,null,"x",null,null,"x",0,0,null,0,null,0,0,0,0]
[null,null,null,null,null,null,null,"x",null,"","",null,"",null,"x",null,null,"x",null,null,"x",0,0,null,0,null,0,0,0,0]
[null,null,null,null,null,null,null,"x",null,"","",null,"",null,"x",null,null,"x",null,null,"x",0,0,null,0,null,0,0,0,0]
[null,null,null,null,null,null,null,"x",null,"","",null,"",null,"x",null,null,"x",null,null,"x",0,0,null,0,null,0,0,0,0]
[null,null,null,null,null,null,null,"x",null,"","",null,"",null,"x",null,null,"x",null,null,"x",0,0,null,0,null,0,0,0,0]
[null,null,null,null,null,null,null,"x",null,"","",null,"",null,"x",null,null,"x",null,null,"x",0,0,null,0,null,0,0,0,0]
[null,null,null,null,null,null,null,"x",null,"","",null,"",null,"x",null,null,"x",null,null,"x",0,0,null,0,null,0,0,0,0]
[null,null,null,null,null,null,null,"x",null,"","",null,"",null,"x",null,null,"x",null,null,"x",0,0,null,0,null,0,0,0,0]
[null,null,null,null,null,null,null,"x",null,"","",null,"",null,"x",null,null,"x",null,null,"x",0,0,null,0,null,0,0,0,0]
[null,null,null,null,null,null,null,"x",null,"","",null,"",null,"x",null,null,"x",null,null,"x",0,0,null,0,null,0,0,0,0]
[null,null,null,null,null,null,null,"x",null,"","",null,"",null,"x",null,null,"x",null,null,"x",0,0,null,0,null,0,0,0,0]
[null,null,null,null,null,null,null,"x",null,"","",null,"",null,"x",null,null,"x",null,null,"x",0,0,null,0,null,0,0,0,0]
[null,null,null,null,null,null,null,"x",null,"","",null,"",null,"x",null,null,"x",null,null,"x",0,0,null,0,null,0,0,0,0]
[null,null,null,null,null,null,null,"x",null,"","",null,"",null,"x",null,null,"x",null,null,"x",0,0,null,0,null,0,0,0,0]
[null,null,null,null,null,null,null,"x",null,"","",null,"",null,"x",null,null,"x",null,null,"x",0,0,null,0,null,0,0,0,0]
[null,null,null,null,null,null,null,"x",null,"","",null,"",null,"x",null,null,"x",null,null,"x",0,0,null,0,null,0,0,0,0]
[null,null,null,null,null,null,null,"x",null,"","",null,"",null,"x",null,null,"x",null,null,"x",0,0,null,0,null,0,0,0,0]
[null,null,null,null,null,null,null,"x",null,"","",null,"",null,"x",null,null,"x",null,null,"x",0,0,null,0,null,0,0,0,0]
[null,null,null,null,null,null,null,"x",null,"","",null,"",null,"x",null,null,"x",null,null,"x",0,0,null,0,null,0,0,0,0]
[null,null,null,null,null,null,null,"x",null,"","",null,"",null,"x",null,null,"x",null,null,"x",0,0,null,0,null,0,0,0,0]
[null,null,null,null,null,null,null,"x",null,"","",null,"",null,"x",null,null,"x",null,null,"x",0,0,null,0,null,0,0,0,0]
[null,null,null,null,null,null,null,"x",null,"","",null,"",null,"x",null,null,"x",null,null,"x",0,0,null,0,null,0,0,0,0]
[null,null,null,null,null,null,null,"x",null,"","",null,"",null,"x",null,null,"x",null,null,"x",0,0,null,0,null,0,0,0,0]
[null,null,null,null,null,null,null,"x",null,"","",null,"",null,"x",null,null,"x",null,null,"x",0,0,null,0,null,0,0,0,0]
[null,null,null,null,null,null,null,"x",null,"","",null,"",null,"x",null,null,"x",null,null,"x",0,0,null,0,null,0,0,0,0]
[null,null,null,null,null,null,null,"x",null,"","",null,"",null,"x",null,null,"x",null,null,"x",0,0,null,0,null,0,0,0,0]
[null,null,null,null,null,null,null,"x",null,"","",null,"",null,"x",null,null,"x",null,null,"x",0,0,null,0,null,0,0,0,0]
[null,null,null,null,null,null,null,"x",null,"","",null,"",null,"x",null,null,"x",null,null,"x",0,0,null,0,null,0,0,0,0]
[null,null,null,null,null,null,null,"x",null,"","",null,"",null,"x",null,null,"x",null,null,"x",0,0,null,0,null,0,0,0,0]
[null,null,null,null,null,null,null,"x",null,"","",null,"",null,"x",null,null,"x",null,null,"x",0,0,null,0,null,0,0,0,0]
[null,null,null,null,null,null,null,"x",null,"","",null,"",null,"x",null,null,"x",null,null,"x",0,0,null,0,null,0,0,0,0]
[null,null,null,null,null,null,null,"x",null,"","",null,"",null,"x",null,null,"x",null,null,"x",0,0,null,0,null,0,0,0,0]
[null,null,null,null,null,null,null,"x",null,"","",null,"",null,"x",null,null,"x",null,null,"x",0,0,null,0,null,0,0,0,0]
[null,null,null,null,null,null,null,"x",null,"","",null,"",null,"x",null,null,"x",null,null,"x",0,0,null,0,null,0,0,0,0]
[null,null,null,null,null,null,null,"x",null,"","",null,"",null,"x",null,null,"x",null,null,"x",0,0,null,0,null,0,0,0,0]
[null,null,null,null,null,null,null,"x",null,"","",null,"",null,"x",null,null,"x",null,null,"x",0,0,null,0,null,0,0,0,0]
[null,null,null,null,null,null,null,"x",null,"","",null,"",null,"x",null,null,"x",null,null,"x",0,0,null,0,null,0,0,0,0]
[null,null,null,null,null,null,null,"x",null,"","",null,"",null,"x",null,null,"x",null,null,"x",0,0,null,0,null,0,0,0,0]
[null,null,null,null,null,null,null,"x",null,"","",null,"",null,"x",null,null,"x",null,null,"x",0,0,null,0,null,0,0,0,0]
[null,null,null,null,null,null,null,"x",null,"","",null,"",null,"x",null,null,"x",null,null,"x",0,0,null,0,null,0,0,0,0]
[null,null,null,null,null,null,null,"x",null,"","",null,"",null,"x",null,null,"x",null,null,"x",0,0,null,0,null,0,0,0,0]
[null,null,null,null,null,null,null,"x",null,"","",null,"",null,"x",null,null,"x",null,null,"x",0,0,null,0,null,0,0,0,0]
[null,null,null,null,null,null,null,"x",null,"","",null,"",null,"x",null,null,"x",null,null,"x",0,0,null,0,null,0,0,0,0]
[null,null,null,null,null,null,null,"x",null,"","",null,"",null,"x",null,null,"x",null,null,"x",0,0,null,0,null,0,0,0,0]
[null,null,null,null,null,null,null,"x",null,"","",null,"",null,"x",null,null,"x",null,null,"x",0,0,null,0,null,0,0,0,0]
[null,null,null,null,null,null,null,"x",null,"","",null,"",null,"x",null,null,"x",null,null,"x",0,0,null,0,null,0,0,0,0]
[null,null,null,null,null,null,null,"x",null,"","",null,"",null,"x",null,null,"x",null,null,"x",0,0,null,0,null,0,0,0,0]
[null,null,null,null,null,null,null,"x",null,"","",null,"",null,"x",null,null,"x",null,null,"x",0,0,null,0,null,0,0,0,0]
[null,null,null,null,null,null,null,"x",null,"","",null,"",null,"x",null,null,"x",null,null,"x",0,0,null,0,null,0,0,0,0]
[null,null,null,null,null,null,null,"x",null,"","",null,"",null,"x",null,null,"x",null,null,"x",0,0,null,0,null,0,0,0,0]
[null,null,null,null,null,null,null,"x",null,"","",null,"",null,"x",null,null,"x",null,null,"x",0,0,null,0,null,0,0,0,0]
[null,null,null,null,null,null,null,"x",null,"","",null,"",null,"x",null,null,"x",null,null,"x",0,0,null,0,null,0,0,0,0]
[null,null,null,null,null,null,null,"x",null,"","",null,"",null,"x",null,null,"x",null,null,"x",0,0,null,0,null,0,0,0,0]
[null,null,null,null,null,null,null,"x",null,"","",null,"",null,"x",null,null,"x",null,null,"x",0,0,null,0,null,0,0,0,0]
[null,null,null,null,null,null,null,"x",null,"","",null,"",null,"x",null,null,"x",null,null,"x",0,0,null,0,null,0,0,0,0]
[null,null,null,null,null,null,null,"x",null,"","",null,"",null,"x",null,null,"x",null,null,"x",0,0,null,0,null,0,0,0,0]
[null,null,null,null,null,null,null,"x",null,"","",null,"",null,"x",null,null,"x",null,null,"x",0,0,null,0,null,0,0,0,0]
[null,null,null,null,null,null,null,"x",null,"","",null,"",null,"x",null,null,"x",null,null,"x",0,0,null,0,null,0,0,0,0]
[null,null,null,null,null,null,null,"x",null,"","",null,"",null,"x",null,null,"x",null,null,"x",0,0,null,0,null,0,0,0,0]
[null,null,null,null,null,null,null,"x",null,"","",null,"",null,"x",null,null,"x",null,null,"x",0,0,null,0,null,0,0,0,0]
[null,null,null,null,null,null,null,"x",null,"","",null,"",null,"x",null,null,"x",null,null,"x",0,0,null,0,null,0,0,0,0]
[null,null,null,null,null,null,null,"x",null,"","",null,"",null,"x",null,null,"x",null,null,"x",0,0,null,0,null,0,0,0,0]
[null,null,null,null,null,null,null,"x",null,"","",null,"",null,"x",null,null,"x",null,null,"x",0,0,null,0,null,0,0,0,0]
[null,null,null,null,null,null,null,"x",null,"","",null,"",null,"x",null,null,"x",null,null,"x",0,0,null,0,null,0,0,0,0]
[null,null,null,null,null,null,null,"x",null,"","",null,"",null,"x",null,null,"x",null,null,"x",0,0,null,0,null,0,0,0,0]
[null,null,null,null,null,null,null,"x",null,"","",null,"",null,"x",null,null,"x",null,null,"x",0,0,null,0,null,0,0,0,0]
[null,null,null,null,null,null,null,"x",null,"","",null,"",null,"x",null,null,"x",null,null,"x",0,0,null,0,null,0,0,0,0]
[null,null,null,null,null,null,null,"x",null,"","",null,"",null,"x",null,null,"x",null,null,"x",0,0,null,0,null,0,0,0,0]
[null,null,null,null,null,null,null,"x",null,"","",null,"",null,"x",null,null,"x",null,null,"x",0,0,null,0,null,0,0,0,0]
[null,null,null,null,null,null,null,"x",null,"","",null,"",null,"x",null,null,"x",null,null,"x",0,0,null,0,null,0,0,0,0]
[null,null,null,null,null,null,null,"x",null,"","",null,"",null,"x",null,null,"x",null,null,"x",0,0,null,0,null,0,0,0,0]
[null,null,null,null,null,null,null,"x",null,"","",null,"",null,"x",null,null,"x",null,null,"x",0,0,null,0,null,0,0,0,0]
[null,null,null,null,null,null,null,"x",null,"","",null,"",null,"x",null,null,"x",null,null,"x",0,0,null,0,null,0,0,0,0]
[null,null,null,null,null,null,null,"x",null,"","",null,"",null,"x",null,null,"x",null,null,"x",0,0,null,0,null,0,0,0,0]
[null,null,null,null,null,null,null,"x",null,"","",null,"",null,"x",null,null,"x",null,null,"x",0,0,null,0,null,0,0,0,0]
[null,null,null,null,null,null,null,"x",null,"","",null,"",null,"x",null,null,"x",null,null,"x",0,0,null,0,null,0,0,0,0]
[null,null,null,null,null,null,null,"x",null,"","",null,"",null,"x",null,null,"x",null,null,"x",0,0,null,0,null,0,0,0,0]
[null,null,null,null,null,null,null,"x",null,"","",null,"",null,"x",null,null,"x",null,null,"x",0,0,null,0,null,0,0,0,0]
[null,null,null,null,null,null,null,"x",null,"","",null,"",null,"x",null,null,"x",null,null,"x",0,0,null,0,null,0,0,0,0]
[null,null,null,null,null,null,null,"x",null,"","",null,"",null,"x",null,null,"x",null,null,"x",0,0,null,0,null,0,0,0,0]
[null,null,null,null,null,null,null,"x",null,"","",null,"",null,"x",null,null,"x",null,null,"x",0,0,null,0,null,0,0,0,0]
[null,null,null,null,null,null,null,"x",null,"","",null,"",null,"x",null,null,"x",null,null,"x",0,0,null,0,null,0,0,0,0]
[null,null,null,null,null,null,null,"x",null,"","",null,"",null,"x",null,null,"x",null,null,"x",0,0,null,0,null,0,0,0,0]
[null,null,null,null,null,null,null,"x",null,"","",null,"",null,"x",null,null,"x",null,null,"x",0,0,null,0,null,0,0,0,0]
[null,null,null,null,null,null,null,"x",null,"","",null,"",null,"x",null,null,"x",null,null,"x",0,0,null,0,null,0,0,0,0]
[null,null,null,null,null,null,null,"x",null,"","",null,"",null,"x",null,null,"x",null,null,"x",0,0,null,0,null,0,0,0,0]
[null,null,null,null,null,null,null,"x",null,"","",null,"",null,"x",null,null,"x",null,null,"x",0,0,null,0,null,0,0,0,0]
[null,null,null,null,null,null,null,"x",null,"","",null,"",null,"x",null,null,"x",null,null,"x",0,0,null,0,null,0,0,0,0]
[null,null,null,null,null,null,null,"x",null,"","",null,"",null,"x",null,null,"x",null,null,"x",0,0,null,0,null,0,0,0,0]
[null,null,null,null,null,null,null,"x",null,"","",null,"",null,"x",null,null,"x",null,null,"x",0,0,null,0,null,0,0,0,0]
[null,null,null,null,null,null,null,"x",null,"","",null,"",null,"x",null,null,"x",null,null,"x",0,0,null,0,null,0,0,0,0]
[null,null,null,null,null,null,null,"x",null,"","",null,"",null,"x",null,null,"x",null,null,"x",0,0,null,0,null,0,0,0,0]
[null,null,null,null,null,null,null,"x",null,"","",null,"",null,"x",null,null,"x",null,null,"x",0,0,null,0,null,0,0,0,0]
[null,null,null,null,null,null,null,"x",null,"","",null,"",null,"x",null,null,"x",null,null,"x",0,0,null,0,null,0,0,0,0]
[null,null,null,null,null,null,null,"x",null,"","",null,"",null,"x",null,null,"x",null,null,"x",0,0,null,0,null,0,0,0,0]
[null,null,null,null,null,null,null,"x",null,"","",null,"",null,"x",null,null,"x",null,null,"x",0,0,null,0,null,0,0,0,0]
[null,null,null,null,null,null,null,"x",null,"","",null,"",null,"x",null,null,"x",null,null,"x",0,0,null,0,null,0,0,0,0]
[null,null,null,null,null,null,null,"x",null,"","",null,"",null,"x",null,null,"x",null,null,"x",0,0,null,0,null,0,0,0,0]
[null,null,null,null,null,null,null,"x",null,"","",null,"",null,"x",null,null,"x",null,null,"x",0,0,null,0,null,0,0,0,0]
[null,null,null,null,null,null,null,"x",null,"","",null,"",null,"x",null,null,"x",null,null,"x",0,0,null,0,null,0,0,0,0]
[null,null,null,null,null,null,null,"x",null,"","",null,"",null,"x",null,null,"x",null,null,"x",0,0,null,0,null,0,0,0,0]
[null,null,null,null,null,null,null,"x",null,"","",null,"",null,"x",null,null,"x",null,null,"x",0,0,null,0,null,0,0,0,0]
[null,null,null,null,null,null,null,"x",null,"","",null,"",null,"x",null,null,"x",null,null,"x",0,0,null,0,null,0,0,0,0]
[null,null,null,null,null,null,null,"x",null,"","",null,"",null,"x",null,null,"x",null,null,"x",0,0,null,0,null,0,0,0,0]
[null,null,null,null,null,null,null,"x",null,"","",null,"",null,"x",null,null,"x",null,null,"x",0,0,null,0,null,0,0,0,0]
[null,null,null,null,null,null,null,"x",null,"","",null,"",null,"x",null,null,"x",null,null,"x",0,0,null,0,null,0,0,0,0]
[null,null,null,null,null,null,null,"x",null,"","",null,"",null,"x",null,null,"x",null,null,"x",0,0,null,0,null,0,0,0,0]
[null,null,null,null,null,null,null,"x",null,"","",null,"",null,"x",null,null,"x",null,null,"x",0,0,null,0,null,0,0,0,0]
[null,null,null,null,null,null,null,"x",null,"","",null,"",null,"x",null,null,"x",null,null,"x",0,0,null,0,null,0,0,0,0]
[null,null,null,null,null,null,null,"x",null,"","",null,"",null,"x",null,null,"x",null,null,"x",0,0,null,0,null,0,0,0,0]
[null,null,null,null,null,null,null,"x",null,"","",null,"",null,"x",null,null,"x",null,null,"x",0,0,null,0,null,0,0,0,0]
[null,null,null,null,null,null,null,"x",null,"","",null,"",null,"x",null,null,"x",null,null,"x",0,0,null,0,null,0,0,0,0]
[null,null,null,null,null,null,null,"x",null,"","",null,"",null,"x",null,null,"x",null,null,"x",0,0,null,0,null,0,0,0,0]
[null,null,null,null,null,null,null,"x",null,"","",null,"",null,"x",null,null,"x",null,null,"x",0,0,null,0,null,0,0,0,0]
[null,null,null,null,null,null,null,"x",null,"","",null,"",null,"x",null,null,"x",null,null,"x",0,0,null,0,null,0,0,0,0]
[null,null,null,null,null,null,null,"x",null,"","",null,"",null,"x",null,null,"x",null,null,"x",0,0,null,0,null,0,0,0,0]
[null,null,null,null,null,null,null,"x",null,"","",null,"",null,"x",null,null,"x",null,null,"x",0,0,null,0,null,0,0,0,0]
[null,null,null,null,null,null,null,"x",null,"","",null,"",null,"x",null,null,"x",null,null,"x",0,0,null,0,null,0,0,0,0]
[null,null,null,null,null,null,null,"x",null,"","",null,"",null,"x",null,null,"x",null,null,"x",0,0,null,0,null,0,0,0,0]
[null,null,null,null,null,null,null,"x",null,"","",null,"",null,"x",null,null,"x",null,null,"x",0,0,null,0,null,0,0,0,0]
[null,null,null,null,null,null,null,"x",null,"","",null,"",null,"x",null,null,"x",null,null,"x",0,0,null,0,null,0,0,0,0]
[null,null,null,null,null,null,null,"x",null,"","",null,"",null,"x",null,null,"x",null,null,"x",0,0,null,0,null,0,0,0,0]
[null,null,null,null,null,null,null,"x",null,"","",null,"",null,"x",null,null,"x",null,null,"x",0,0,null,0,null,0,0,0,0]
[null,null,null,null,null,null,null,"x",null,"","",null,"",null,"x",null,null,"x",null,null,"x",0,0,null,0,null,0,0,0,0]
[null,null,null,null,null,null,null,"x",null,"","",null,"",null,"x",null,null,"x",null,null,"x",0,0,null,0,null,0,0,0,0]
[null,null,null,null,null,null,null,"x",null,"","",null,"",null,"x",null,null,"x",null,null,"x",0,0,null,0,null,0,0,0,0]
[null,null,null,null,null,null,null,"x",null,"","",null,"",null,"x",null,null,"x",null,null,"x",0,0,null,0,null,0,0,0,0]
[null,null,null,null,null,null,null,"x",null,"","",null,"",null,"x",null,null,"x",null,null,"x",0,0,null,0,null,0,0,0,0]
[null,null,null,null,null,null,null,"x",null,"","",null,"",null,"x",null,null,"x",null,null,"x",0,0,null,0,null,0,0,0,0]
[null,null,null,null,null,null,null,"x",null,"","",null,"",null,"x",null,null,"x",null,null,"x",0,0,null,0,null,0,0,0,0]
[null,null,null,null,null,null,null,"x",null,"","",null,"",null,"x",null,null,"x",null,null,"x",0,0,null,0,null,0,0,0,0]
[null,null,null,null,null,null,null,"x",null,"","",null,"",null,"x",null,null,"x",null,null,"x",0,0,null,0,null,0,0,0,0]
[null,null,null,null,null,null,null,"x",null,"","",null,"",null,"x",null,null,"x",null,null,"x",0,0,null,0,null,0,0,0,0]
[null,null,null,null,null,null,null,"x",null,"","",null,"",null,"x",null,null,"x",null,null,"x",0,0,null,0,null,0,0,0,0]
[null,null,null,null,null,null,null,"x",null,"","",null,"",null,"x",null,null,"x",null,null,"x",0,0,null,0,null,0,0,0,0]
[null,null,null,null,null,null,null,"x",null,"","",null,"",null,"x",null,null,"x",null,null,"x",0,0,null,0,null,0,0,0,0]
[null,null,null,null,null,null,null,"x",null,"","",null,"",null,"x",null,null,"x",null,null,"x",0,0,null,0,null,0,0,0,0]
[null,null,null,null,null,null,null,"x",null,"","",null,"",null,"x",null,null,"x",null,null,"x",0,0,null,0,null,0,0,0,0]
[null,null,null,null,null,null,null,"x",null,"","",null,"",null,"x",null,null,"x",null,null,"x",0,0,null,0,null,0,0,0,0]
[null,null,null,null,null,null,null,"x",null,"","",null,"",null,"x",null,null,"x",null,null,"x",0,0,null,0,null,0,0,0,0]
[null,null,null,null,null,null,null,"x",null,"","",null,"",null,"x",null,null,"x",null,null,"x",0,0,null,0,null,0,0,0,0]
[null,null,null,null,null,null,null,"x",null,"","",null,"",null,"x",null,null,"x",null,null,"x",0,0,null,0,null,0,0,0,0]
[null,null,null,null,null,null,null,"x",null,"","",null,"",null,"x",null,null,"x",null,null,"x",0,0,null,0,null,0,0,0,0]
[null,null,null,null,null,null,null,"x",null,"","",null,"",null,"x",null,null,"x",null,null,"x",0,0,null,0,null,0,0,0,0]
[null,null,null,null,null,null,null,"x",null,"","",null,"",null,"x",null,null,"x",null,null,"x",0,0,null,0,null,0,0,0,0]
[null,null,null,null,null,null,null,"x",null,"","",null,"",null,"x",null,null,"x",null,null,"x",0,0,null,0,null,0,0,0,0]
[null,null,null,null,null,null,null,"x",null,"","",null,"",null,"x",null,null,"x",null,null,"x",0,0,null,0,null,0,0,0,0]
[null,null,null,null,null,null,null,"x",null,"","",null,"",null,"x",null,null,"x",null,null,"x",0,0,null,0,null,0,0,0,0]
[null,null,null,null,null,null,null,"x",null,"","",null,"",null,"x",null,null,"x",null,null,"x",0,0,null,0,null,0,0,0,0]
[null,null,null,null,null,null,null,"x",null,"","",null,"",null,"x",null,null,"x",null,null,"x",0,0,null,0,null,0,0,0,0]
[null,null,null,null,null,null,null,"x",null,"","",null,"",null,"x",null,null,"x",null,null,"x",0,0,null,0,null,0,0,0,0]
[null,null,null,null,null,null,null,"x",null,"","",null,"",null,"x",null,null,"x",null,null,"x",0,0,null,0,null,0,0,0,0]
[null,null,null,null,null,null,null,"x",null,"","",null,"",null,"x",null,null,"x",null,null,"x",0,0,null,0,null,0,0,0,0]
[null,null,null,null,null,null,null,"x",null,"","",null,"",null,"x",null,null,"x",null,null,"x",0,0,null,0,null,0,0,0,0]
[null,null,null,null,null,null,null,"x",null,"","",null,"",null,"x",null,null,"x",null,null,"x",0,0,null,0,null,0,0,0,0]
[null,null,null,null,null,null,null,"x",null,"","",null,"",null,"x",null,null,"x",null,null,"x",0,0,null,0,null,0,0,0,0]
[null,null,null,null,null,null,null,"x",null,"","",null,"",null,"x",null,null,"x",null,null,"x",0,0,null,0,null,0,0,0,0]
[null,null,null,null,null,null,null,"x",null,"","",null,"",null,"x",null,null,"x",null,null,"x",0,0,null,0,null,0,0,0,0]
[null,null,null,null,null,null,null,"x",null,"","",null,"",null,"x",null,null,"x",null,null,"x",0,0,null,0,null,0,0,0,0]
[null,null,null,null,null,null,null,"x",null,"","",null,"",null,"x",null,null,"x",null,null,"x",0,0,null,0,null,0,0,0,0]
[null,null,null,null,null,null,null,"x",null,"","",null,"",null,"x",null,null,"x",null,null,"x",0,0,null,0,null,0,0,0,0]
[null,null,null,null,null,null,null,"x",null,"","",null,"",null,"x",null,null,"x",null,null,"x",0,0,null,0,null,0,0,0,0]
[null,null,null,null,null,null,null,"x",null,"","",null,"",null,"x",null,null,"x",null,null,"x",0,0,null,0,null,0,0,0,0]
[null,null,null,null,null,null,null,"x",null,"","",null,"",null,"x",null,null,"x",null,null,"x",0,0,null,0,null,0,0,0,0]
[null,null,null,null,null,null,null,"x",null,"","",null,"",null,"x",null,null,"x",null,null,"x",0,0,null,0,null,0,0,0,0]
[null,null,null,null,null,null,null,"x",null,"","",null,"",null,"x",null,null,"x",null,null,"x",0,0,null,0,null,0,0,0,0]
[null,null,null,null,null,null,null,"x",null,"","",null,"",null,"x",null,null,"x",null,null,"x",0,0,null,0,null,0,0,0,0]
[null,null,null,null,null,null,null,"x",null,"","",null,"",null,"x",null,null,"x",null,null,"x",0,0,null,0,null,0,0,0,0]
[null,null,null,null,null,null,null,"x",null,"","",null,"",null,"x",null,null,"x",null,null,"x",0,0,null,0,null,0,0,0,0]
[null,null,null,null,null,null,null,"x",null,"","",null,"",null,"x",null,null,"x",null,null,"x",0,0,null,0,null,0,0,0,0]
[null,null,null,null,null,null,null,"x",null,"","",null,"",null,"x",null,null,"x",null,null,"x",0,0,null,0,null,0,0,0,0]
[null,null,null,null,null,null,null,"x",null,"","",null,"",null,"x",null,null,"x",null,null,"x",0,0,null,0,null,0,0,0,0]
[null,null,null,null,null,null,null,"x",null,"","",null,"",null,"x",null,null,"x",null,null,"x",0,0,null,0,null,0,0,0,0]
[null,null,null,null,null,null,null,"x",null,"","",null,"",null,"x",null,null,"x",null,null,"x",0,0,null,0,null,0,0,0,0]
[null,null,null,null,null,null,null,"x",null,"","",null,"",null,"x",null,null,"x",null,null,"x",0,0,null,0,null,0,0,0,0]
[null,null,null,null,null,null,null,"x",null,"","",null,"",null,"x",null,null,"x",null,null,"x",0,0,null,0,null,0,0,0,0]
[null,null,null,null,null,null,null,"x",null,"","",null,"",null,"x",null,null,"x",null,null,"x",0,0,null,0,null,0,0,0,0]
[null,null,null,null,null,null,null,"x",null,"","",null,"",null,"x",null,null,"x",null,null,"x",0,0,null,0,null,0,0,0,0]
[null,null,null,null,null,null,null,"x",null,"","",null,"",null,"x",null,null,"x",null,null,"x",0,0,null,0,null,0,0,0,0]
[null,null,null,null,null,null,null,"x",null,"","",null,"",null,"x",null,null,"x",null,null,"x",0,0,null,0,null,0,0,0,0]
[null,null,null,null,null,null,null,"x",null,"","",null,"",null,"x",null,null,"x",null,null,"x",0,0,null,0,null,0,0,0,0]
[null,null,null,null,null,null,null,"x",null,"","",null,"",null,"x",null,null,"x",null,null,"x",0,0,null,0,null,0,0,0,0]
[null,null,null,null,null,null,null,"x",null,"","",null,"",null,"x",null,null,"x",null,null,"x",0,0,null,0,null,0,0,0,0]
[null,null,null,null,null,null,null,"x",null,"","",null,"",null,"x",null,null,"x",null,null,"x",0,0,null,0,null,0,0,0,0]
[null,null,null,null,null,null,null,"x",null,"","",null,"",null,"x",null,null,"x",null,null,"x",0,0,null,0,null,0,0,0,0]
[null,null,null,null,null,null,null,"x",null,"","",null,"",null,"x",null,null,"x",null,null,"x",0,0,null,0,null,0,0,0,0]
[null,null,null,null,null,null,null,"x",null,"","",null,"",null,"x",null,null,"x",null,null,"x",0,0,null,0,null,0,0,0,0]
[null,null,null,null,null,null,null,"x",null,"","",null,"",null,"x",null,null,"x",null,null,"x",0,0,null,0,null,0,0,0,0]
[null,null,null,null,null,null,null,"x",null,"","",null,"",null,"x",null,null,"x",null,null,"x",0,0,null,0,null,0,0,0,0]
[null,null,null,null,null,null,null,"x",null,"","",null,"",null,"x",null,null,"x",null,null,"x",0,0,null,0,null,0,0,0,0]
[null,null,null,null,null,null,null,"x",null,"","",null,"",null,"x",null,null,"x",null,null,"x",0,0,null,0,null,0,0,0,0]
[null,null,null,null,null,null,null,"x",null,"","",null,"",null,"x",null,null,"x",null,null,"x",0,0,null,0,null,0,0,0,0]
[null,null,null,null,null,null,null,"x",null,"","",null,"",null,"x",null,null,"x",null,null,"x",0,0,null,0,null,0,0,0,0]
[null,null,null,null,null,null,null,"x",null,"","",null,"",null,"x",null,null,"x",null,null,"x",null,null,null,0,null,null,null,null,0]
[null,null,null,null,null,null,null,"x",null,"","",null,"",null,"x",null,null,"x",null,null,"x",null,null,null,0,null,null,null,null,0]
[null,null,null,null,null,null,null,"x",null,"","",null,"",null,"x",null,null,"x",null,null,"x",null,null,null,0,null,null,null,null,0]
[null,null,null,null,null,null,null,"x",null,"","",null,"",null,"x",null,null,"x",null,null,"x",null,null,null,0,null,null,null,null,0]
[null,null,null,null,null,null,null,"x",null,"","",null,"",null,"x",null,null,"x",null,null,"x",null,null,null,0,null,null,null,null,0]
[null,null,null,null,null,null,null,"x",null,"","",null,"",null,"x",null,null,"x",null,null,"x",null,null,null,0,null,null,null,null,0]
[null,null,null,null,null,null,null,"x",null,"","",null,"",null,"x",null,null,"x",null,null,"x",null,null,null,0,null,null,null,null,0]
[null,null,null,null,null,null,null,"x",null,"","",null,"",null,"x",null,null,"x",null,null,"x",200,null,null,200,null,null,null,null,0]
[null,null,null,null,null,null,null,"x",null,"","",null,"",null,"x",null,null,"x",null,null,"x",null,null,null,0,null,null,null,null,0]
[null,null,null,null,null,null,null,"x",null,"","",null,"",null,"x",null,null,"x",null,null,"x",null,null,null,0,null,null,null,null,0]
[null,null,null,null,null,null,null,"x",null,"","",null,"",null,"x",null,null,"x",null,null,"x",null,null,null,0,null,null,null,null,0]
[null,null,null,null,null,null,null,"x",null,"","",null,"",null,"x",null,null,"x",null,null,"x",null,null,null,0,null,null,null,null,0]
[null,null,null,null,null,null,null,"x",null,"","",null,"",null,"x",null,null,"x",null,null,"x",null,null,null,0,null,null,null,null,0]
[null,null,null,null,null,null,null,"x",null,"","",null,"",null,"x",null,null,"x",null,null,"x",null,null,null,0,null,null,null,null,0]
[null,null,null,null,null,null,null,"x",null,"","",null,"",null,"x",null,null,"x",null,null,"x",null,null,null,0,null,null,null,null,0]
[null,null,null,null,null,null,null,"x",null,"","",null,"",null,"x",null,null,"x",null,null,"x",null,null,null,0,null,null,null,null,0]
[null,null,null,null,null,null,null,"x",null,"","",null,"",null,"x",null,null,"x",null,null,"x",null,null,null,0,null,null,null,null,0]
[null,null,null,null,null,null,null,"x",null,"","",null,"",null,"x",null,null,"x",null,null,"x",null,null,null,0,null,null,null,null,0]
[null,null,null,null,null,null,null,"x",null,"","",null,"",null,"x",null,null,"x",null,null,"x",null,null,null,0,null,null,null,null,0]
[null,null,null,null,null,null,null,"x",null,"","",null,"",null,"x",null,null,"x",null,null,"x",null,null,null,0,null,null,null,null,0]
[null,null,null,null,null,null,null,"x",null,"","",null,"",null,"x",null,null,"x",null,null,"x",null,null,null,0,null,null,null,null,0]
[null,null,null,null,null,null,null,"x",null,"","",null,"",null,"x",null,null,"x",null,null,"x",null,null,null,0,null,null,null,null,0]
[null,null,null,null,null,null,null,"x",null,"","",null,"",null,"x",null,null,"x",null,null,"x",null,null,null,0,null,null,null,null,0]
[null,null,null,null,null,null,null,"x",null,"","",null,"",null,"x",null,null,"x",null,null,"x",null,null,null,0,null,null,null,null,0]
[null,null,null,null,null,null,null,"x",null,"","",null,"",null,"x",null,null,"x",null,null,"x",null,null,null,0,null,null,null,null,0]
[null,null,null,null,null,null,null,"x",null,"","",null,"",null,"x",null,null,"x",null,null,"x",null,null,null,0,null,null,null,null,0]
[null,null,null,null,null,null,null,"x",null,"","",null,"",null,"x",null,null,"x",null,null,"x",null,null,null,0,null,null,null,null,0]
[null,null,null,null,null,null,null,"x",null,"","",null,"",null,"x",null,null,"x",null,null,"x",null,null,null,0,null,null,null,null,0]
[null,null,null,null,null,null,null,"x",null,"","",null,"",null,"x",null,null,"x",null,null,"x",null,null,null,0,null,null,null,null,0]
[null,null,null,null,null,null,null,"x",null,"","",null,"",null,"x",null,null,"x",null,null,"x",null,null,null,0,null,null,null,null,0]
[null,null,null,null,null,null,null,"x",null,"","",null,"",null,"x",null,null,"x",null,null,"x",null,null,null,0,null,null,null,null,0]
[null,null,null,null,null,null,null,"x",null,"","",null,"",null,"x",null,null,"x",null,null,"x",null,null,null,0,null,null,null,null,0]
[null,null,null,null,null,null,null,"x",null,"","",null,"",null,"x",null,null,"x",null,null,"x",null,null,null,0,null,null,null,null,0]
[null,null,null,null,null,null,null,"x",null,"","",null,"",null,"x",null,null,"x",null,null,"x",null,null,null,0,null,null,null,null,0]
[null,null,null,null,null,null,null,"x",null,"","",null,"",null,"x",null,null,"x",null,null,"x",null,null,null,0,null,null,null,null,0]
[null,null,null,null,null,null,null,"x",null,"","",null,"",null,"x",null,null,"x",null,null,"x",null,null,null,0,null,null,null,null,0]
[null,null,null,null,null,null,null,"x",null,"","",null,"",null,"x",null,null,"x",null,null,"x",null,null,null,0,null,null,null,null,0]
[null,null,null,null,null,null,null,"x",null,"","",null,"",null,"x",null,null,"x",null,null,"x",null,null,null,0,null,null,null,null,0]
[null,null,null,null,null,null,null,"x",null,"","",null,"",null,"x",null,null,"x",null,null,"x",null,null,null,0,null,null,null,null,0]
[null,null,null,null,null,null,null,"x",null,"","",null,"",null,"x",null,null,"x",null,null,"x",null,null,null,0,null,null,null,null,0]
[null,null,null,null,null,null,null,"x",null,"","",null,"",null,"x",null,null,"x",null,null,"x",null,null,null,0,null,null,null,null,0]
[null,null,null,null,null,null,null,"x",null,"","",null,"",null,"x",null,null,"x",null,null,"x",null,null,null,0,null,null,null,null,0]
[null,null,null,null,null,null,null,"x",null,"","",null,"",null,"x",null,null,"x",null,null,"x",null,null,null,0,null,null,null,null,0]
[null,null,null,null,null,null,null,"x",null,"","",null,"",null,"x",null,null,"x",null,null,"x",null,null,null,0,null,null,null,null,0]
[null,null,null,null,null,null,null,"x",null,"","",null,"",null,"x",null,null,"x",null,null,"x",null,null,null,0,null,null,null,null,0]
[null,null,null,null,null,null,null,"x",null,"","",null,"",null,"x",null,null,"x",null,null,"x",null,null,null,0,null,null,null,null,0]
[null,null,null,null,null,null,null,"x",null,"","",null,"",null,"x",null,null,"x",null,null,"x",null,null,null,0,null,null,null,null,0]
[null,null,null,null,null,null,null,"x",null,"","",null,"",null,"x",null,null,"x",null,null,"x",null,null,null,0,null,null,null,null,0]
[null,null,null,null,null,null,null,"x",null,"","",null,"",null,"x",null,null,"x",null,null,"x",null,null,null,0,null,null,null,null,0]
[null,null,null,null,null,null,null,"x",null,"","",null,"",null,"x",null,null,"x",null,null,"x",null,null,null,0,null,null,null,null,0]
[null,null,null,null,null,null,null,"x",null,"","",null,"",null,"x",null,null,"x",null,null,"x",null,null,null,0,null,null,null,null,0]
[null,null,null,null,null,null,null,"x",null,"","",null,"",null,"x",null,null,"x",null,null,"x",null,null,null,0,null,null,null,null,0]
[null,null,null,null,null,null,null,"x",null,"","",null,"",null,"x",null,null,"x",null,null,"x",null,null,null,0,null,null,null,null,0]
[null,null,null,null,null,null,null,"x",null,"","",null,"",null,"x",null,null,"x",null,null,"x",null,null,null,0,null,null,null,null,0]
[null,null,null,null,null,null,null,"x",null,"","",null,"",null,"x",null,null,"x",null,null,"x",null,null,null,0,null,null,null,null,0]
[null,null,null,null,null,null,null,"x",null,"","",null,"",null,"x",null,null,"x",null,null,"x",null,null,null,0,null,null,null,null,0]
[null,null,null,null,null,null,null,"x",null,"","",null,"",null,"x",null,null,"x",null,null,"x",null,null,null,0,null,null,null,null,0]
[null,null,null,null,null,null,null,"x",null,"","",null,"",null,"x",null,null,"x",null,null,"x",null,null,null,0,null,null,null,null,0]
[null,null,null,null,null,null,null,"x",null,"","",null,"",null,"x",null,null,"x",null,null,"x",null,null,null,0,null,null,null,null,0]
[null,null,null,null,null,null,null,"x",null,"","",null,"",null,"x",null,null,"x",null,null,"x",null,null,null,0,null,null,null,null,0]
[null,null,null,null,null,null,null,"x",null,"","",null,"",null,"x",null,null,"x",null,null,"x",null,null,null,0,null,null,null,null,0]
[null,null,null,null,null,null,null,"x",null,"","",null,"",null,"x",null,null,"x",null,null,"x",null,null,null,0,null,null,null,null,0]
[null,null,null,null,null,null,null,"x",null,"","",null,"",null,"x",null,null,"x",null,null,"x",null,null,null,0,null,null,null,null,0]
[null,null,null,null,null,null,null,"x",null,"","",null,"",null,"x",null,null,"x",null,null,"x",null,null,null,0,null,null,null,null,0]
[null,null,null,null,null,null,null,"x",null,"","",null,"",null,"x",null,null,"x",null,null,"x",null,null,null,0,null,null,null,null,0]
[null,null,null,null,null,null,null,"x",null,"","",null,"",null,"x",null,null,"x",null,null,"x",null,null,null,0,null,null,null,null,0]
[null,null,null,null,null,null,null,"x",null,"","",null,"",null,"x",null,null,"x",null,null,"x",null,null,null,0,null,null,null,null,0]
[null,null,null,null,null,null,null,"x",null,"","",null,"",null,"x",null,null,"x",null,null,"x",null,null,null,0,null,null,null,null,0]
[null,null,null,null,null,null,null,"x",null,"","",null,"",null,"x",null,null,"x",null,null,"x",null,null,null,0,null,null,null,null,0]
[null,null,null,null,null,null,null,"x",null,"","",null,"",null,"x",null,null,"x",null,null,"x",null,null,null,0,null,null,null,null,0]
[null,null,null,null,null,null,null,"x",null,"","",null,"",null,"x",null,null,"x",null,null,"x",null,null,null,0,null,null,null,null,0]
[null,null,null,null,null,null,null,"x",null,"","",null,"",null,"x",null,null,"x",null,null,"x",null,null,null,0,null,null,null,null,0]
[null,null,null,null,null,null,null,"x",null,"","",null,"",null,"x",null,null,"x",null,null,"x",null,null,null,0,null,null,null,null,0]
[null,null,null,null,null,null,null,"x",null,"","",null,"",null,"x",null,null,"x",null,null,"x",null,null,null,0,null,null,null,null,0]
[null,null,null,null,null,null,null,"x",null,"","",null,"",null,"x",null,null,"x",null,null,"x",null,null,null,0,null,null,null,null,0]
[null,null,null,null,null,null,null,"x",null,"","",null,"",null,"x",null,null,"x",null,null,"x",null,null,null,0,null,null,null,null,0]
[null,null,null,null,null,null,null,"x",null,"","",null,"",null,"x",null,null,"x",null,null,"x",null,null,null,0,null,null,null,null,0]
[null,null,null,null,null,null,null,"x",null,"","",null,"",null,"x",null,null,"x",null,null,"x",null,null,null,0,null,null,null,null,0]
[null,null,null,null,null,null,null,"x",null,"","",null,"",null,"x",null,null,"x",null,null,"x",null,null,null,0,null,null,null,null,0]
[null,null,null,null,null,null,null,"x",null,"","",null,"",null,"x",null,null,"x",null,null,"x",null,null,null,0,null,null,null,null,0]
[null,null,null,null,null,null,null,"x",null,"","",null,"",null,"x",null,null,"x",null,null,"x",null,null,null,0,null,null,null,null,0]
[null,null,null,null,null,null,null,"x",null,"","",null,"",null,"x",null,null,"x",null,null,"x",null,null,null,0,null,null,null,null,0]
[null,null,null,null,null,null,null,"x",null,"","",null,"",null,"x",null,null,"x",null,null,"x",null,null,null,0,null,null,null,null,0]
[null,null,null,null,null,null,null,"x",null,"","",null,"",null,"x",null,null,"x",null,null,"x",null,null,null,0,null,null,null,null,0]
[null,null,null,null,null,null,null,"x",null,"","",null,"",null,"x",null,null,"x",null,null,"x",null,null,null,0,null,null,null,null,0]
[null,null,null,null,null,null,null,"x",null,"","",null,"",null,"x",null,null,"x",null,null,"x",null,null,null,0,null,null,null,null,0]
[null,null,null,null,null,null,null,"x",null,"","",null,"",null,"x",null,null,"x",null,null,"x",null,null,null,0,null,null,null,null,0]
[null,null,null,null,null,null,null,"x",null,"","",null,"",null,"x",null,null,"x",null,null,"x",null,null,null,0,null,null,null,null,0]
[null,null,null,null,null,null,null,"x",null,"","",null,"",null,"x",null,null,"x",null,null,"x",null,null,null,0,null,null,null,null,0]
[null,null,null,null,null,null,null,"x",null,"","",null,"",null,"x",null,null,"x",null,null,"x",null,null,null,0,null,null,null,null,0]
[null,null,null,null,null,null,null,"x",null,"","",null,"",null,"x",null,null,"x",null,null,"x",null,null,null,0,null,null,null,null,0]
[null,null,null,null,null,null,null,"x",null,"","",null,"",null,"x",null,null,"x",null,null,"x",null,null,null,0,null,null,null,null,0]
[null,null,null,null,null,null,null,"x",null,"","",null,"",null,"x",null,null,"x",null,null,"x",null,null,null,0,null,null,null,null,0]
[null,null,null,null,null,null,null,"x",null,"","",null,"",null,"x",null,null,"x",null,null,"x",null,null,null,0,null,null,null,null,0]
[null,null,null,null,null,null,null,"x",null,"","",null,"",null,"x",null,null,"x",null,null,"x",null,null,null,0,null,null,null,null,0]
[null,null,null,null,null,null,null,"x",null,"","",null,"",null,"x",null,null,"x",null,null,"x",null,null,null,0,null,null,null,null,0]
[null,null,null,null,null,null,null,"x",null,"","",null,"",null,"x",null,null,"x",null,null,"x",null,null,null,0,null,null,null,null,0]
[null,null,null,null,null,null,null,"x",null,"","",null,"",null,"x",null,null,"x",null,null,"x",null,null,null,0,null,null,null,null,0]
[null,null,null,null,null,null,null,"x",null,"","",null,"",null,"x",null,null,"x",null,null,"x",null,null,null,0,null,null,null,null,0]
[null,null,null,null,null,null,null,"x",null,"","",null,"",null,"x",null,null,"x",null,null,"x",null,null,null,0,null,null,null,null,0]
[null,null,null,null,null,null,null,"x",null,"","",null,"",null,"x",null,null,"x",null,null,"x",null,null,null,0,null,null,null,null,0]
[null,null,null,null,null,null,null,"x",null,"","",null,"",null,"x",null,null,"x",null,null,"x",null,null,null,0,null,null,null,null,0]
[null,null,null,null,null,null,null,"x",null,"","",null,"",null,"x",null,null,"x",null,null,"x",null,null,null,0,null,null,null,null,0]
[null,null,null,null,null,null,null,"x",null,"","",null,"",null,"x",null,null,"x",null,null,"x",null,null,null,0,null,null,null,null,0]
[null,null,null,null,null,null,null,"x",null,"","",null,"",null,"x",null,null,"x",null,null,"x",null,null,null,0,null,null,null,null,0]
[null,null,null,null,null,null,null,"x",null,"","",null,"",null,"x",null,null,"x",null,null,"x",null,null,null,0,null,null,null,null,0]
[null,null,null,null,null,null,null,"x",null,"","",null,"",null,"x",null,null,"x",null,null,"x",null,null,null,0,null,null,null,null,0]
[null,null,null,null,null,null,null,"x",null,"","",null,"",null,"x",null,null,"x",null,null,"x",null,null,null,0,null,null,null,null,0]
[null,null,null,null,null,null,null,"x",null,"","",null,"",null,"x",null,null,"x",null,null,"x",null,null,null,0,null,null,null,null,0]
[null,null,null,null,null,null,null,"x",null,"","",null,"",null,"x",null,null,"x",null,null,"x",null,null,null,0,null,null,null,null,0]
[null,null,null,null,null,null,null,"x",null,"","",null,"",null,"x",null,null,"x",null,null,"x",null,null,null,0,null,null,null,null,0]
[null,null,null,null,null,null,null,"x",null,"","",null,"",null,"x",null,null,"x",null,null,"x",null,null,null,0,null,null,null,null,0]
[null,null,null,null,null,null,null,"x",null,"","",null,"",null,"x",null,null,"x",null,null,"x",null,null,null,0,null,null,null,null,0]
[null,null,null,null,null,null,null,"x",null,"","",null,"",null,"x",null,null,"x",null,null,"x",null,null,null,0,null,null,null,null,0]
[null,null,null,null,null,null,null,"x",null,"","",null,"",null,"x",null,null,"x",null,null,"x",null,null,null,0,null,null,null,null,0]
[null,null,null,null,null,null,null,"x",null,"","",null,"",null,"x",null,null,"x",null,null,"x",null,null,null,0,null,null,null,null,0]
[null,null,null,null,null,null,null,"x",null,"","",null,"",null,"x",null,null,"x",null,null,"x",null,null,null,0,null,null,null,null,0]
[null,null,null,null,null,null,null,"x",null,"","",null,"",null,"x",null,null,"x",null,null,"x",null,null,null,0,null,null,null,null,0]
[null,null,null,null,null,null,null,"x",null,"","",null,"",null,"x",null,null,"x",null,null,"x",null,null,null,0,null,null,null,null,0]
[null,null,null,null,null,null,null,"x",null,"","",null,"",null,"x",null,null,"x",null,null,"x",null,null,null,0,null,null,null,null,0]
[null,null,null,null,null,null,null,"x",null,"","",null,"",null,"x",null,null,"x",null,null,"x",null,null,null,0,null,null,null,null,0]
[null,null,null,null,null,null,null,"x",null,"","",null,"",null,"x",null,null,"x",null,null,"x",null,null,null,0,null,null,null,null,0]
[null,null,null,null,null,null,null,"x",null,"","",null,"",null,"x",null,null,"x",null,null,"x",null,null,null,0,null,null,null,null,0]
[null,null,null,null,null,null,null,"x",null,"","",null,"",null,"x",null,null,"x",null,null,"x",null,null,null,0,null,null,null,null,0]
[null,null,null,null,null,null,null,"x",null,"","",null,"",null,"x",null,null,"x",null,null,"x",null,null,null,0,null,null,null,null,0]
[null,null,null,null,null,null,null,"x",null,"","",null,"",null,"x",null,null,"x",null,null,"x",null,null,null,0,null,null,null,null,0]
[null,null,null,null,null,null,null,"x",null,"","",null,"",null,"x",null,null,"x",null,null,"x",null,null,null,0,null,null,null,null,0]
[null,null,null,null,null,null,null,"x",null,"","",null,"",null,"x",null,null,"x",null,null,"x",null,null,null,0,null,null,null,null,0]
[null,null,null,null,null,null,null,"x",null,"","",null,"",null,"x",null,null,"x",null,null,"x",null,null,null,0,null,null,null,null,0]
[null,null,null,null,null,null,null,"x",null,"","",null,"",null,"x",null,null,"x",null,null,"x",null,null,null,0,null,null,null,null,0]
[null,null,null,null,null,null,null,"x",null,"","",null,"",null,"x",null,null,"x",null,null,"x",null,null,null,0,null,null,null,null,0]
[null,null,null,null,null,null,null,"x",null,"","",null,"",null,"x",null,null,"x",null,null,"x",null,null,null,0,null,null,null,null,0]
[null,null,null,null,null,null,null,"x",null,"","",null,"",null,"x",null,null,"x",null,null,"x",null,null,null,0,null,null,null,null,0]
[null,null,null,null,null,null,null,"x",null,"","",null,"",null,"x",null,null,"x",null,null,"x",null,null,null,0,null,null,null,null,0]
[null,null,null,null,null,null,null,"x",null,"","",null,"",null,"x",null,null,"x",null,null,"x",null,null,null,0,null,null,null,null,0]
[null,null,null,null,null,null,null,"x",null,"","",null,"",null,"x",null,null,"x",null,null,"x",null,null,null,0,null,null,null,null,0]
[null,null,null,null,null,null,null,"x",null,"","",null,"",null,"x",null,null,"x",null,null,"x",null,null,null,0,null,null,null,null,0]
[null,null,null,null,null,null,null,"x",null,"","",null,"",null,"x",null,null,"x",null,null,"x",null,null,null,0,null,null,null,null,0]
[null,null,null,null,null,null,null,"x",null,"","",null,"",null,"x",null,null,"x",null,null,"x",null,null,null,0,null,null,null,null,0]
[null,null,null,null,null,null,null,"x",null,"","",null,"",null,"x",null,null,"x",null,null,"x",null,null,null,0,null,null,null,null,0]
[null,null,null,null,null,null,null,"x",null,"","",null,"",null,"x",null,null,"x",null,null,"x",null,null,null,0,null,null,null,null,0]
[null,null,null,null,null,null,null,"x",null,"","",null,"",null,"x",null,null,"x",null,null,"x",null,null,null,0,null,null,null,null,0]
[null,null,null,null,null,null,null,"x",null,"","",null,"",null,"x",null,null,"x",null,null,"x",null,null,null,0,null,null,null,null,0]
[null,null,null,null,null,null,null,"x",null,"","",null,"",null,"x",null,null,"x",null,null,"x",null,null,null,0,null,null,null,null,0]
[null,null,null,null,null,null,null,"x",null,"","",null,"",null,"x",null,null,"x",null,null,"x",null,null,null,0,null,null,null,null,0]
[null,null,null,null,null,null,null,"x",null,"","",null,"",null,"x",null,null,"x",null,null,"x",null,null,null,0,null,null,null,null,0]
[null,null,null,null,null,null,null,"x",null,"","",null,"",null,"x",null,null,"x",null,null,"x",null,null,null,0,null,null,null,null,0]
[null,null,null,null,null,null,null,"x",null,"","",null,"",null,"x",null,null,"x",null,null,"x",null,null,null,0,null,null,null,null,0]
[null,null,null,null,null,null,null,"x",null,"","",null,"",null,"x",null,null,"x",null,null,"x",null,null,null,0,null,null,null,null,0]
[null,null,null,null,null,null,null,"x",null,"","",null,"",null,"x",null,null,"x",null,null,"x",null,null,null,0,null,null,null,null,0]
[null,null,null,null,null,null,null,"x",null,"","",null,"",null,"x",null,null,"x",null,null,"x",null,null,null,0,null,null,null,null,0]
[null,null,null,null,null,null,null,"x",null,"","",null,"",null,"x",null,null,"x",null,null,"x",null,null,null,0,null,null,null,null,0]
[null,null,null,null,null,null,null,"x",null,"","",null,"",null,"x",null,null,"x",null,null,"x",null,null,null,0,null,null,null,null,0]
[null,null,null,null,null,null,null,"x",null,"","",null,"",null,"x",null,null,"x",null,null,"x",null,null,null,0,null,null,null,null,0]
[null,null,null,null,null,null,null,"x",null,"","",null,"",null,"x",null,null,"x",null,null,"x",null,null,null,0,null,null,null,null,0]
[null,null,null,null,null,null,null,"x",null,"","",null,"",null,"x",null,null,"x",null,null,"x",null,null,null,0,null,null,null,null,0]
[null,null,null,null,null,null,null,"x",null,"","",null,"",null,"x",null,null,"x",null,null,"x",null,null,null,0,null,null,null,null,0]
[null,null,null,null,null,null,null,"x",null,"","",null,"",null,"x",null,null,"x",null,null,"x",null,null,null,0,null,null,null,null,0]
[null,null,null,null,null,null,null,"x",null,"","",null,"",null,"x",null,null,"x",null,null,"x",null,null,null,0,null,null,null,null,0]
[null,null,null,null,null,null,null,"x",null,"","",null,"",null,"x",null,null,"x",null,null,"x",null,null,null,0,null,null,null,null,0]
[null,null,null,null,null,null,null,"x",null,"","",null,"",null,"x",null,null,"x",null,null,"x",null,null,null,0,null,null,null,null,0]
[null,null,null,null,null,null,null,"x",null,"","",null,"",null,"x",null,null,"x",null,null,"x",null,null,null,0,null,null,null,null,0]
[null,null,null,null,null,null,null,"x",null,"","",null,"",null,"x",null,null,"x",null,null,"x",null,null,null,0,null,null,null,null,0]
[null,null,null,null,null,null,null,"x",null,"","",null,"",null,"x",null,null,"x",null,null,"x",null,null,null,0,null,null,null,null,0]
[null,null,null,null,null,null,null,"x",null,"","",null,"",null,"x",null,null,"x",null,null,"x",null,null,null,0,null,null,null,null,0]
[null,null,null,null,null,null,null,"x",null,"","",null,"",null,"x",null,null,"x",null,null,"x",null,null,null,0,null,null,null,null,0]
[null,null,null,null,null,null,null,"x",null,"","",null,"",null,"x",null,null,"x",null,null,"x",null,null,null,0,null,null,null,null,0]
[null,null,null,null,null,null,null,"x",null,"","",null,"",null,"x",null,null,"x",null,null,"x",null,null,null,0,null,null,null,null,0]
[null,null,null,null,null,null,null,"x",null,"","",null,"",null,"x",null,null,"x",null,null,"x",null,null,null,0,null,null,null,null,0]
[null,null,null,null,null,null,null,"x",null,"","",null,"",null,"x",null,null,"x",null,null,"x",null,null,null,0,null,null,null,null,0]
[null,null,null,null,null,null,null,"x",null,"","",null,"",null,"x",null,null,"x",null,null,"x",null,null,null,0,null,null,null,null,0]
[null,null,null,null,null,null,null,"x",null,"","",null,"",null,"x",null,null,"x",null,null,"x",null,null,null,0,null,null,null,null,0]
[null,null,null,null,null,null,null,"x",null,"","",null,"",null,"x",null,null,"x",null,null,"x",null,null,null,0,null,null,null,null,0]
[null,null,null,null,null,null,null,"x",null,"","",null,"",null,"x",null,null,"x",null,null,"x",null,null,null,0,null,null,null,null,0]
[null,null,null,null,null,null,null,"x",null,"","",null,"",null,"x",null,null,"x",null,null,"x",null,null,null,0,null,null,null,null,0]
[null,null,null,null,null,null,null,"x",null,"","",null,"",null,"x",null,null,"x",null,null,"x",null,null,null,0,null,null,null,null,0]
[null,null,null,null,null,null,null,"x",null,"","",null,"",null,"x",null,null,"x",null,null,"x",null,null,null,0,null,null,null,null,0]
[null,null,null,null,null,null,null,"x",null,"","",null,"",null,"x",null,null,"x",null,null,"x",null,null,null,0,null,null,null,null,0]
[null,null,null,null,null,null,null,"x",null,"","",null,"",null,"x",null,null,"x",null,null,"x",null,null,null,0,null,null,null,null,0]
[null,null,null,null,null,null,null,"x",null,"","",null,"",null,"x",null,null,"x",null,null,"x",null,null,null,0,null,null,null,null,0]
[null,null,null,null,null,null,null,"x",null,"","",null,"",null,"x",null,null,"x",null,null,"x",null,null,null,0,null,null,null,null,0]
[null,null,null,null,null,null,null,"x",null,"","",null,"",null,"x",null,null,"x",null,null,"x",null,null,null,0,null,null,null,null,0]
[null,null,null,null,null,null,null,"x",null,"","",null,"",null,"x",null,null,"x",null,null,"x",null,null,null,0,null,null,null,null,0]
[null,null,null,null,null,null,null,"x",null,"","",null,"",null,"x",null,null,"x",null,null,"x",null,null,null,0,null,null,null,null,0]
[null,null,null,null,null,null,null,"x",null,"","",null,"",null,"x",null,null,"x",null,null,"x",null,null,null,0,null,null,null,null,0]
[null,null,null,null,null,null,null,"x",null,"","",null,"",null,"x",null,null,"x",null,null,"x",null,null,null,0,null,null,null,null,0]
[null,null,null,null,null,null,null,"x",null,"","",null,"",null,"x",null,null,"x",null,null,"x",null,null,null,0,null,null,null,null,0]
[null,null,null,null,null,null,null,"x",null,"","",null,"",null,"x",null,null,"x",null,null,"x",null,null,null,0,null,null,null,null,0]
[null,null,null,null,null,null,null,"x",null,"","",null,"",null,"x",null,null,"x",null,null,"x",null,null,null,0,null,null,null,null,0]
[null,null,null,null,null,null,null,"x",null,"","",null,"",null,"x",null,null,"x",null,null,"x",null,null,null,0,null,null,null,null,0]
[null,null,null,null,null,null,null,"x",null,"","",null,"",null,"x",null,null,"x",null,null,"x",null,null,null,0,null,null,null,null,0]
[null,null,null,null,null,null,null,"x",null,"","",null,"",null,"x",null,null,"x",null,null,"x",null,null,null,0,null,null,null,null,0]
[null,null,null,null,null,null,null,"x",null,"","",null,"",null,"x",null,null,"x",null,null,"x",null,null,null,0,null,null,null,null,0]
[null,null,null,null,null,null,null,"x",null,"","",null,"",null,"x",null,null,"x",null,null,"x",null,null,null,0,null,null,null,null,0]
[null,null,null,null,null,null,null,"x",null,"","",null,"",null,"x",null,null,"x",null,null,"x",null,null,null,0,null,null,null,null,0]
[null,null,null,null,null,null,null,"x",null,"","",null,"",null,"x",null,null,"x",null,null,"x",null,null,null,0,null,null,null,null,0]
[null,null,null,null,null,null,null,"x",null,"","",null,"",null,"x",null,null,"x",null,null,"x",null,null,null,0,null,null,null,null,0]
[null,null,null,null,null,null,null,"x",null,"","",null,"",null,"x",null,null,"x",null,null,"x",null,null,null,0,null,null,null,null,0]
[null,null,null,null,null,null,null,"x",null,"","",null,"",null,"x",null,null,"x",null,null,"x",null,null,null,0,null,null,null,null,0]
[null,null,null,null,null,null,null,"x",null,"","",null,"",null,"x",null,null,"x",null,null,"x",null,null,null,0,null,null,null,null,0]
[null,null,null,null,null,null,null,"x",null,"","",null,"",null,"x",null,null,"x",null,null,"x",null,null,null,0,null,null,null,null,0]
[null,null,null,null,null,null,null,"x",null,"","",null,"",null,"x",null,null,"x",null,null,"x",null,null,null,0,null,null,null,null,0]
[null,null,null,null,null,null,null,"x",null,"","",null,"",null,"x",null,null,"x",null,null,"x",null,null,null,0,null,null,null,null,0]
[null,null,null,null,null,null,null,"x",null,"","",null,"",null,"x",null,null,"x",null,null,"x",null,null,null,0,null,null,null,null,0]
[null,null,null,null,null,null,null,"x",null,"","",null,"",null,"x",null,null,"x",null,null,"x",null,null,null,0,null,null,null,null,0]
[null,null,null,null,null,null,null,"x",null,"","",null,"",null,"x",null,null,"x",null,null,"x",null,null,null,0,null,null,null,null,0]
[null,null,null,null,null,null,null,"x",null,"","",null,"",null,"x",null,null,"x",null,null,"x",null,null,null,0,null,null,null,null,0]
[null,null,null,null,null,null,null,"x",null,"","",null,"",null,"x",null,null,"x",null,null,"x",null,null,null,0,null,null,null,null,0]
[null,null,null,null,null,null,null,"x",null,"","",null,"",null,"x",null,null,"x",null,null,"x",null,null,null,0,null,null,null,null,0]
[null,null,null,null,null,null,null,"x",null,"","",null,"",null,"x",null,null,"x",null,null,"x",null,null,null,0,null,null,null,null,0]
[null,null,null,null,null,null,null,"x",null,"","",null,"",null,"x",null,null,"x",null,null,"x",null,null,null,0,null,null,null,null,0]
[null,null,null,null,null,null,null,"x",null,"","",null,"",null,"x",null,null,"x",null,null,"x",null,null,null,0,null,null,null,null,0]
[null,null,null,null,null,null,null,"x",null,"","",null,"",null,"x",null,null,"x",null,null,"x",null,null,null,0,null,null,null,null,0]
[null,null,null,null,null,null,null,"x",null,"","",null,"",null,"x",null,null,"x",null,null,"x",null,null,null,0,null,null,null,null,0]
[null,null,null,null,null,null,null,"x",null,"","",null,"",null,"x",null,null,"x",null,null,"x",null,null,null,0,null,null,null,null,0]
[null,null,null,null,null,null,null,"x",null,"","",null,"",null,"x",null,null,"x",null,null,"x",null,null,null,0,null,null,null,null,0]
[null,null,null,null,null,null,null,"x",null,"","",null,"",null,"x",null,null,"x",null,null,"x",null,null,null,0,null,null,null,null,0]
[null,null,null,null,null,null,null,"x",null,"","",null,"",null,"x",null,null,"x",null,null,"x",null,null,null,0,null,null,null,null,0]
[null,null,null,null,null,null,null,"x",null,"","",null,"",null,"x",null,null,"x",null,null,"x",null,null,null,0,null,null,null,null,0]
[null,null,null,null,null,null,null,"x",null,"","",null,"",null,"x",null,null,"x",null,null,"x",null,null,null,0,null,null,null,null,0]
[null,null,null,null,null,null,null,"x",null,"","",null,"",null,"x",null,null,"x",null,null,"x",null,null,null,0,null,null,null,null,0]
[null,null,null,null,null,null,null,"x",null,"","",null,"",null,"x",null,null,"x",null,null,"x",null,null,null,0,null,null,null,null,0]
[null,null,null,null,null,null,null,"x",null,"","",null,"",null,"x",null,null,"x",null,null,"x",null,null,null,0,null,null,null,null,0]
[null,null,null,null,null,null,null,"x",null,"","",null,"",null,"x",null,null,"x",null,null,"x",null,null,null,0,null,null,null,null,0]
[null,null,null,null,null,null,null,"x",null,"","",null,"",null,"x",null,null,"x",null,null,"x",null,null,null,0,null,null,null,null,0]
[null,null,null,null,null,null,null,"x",null,"","",null,"",null,"x",null,null,"x",null,null,"x",null,null,null,0,null,null,null,null,0]
[null,null,null,null,null,null,null,"x",null,"","",null,"",null,"x",null,null,"x",null,null,"x",null,null,null,0,null,null,null,null,0]
[null,null,null,null,null,null,null,"x",null,"","",null,"",null,"x",null,null,"x",null,null,"x",null,null,null,0,null,null,null,null,0]
[null,null,null,null,null,null,null,"x",null,"","",null,"",null,"x",null,null,"x",null,null,"x",null,null,null,0,null,null,null,null,0]
[null,null,null,null,null,null,null,"x",null,"","",null,"",null,"x",null,null,"x",null,null,"x",null,null,null,0,null,null,null,null,0]
[null,null,null,null,null,null,null,"x",null,"","",null,"",null,"x",null,null,"x",null,null,"x",null,null,null,0,null,null,null,null,0]
[null,null,null,null,null,null,null,"x",null,"","",null,"",null,"x",null,null,"x",null,null,"x",null,null,null,0,null,null,null,null,0]
[null,null,null,null,null,null,null,"x",null,"","",null,"",null,"x",null,null,"x",null,null,"x",null,null,null,0,null,null,null,null,0]
[null,null,null,null,null,null,null,"x",null,"","",null,"",null,"x",null,null,"x",null,null,"x",null,null,null,0,null,null,null,null,0]
[null,null,null,null,null,null,null,"x",null,"","",null,"",null,"x",null,null,"x",null,null,"x",null,null,null,0,null,null,null,null,0]
[null,null,null,null,null,null,null,"x",null,"","",null,"",null,"x",null,null,"x",null,null,"x",null,null,null,0,null,null,null,null,0]
[null,null,null,null,null,null,null,"x",null,"","",null,"",null,"x",null,null,"x",null,null,"x",null,null,null,0,null,null,null,null,0]
[null,null,null,null,null,null,null,"x",null,"","",null,"",null,"x",null,null,"x",null,null,"x",null,null,null,0,null,null,null,null,0]
[null,null,null,null,null,null,null,"x",null,"","",null,"",null,"x",null,null,"x",null,null,"x",null,null,null,0,null,null,null,null,0]
[null,null,null,null,null,null,null,"x",null,"","",null,"",null,"x",null,null,"x",null,null,"x",null,null,null,0,null,null,null,null,0]
[null,null,null,null,null,null,null,"x",null,"","",null,"",null,"x",null,null,"x",null,null,"x",null,null,null,0,null,null,null,null,0]
[null,null,null,null,null,null,null,"x",null,"","",null,"",null,"x",null,null,"x",null,null,"x",null,null,null,0,null,null,null,null,0]
[null,null,null,null,null,null,null,"x",null,"","",null,"",null,"x",null,null,"x",null,null,"x",null,null,null,0,null,null,null,null,0]
[null,null,null,null,null,null,null,"x",null,"","",null,"",null,"x",null,null,"x",null,null,"x",null,null,null,0,null,null,null,null,0]
[null,null,null,null,null,null,null,"x",null,"","",null,"",null,"x",null,null,"x",null,null,"x",null,null,null,0,null,null,null,null,0]
[null,null,null,null,null,null,null,"x",null,"","",null,"",null,"x",null,null,"x",null,null,"x",null,null,null,0,null,null,null,null,0]
[null,null,null,null,null,null,null,"x",null,"","",null,"",null,"x",null,null,"x",null,null,"x",null,null,null,0,null,null,null,null,0]
[null,null,null,null,null,null,null,"x",null,"","",null,"",null,"x",null,null,"x",null,null,"x",null,null,null,0,null,null,null,null,0]
[null,null,null,null,null,null,null,"x",null,"","",null,"",null,"x",null,null,"x",null,null,"x",null,null,null,0,null,null,null,null,0]
[null,null,null,null,null,null,null,"x",null,"","",null,"",null,"x",null,null,"x",null,null,"x",null,null,null,0,null,null,null,null,0]
[null,null,null,null,null,null,null,"x",null,"","",null,"",null,"x",null,null,"x",null,null,"x",null,null,null,0,null,null,null,null,0]
[null,null,null,null,null,null,null,"x",null,"","",null,"",null,"x",null,null,"x",null,null,"x",null,null,null,0,null,null,null,null,0]
[null,null,null,null,null,null,null,"x",null,"","",null,"",null,"x",null,null,"x",null,null,"x",null,null,null,0,null,null,null,null,0]
[null,null,null,null,null,null,null,"x",null,"","",null,"",null,"x",null,null,"x",null,null,"x",null,null,null,0,null,null,null,null,0]
[null,null,null,null,null,null,null,"x",null,"","",null,"",null,"x",null,null,"x",null,null,"x",null,null,null,0,null,null,null,null,0]
[null,null,null,null,null,null,null,"x",null,"","",null,"",null,"x",null,null,"x",null,null,"x",null,null,null,0,null,null,null,null,0]
[null,null,null,null,null,null,null,"x",null,"","",null,"",null,"x",null,null,"x",null,null,"x",null,null,null,0,null,null,null,null,0]
[null,null,null,null,null,null,null,"x",null,"","",null,"",null,"x",null,null,"x",null,null,"x",null,null,null,0,null,null,null,null,0]
[null,null,null,null,null,null,null,"x",null,"","",null,"",null,"x",null,null,"x",null,null,"x",null,null,null,0,null,null,null,null,0]
[null,null,null,null,null,null,null,"x",null,"","",null,"",null,"x",null,null,"x",null,null,"x",null,null,null,0,null,null,null,null,0]
[null,null,null,null,null,null,null,"x",null,"","",null,"",null,"x",null,null,"x",null,null,"x",null,null,null,0,null,null,null,null,0]
[null,null,null,null,null,null,null,"x",null,"","",null,"",null,"x",null,null,"x",null,null,"x",null,null,null,0,null,null,null,null,0]
[null,null,null,null,null,null,null,"x",null,"","",null,"",null,"x",null,null,"x",null,null,"x",null,null,null,0,null,null,null,null,0]
[null,null,null,null,null,null,null,"x",null,"","",null,"",null,"x",null,null,"x",null,null,"x",null,null,null,0,null,null,null,null,0]
[null,null,null,null,null,null,null,"x",null,"","",null,"",null,"x",null,null,"x",null,null,"x",null,null,null,0,null,null,null,null,0]
[null,null,null,null,null,null,null,"x",null,"","",null,"",null,"x",null,null,"x",null,null,"x",null,null,null,0,null,null,null,null,0]
[null,null,null,null,null,null,null,"x",null,"","",null,"",null,"x",null,null,"x",null,null,"x",null,null,null,0,null,null,null,null,0]
[null,null,null,null,null,null,null,"x",null,"","",null,"",null,"x",null,null,"x",null,null,"x",null,null,null,0,null,null,null,null,0]
[null,null,null,null,null,null,null,"x",null,"","",null,"",null,"x",null,null,"x",null,null,"x",null,null,null,0,null,null,null,null,0]
[null,null,null,null,null,null,null,"x",null,"","",null,"",null,"x",null,null,"x",null,null,"x",null,null,null,0,null,null,null,null,0]
[null,null,null,null,null,null,null,"x",null,"","",null,"",null,"x",null,null,"x",null,null,"x",null,null,null,0,null,null,null,null,0]
[null,null,null,null,null,null,null,"x",null,"","",null,"",null,"x",null,null,"x",null,null,"x",null,null,null,0,null,null,null,null,0]
[null,null,null,null,null,null,null,"x",null,"","",null,"",null,"x",null,null,"x",null,null,"x",null,null,null,0,null,null,null,null,0]
[null,null,null,null,null,null,null,"x",null,"","",null,"",null,"x",null,null,"x",null,null,"x",null,null,null,0,null,null,null,null,0]
[null,null,null,null,null,null,null,"x",null,"","",null,"",null,"x",null,null,"x",null,null,"x",null,null,null,0,null,null,null,null,0]
[null,null,null,null,null,null,null,"x",null,"","",null,"",null,"x",null,null,"x",null,null,"x",null,null,null,0,null,null,null,null,0]
[null,null,null,null,null,null,null,"x",null,"","",null,"",null,"x",null,null,"x",null,null,"x",null,null,null,0,null,null,null,null,0]
[null,null,null,null,null,null,null,"x",null,"","",null,"",null,"x",null,null,"x",null,null,"x",null,null,null,0,null,null,null,null,0]
[null,null,null,null,null,null,null,"x",null,"","",null,"",null,"x",null,null,"x",null,null,"x",null,null,null,0,null,null,null,null,0]
[null,null,null,null,null,null,null,"x",null,"","",null,"",null,"x",null,null,"x",null,null,"x",null,null,null,0,null,null,null,null,0]
[null,null,null,null,null,null,null,"x",null,"","",null,"",null,"x",null,null,"x",null,null,"x",null,null,null,0,null,null,null,null,0]
[null,null,null,null,null,null,null,"x",null,"","",null,"",null,"x",null,null,"x",null,null,"x",null,null,null,0,null,null,null,null,0]
[null,null,null,null,null,null,null,"x",null,"","",null,"",null,"x",null,null,"x",null,null,"x",null,null,null,0,null,null,null,null,0]
[null,null,null,null,null,null,null,"x",null,"","",null,"",null,"x",null,null,"x",null,null,"x",null,null,null,0,null,null,null,null,0]
[null,null,null,null,null,null,null,"x",null,"","",null,"",null,"x",null,null,"x",null,null,"x",null,null,null,0,null,null,null,null,0]
[null,null,null,null,null,null,null,"x",null,"","",null,"",null,"x",null,null,"x",null,null,"x",null,null,null,0,null,null,null,null,0]
[null,null,null,null,null,null,null,"x",null,"","",null,"",null,"x",null,null,"x",null,null,"x",null,null,null,0,null,null,null,null,0]
[null,null,null,null,null,null,null,"x",null,"","",null,"",null,"x",null,null,"x",null,null,"x",null,null,null,0,null,null,null,null,0]
[null,null,null,null,null,null,null,"x",null,"","",null,"",null,"x",null,null,"x",null,null,"x",null,null,null,0,null,null,null,null,0]
[null,null,null,null,null,null,null,"x",null,"","",null,"",null,"x",null,null,"x",null,null,"x",null,null,null,0,null,null,null,null,0]
[null,null,null,null,null,null,null,"x",null,"","",null,"",null,"x",null,null,"x",null,null,"x",null,null,null,0,null,null,null,null,0]
[null,null,null,null,null,null,null,"x",null,"","",null,"",null,"x",null,null,"x",null,null,"x",null,null,null,0,null,null,null,null,0]
[null,null,null,null,null,null,null,"x",null,"","",null,"",null,"x",null,null,"x",null,null,"x",null,null,null,0,null,null,null,null,0]
[null,null,null,null,null,null,null,"x",null,"","",null,"",null,"x",null,null,"x",null,null,"x",null,null,null,0,null,null,null,null,0]
[null,null,null,null,null,null,null,"x",null,"","",null,"",null,"x",null,null,"x",null,null,"x",null,null,null,0,null,null,null,null,0]
[null,null,null,null,null,null,null,"x",null,"","",null,"",null,"x",null,null,"x",null,null,"x",null,null,null,0,null,null,null,null,0]
[null,null,null,null,null,null,null,"x",null,"","",null,"",null,"x",null,null,"x",null,null,"x",null,null,null,0,null,null,null,null,0]
[null,null,null,null,null,null,null,"x",null,"","",null,"",null,"x",null,null,"x",null,null,"x",null,null,null,0,null,null,null,null,0]
[null,null,null,null,null,null,null,"x",null,"","",null,"",null,"x",null,null,"x",null,null,"x",null,null,null,0,null,null,null,null,0]
[null,null,null,null,null,null,null,"x",null,"","",null,"",null,"x",null,null,"x",null,null,"x",null,null,null,0,null,null,null,null,0]
[null,null,null,null,null,null,null,"x",null,"","",null,"",null,"x",null,null,"x",null,null,"x",null,null,null,0,null,null,null,null,0]
[null,null,null,null,null,null,null,"x",null,"","",null,"",null,"x",null,null,"x",null,null,"x",null,null,null,0,null,null,null,null,0]
[null,null,null,null,null,null,null,"x",null,"","",null,"",null,"x",null,null,"x",null,null,"x",null,null,null,0,null,null,null,null,0]
[null,null,null,null,null,null,null,"x",null,"","",null,"",null,"x",null,null,"x",null,null,"x",null,null,null,0,null,null,null,null,0]
[null,null,null,null,null,null,null,"x",null,"","",null,"",null,"x",null,null,"x",null,null,"x",null,null,null,0,null,null,null,null,0]
[null,null,null,null,null,null,null,"x",null,"","",null,"",null,"x",null,null,"x",null,null,"x",null,null,null,0,null,null,null,null,0]
[null,null,null,null,null,null,null,"x",null,"","",null,"",null,"x",null,null,"x",null,null,"x",null,null,null,0,null,null,null,null,0]
[null,null,null,null,null,null,null,"x",null,"","",null,"",null,"x",null,null,"x",null,null,"x",null,null,null,0,null,null,null,null,0]
[null,null,null,null,null,null,null,"x",null,"","",null,"",null,"x",null,null,"x",null,null,"x",null,null,null,0,null,null,null,null,0]
[null,null,null,null,null,null,null,"x",null,"","",null,"",null,"x",null,null,"x",null,null,"x",null,null,null,0,null,null,null,null,0]
[null,null,null,null,null,null,null,"x",null,"","",null,"",null,"x",null,null,"x",null,null,"x",null,null,null,0,null,null,null,null,0]
[null,null,null,null,null,null,null,"x",null,"","",null,"",null,"x",null,null,"x",null,null,"x",null,null,null,0,null,null,null,null,0]
[null,null,null,null,null,null,null,"x",null,"","",null,"",null,"x",null,null,"x",null,null,"x",null,null,null,0,null,null,null,null,0]
[null,null,null,null,null,null,null,"x",null,"","",null,"",null,"x",null,null,"x",null,null,"x",null,null,null,0,null,null,null,null,0]
[null,null,null,null,null,null,null,"x",null,"","",null,"",null,"x",null,null,"x",null,null,"x",null,null,null,0,null,null,null,null,0]
[null,null,null,null,null,null,null,"x",null,"","",null,"",null,"x",null,null,"x",null,null,"x",null,null,null,0,null,null,null,null,0]
[null,null,null,null,null,null,null,"x",null,"","",null,"",null,"x",null,null,"x",null,null,"x",null,null,null,0,null,null,null,null,0]
[null,null,null,null,null,null,null,"x",null,"","",null,"",null,"x",null,null,"x",null,null,"x",null,null,null,0,null,null,null,null,0]
[null,null,null,null,null,null,null,"x",null,"","",null,"",null,"x",null,null,"x",null,null,"x",null,null,null,0,null,null,null,null,0]
[null,null,null,null,null,null,null,"x",null,"","",null,"",null,"x",null,null,"x",null,null,"x",null,null,null,0,null,null,null,null,0]
[null,null,null,null,null,null,null,"x",null,"","",null,"",null,"x",null,null,"x",null,null,"x",null,null,null,0,null,null,null,null,0]
[null,null,null,null,null,null,null,"x",null,"","",null,"",null,"x",null,null,"x",null,null,"x",null,null,null,0,null,null,null,null,0]
[null,null,null,null,null,null,null,"x",null,"","",null,"",null,"x",null,null,"x",null,null,"x",null,null,null,0,null,null,null,null,0]
[null,null,null,null,null,null,null,"x",null,"","",null,"",null,"x",null,null,"x",null,null,"x",null,null,null,0,null,null,null,null,0]
[null,null,null,null,null,null,null,"x",null,"","",null,"",null,"x",null,null,"x",null,null,"x",null,null,null,0,null,null,null,null,0]
[null,null,null,null,null,null,null,"x",null,"","",null,"",null,"x",null,null,"x",null,null,"x",null,null,null,0,null,null,null,null,0]
[null,null,null,null,null,null,null,"x",null,"","",null,"",null,"x",null,null,"x",null,null,"x",null,null,null,0,null,null,null,null,0]
[null,null,null,null,null,null,null,"x",null,"","",null,"",null,"x",null,null,"x",null,null,"x",null,null,null,0,null,null,null,null,0]
[null,null,null,null,null,null,null,"x",null,"","",null,"",null,"x",null,null,"x",null,null,"x",null,null,null,0,null,null,null,null,0]
[null,null,null,null,null,null,null,"x",null,"","",null,"",null,"x",null,null,"x",null,null,"x",null,null,null,0,null,null,null,null,0]
[null,null,null,null,null,null,null,"x",null,"","",null,"",null,"x",null,null,"x",null,null,"x",null,null,null,0,null,null,null,null,0]
[null,null,null,null,null,null,null,"x",null,"","",null,"",null,"x",null,null,"x",null,null,"x",null,null,null,0,null,null,null,null,0]
[null,null,null,null,null,null,null,"x",null,"","",null,"",null,"x",null,null,"x",null,null,"x",null,null,null,0,null,null,null,null,0]
[null,null,null,null,null,null,null,"x",null,"","",null,"",null,"x",null,null,"x",null,null,"x",null,null,null,0,null,null,null,null,0]
[null,null,null,null,null,null,null,"x",null,"","",null,"",null,"x",null,null,"x",null,null,"x",null,null,null,0,null,null,null,null,0]
[null,null,null,null,null,null,null,"x",null,"","",null,"",null,"x",null,null,"x",null,null,"x",null,null,null,0,null,null,null,null,0]
[null,null,null,null,null,null,null,"x",null,"","",null,"",null,"x",null,null,"x",null,null,"x",null,null,null,0,null,null,null,null,0]
[null,null,null,null,null,null,null,"x",null,"","",null,"",null,"x",null,null,"x",null,null,"x",null,null,null,0,null,null,null,null,0]
[null,null,null,null,null,null,null,"x",null,"","",null,"",null,"x",null,null,"x",null,null,"x",null,null,null,0,null,null,null,null,0]
[null,null,null,null,null,null,null,"x",null,"","",null,"",null,"x",null,null,"x",null,null,"x",null,null,null,0,null,null,null,null,0]
[null,null,null,null,null,null,null,"x",null,"","",null,"",null,"x",null,null,"x",null,null,"x",null,null,null,0,null,null,null,null,0]
[null,null,null,null,null,null,null,"x",null,"","",null,"",null,"x",null,null,"x",null,null,"x",null,null,null,0,null,null,null,null,0]
[null,null,null,null,null,null,null,"x",null,"","",null,"",null,"x",null,null,"x",null,null,"x",null,null,null,0,null,null,null,null,0]
[null,null,null,null,null,null,null,"x",null,"","",null,"",null,"x",null,null,"x",null,null,"x",null,null,null,0,null,null,null,null,0]
[null,null,null,null,null,null,null,"x",null,"","",null,"",null,"x",null,null,"x",null,null,"x",null,null,null,0,null,null,null,null,0]
[null,null,null,null,null,null,null,"x",null,"","",null,"",null,"x",null,null,"x",null,null,"x",null,null,null,0,null,null,null,null,0]
[null,null,null,null,null,null,null,"x",null,"","",null,"",null,"x",null,null,"x",null,null,"x",null,null,null,0,null,null,null,null,0]
[null,null,null,null,null,null,null,"x",null,"","",null,"",null,"x",null,null,"x",null,null,"x",null,null,null,0,null,null,null,null,0]
[null,null,null,null,null,null,null,"x",null,"","",null,"",null,"x",null,null,"x",null,null,"x",null,null,null,0,null,null,null,null,0]
[null,null,null,null,null,null,null,"x",null,"","",null,"",null,"x",null,null,"x",null,null,"x",null,null,null,0,null,null,null,null,0]
[null,null,null,null,null,null,null,"x",null,"","",null,"",null,"x",null,null,"x",null,null,"x",null,null,null,0,null,null,null,null,0]
[null,null,null,null,null,null,null,"x",null,"","",null,"",null,"x",null,null,"x",null,null,"x",null,null,null,0,null,null,null,null,0]
[null,null,null,null,null,null,null,"x",null,"","",null,"",null,"x",null,null,"x",null,null,"x",null,null,null,0,null,null,null,null,0]
[null,null,null,null,null,null,null,"x",null,"","",null,"",null,"x",null,null,"x",null,null,"x",null,null,null,0,null,null,null,null,0]
[null,null,null,null,null,null,null,"x",null,"","",null,"",null,"x",null,null,"x",null,null,"x",null,null,null,0,null,null,null,null,0]
[null,null,null,null,null,null,null,"x",null,"","",null,"",null,"x",null,null,"x",null,null,"x",null,null,null,0,null,null,null,null,0]
[null,null,null,null,null,null,null,"x",null,"","",null,"",null,"x",null,null,"x",null,null,"x",null,null,null,0,null,null,null,null,0]
[null,null,null,null,null,null,null,"x",null,"","",null,"",null,"x",null,null,"x",null,null,"x",null,null,null,0,null,null,null,null,0]
[null,null,null,null,null,null,null,"x",null,"","",null,"",null,"x",null,null,"x",null,null,"x",null,null,null,0,null,null,null,null,0]
[null,null,null,null,null,null,null,"x",null,"","",null,"",null,"x",null,null,"x",null,null,"x",null,null,null,0,null,null,null,null,0]
[null,null,null,null,null,null,null,"x",null,"","",null,"",null,"x",null,null,"x",null,null,"x",null,null,null,0,null,null,null,null,0]
[null,null,null,null,null,null,null,"x",null,"","",null,"",null,"x",null,null,"x",null,null,"x",null,null,null,0,null,null,null,null,0]
[null,null,null,null,null,null,null,"x",null,"","",null,"",null,"x",null,null,"x",null,null,"x",null,null,null,0,null,null,null,null,0]
[null,null,null,null,null,null,null,"x",null,"","",null,"",null,"x",null,null,"x",null,null,"x",null,null,null,0,null,null,null,null,0]
[null,null,null,null,null,null,null,"x",null,"","",null,"",null,"x",null,null,"x",null,null,"x",null,null,null,0,null,null,null,null,0]
[null,null,null,null,null,null,null,"x",null,"","",null,"",null,"x",null,null,"x",null,null,"x",null,null,null,0,null,null,null,null,0]
[null,null,null,null,null,null,null,"x",null,"","",null,"",null,"x",null,null,"x",null,null,"x",null,null,null,0,null,null,null,null,0]
[null,null,null,null,null,null,null,"x",null,"","",null,"",null,"x",null,null,"x",null,null,"x",null,null,null,0,null,null,null,null,0]
[null,null,null,null,null,null,null,"x",null,"","",null,"",null,"x",null,null,"x",null,null,"x",null,null,null,0,null,null,null,null,0]
[null,null,null,null,null,null,null,"x",null,"","",null,"",null,"x",null,null,"x",null,null,"x",null,null,null,0,null,null,null,null,0]
[null,null,null,null,null,null,null,"x",null,"","",null,"",null,"x",null,null,"x",null,null,"x",null,null,null,0,null,null,null,null,0]
[null,null,null,null,null,null,null,"x",null,"","",null,"",null,"x",null,null,"x",null,null,"x",null,null,null,0,null,null,null,null,0]
[null,null,null,null,null,null,null,"x",null,"","",null,"",null,"x",null,null,"x",null,null,"x",null,null,null,0,null,null,null,null,0]
[null,null,null,null,null,null,null,"x",null,"","",null,"",null,"x",null,null,"x",null,null,"x",null,null,null,0,null,null,null,null,0]
[null,null,null,null,null,null,null,"x",null,"","",null,"",null,"x",null,null,"x",null,null,"x",null,null,null,0,null,null,null,null,0]
[null,null,null,null,null,null,null,"x",null,"","",null,"",null,"x",null,null,"x",null,null,"x",null,null,null,0,null,null,null,null,0]
[null,null,null,null,null,null,null,"x",null,"","",null,"",null,"x",null,null,"x",null,null,"x",null,null,null,0,null,null,null,null,0]
[null,null,null,null,null,null,null,"x",null,"","",null,"",null,"x",null,null,"x",null,null,"x",null,null,null,0,null,null,null,null,0]
[null,null,null,null,null,null,null,"x",null,"","",null,"",null,"x",null,null,"x",null,null,"x",null,null,null,0,null,null,null,null,0]
[null,null,null,null,null,null,null,"x",null,"","",null,"",null,"x",null,null,"x",null,null,"x",null,null,null,0,null,null,null,null,0]
[null,null,null,null,null,null,null,"x",null,"","",null,"",null,"x",null,null,"x",null,null,"x",null,null,null,0,null,null,null,null,0]
[null,null,null,null,null,null,null,"x",null,"","",null,"",null,"x",null,null,"x",null,null,"x",null,null,null,0,null,null,null,null,0]
[null,null,null,null,null,null,null,"x",null,"","",null,"",null,"x",null,null,"x",null,null,"x",null,null,null,0,null,null,null,null,0]
[null,null,null,null,null,null,null,"x",null,"","",null,"",null,"x",null,null,"x",null,null,"x",null,null,null,0,null,null,null,null,0]
[null,null,null,null,null,null,null,"x",null,"","",null,"",null,"x",null,null,"x",null,null,"x",null,null,null,0,null,null,null,null,0]
[null,null,null,null,null,null,null,"x",null,"","",null,"",null,"x",null,null,"x",null,null,"x",null,null,null,0,null,null,null,null,0]
[null,null,null,null,null,null,null,"x",null,"","",null,"",null,"x",null,null,"x",null,null,"x",null,null,null,0,null,null,null,null,0]
[null,null,null,null,null,null,null,"x",null,"","",null,"",null,"x",null,null,"x",null,null,"x",null,null,null,0,null,null,null,null,0]
[null,null,null,null,null,null,null,"x",null,"","",null,"",null,"x",null,null,"x",null,null,"x",null,null,null,0,null,null,null,null,0]
[null,null,null,null,null,null,null,"x",null,"","",null,"",null,"x",null,null,"x",null,null,"x",null,null,null,0,null,null,null,null,0]
[null,null,null,null,null,null,null,"x",null,"","",null,"",null,"x",null,null,"x",null,null,"x",null,null,null,0,null,null,null,null,0]
[null,null,null,null,null,null,null,"x",null,"","",null,"",null,"x",null,null,"x",null,null,"x",null,null,null,0,null,null,null,null,0]
[null,null,null,null,null,null,null,"x",null,"","",null,"",null,"x",null,null,"x",null,null,"x",null,null,null,0,null,null,null,null,0]
[null,null,null,null,null,null,null,"x",null,"","",null,"",null,"x",null,null,"x",null,null,"x",null,null,null,0,null,null,null,null,0]
[null,null,null,null,null,null,null,"x",null,"","",null,"",null,"x",null,null,"x",null,null,"x",null,null,null,0,null,null,null,null,0]
[null,null,null,null,null,null,null,"x",null,"","",null,"",null,"x",null,null,"x",null,null,"x",null,null,null,0,null,null,null,null,0]
[null,null,null,null,null,null,null,"x",null,"","",null,"",null,"x",null,null,"x",null,null,"x",null,null,null,0,null,null,null,null,0]
[null,null,null,null,null,null,null,"x",null,"","",null,"",null,"x",null,null,"x",null,null,"x",null,null,null,0,null,null,null,null,0]
[null,null,null,null,null,null,null,"x",null,"","",null,"",null,"x",null,null,"x",null,null,"x",null,null,null,0,null,null,null,null,0]
[null,null,null,null,null,null,null,"x",null,"","",null,"",null,"x",null,null,"x",null,null,"x",null,null,null,0,null,null,null,null,0]
[null,null,null,null,null,null,null,"x",null,"","",null,"",null,"x",null,null,"x",null,null,"x",null,null,null,0,null,null,null,null,0]
[null,null,null,null,null,null,null,"x",null,"","",null,"",null,"x",null,null,"x",null,null,"x",null,null,null,0,null,null,null,null,0]
[null,null,null,null,null,null,null,"x",null,"","",null,"",null,"x",null,null,"x",null,null,"x",null,null,null,0,null,null,null,null,0]
[null,null,null,null,null,null,null,"x",null,"","",null,"",null,"x",null,null,"x",null,null,"x",null,null,null,0,null,null,null,null,0]
[null,null,null,null,null,null,null,"x",null,"","",null,"",null,"x",null,null,"x",null,null,"x",null,null,null,0,null,null,null,null,0]
[null,null,null,null,null,null,null,"x",null,"","",null,"",null,"x",null,null,"x",null,null,"x",null,null,null,0,null,null,null,null,0]
[null,null,null,null,null,null,null,"x",null,"","",null,"",null,"x",null,null,"x",null,null,"x",null,null,null,0,null,null,null,null,0]
[null,null,null,null,null,null,null,"x",null,"","",null,"",null,"x",null,null,"x",null,null,"x",null,null,null,0,null,null,null,null,0]
[null,null,null,null,null,null,null,"x",null,"","",null,"",null,"x",null,null,"x",null,null,"x",null,null,null,0,null,null,null,null,0]
[null,null,null,null,null,null,null,"x",null,"","",null,"",null,"x",null,null,"x",null,null,"x",null,null,null,0,null,null,null,null,0]
[null,null,null,null,null,null,null,"x",null,"","",null,"",null,"x",null,null,"x",null,null,"x",null,null,null,0,null,null,null,null,0]
[null,null,null,null,null,null,null,"x",null,"","",null,"",null,"x",null,null,"x",null,null,"x",null,null,null,0,null,null,null,null,0]
[null,null,null,null,null,null,null,"x",null,"","",null,"",null,"x",null,null,"x",null,null,"x",null,null,null,0,null,null,null,null,0]
[null,null,null,null,null,null,null,"x",null,"","",null,"",null,"x",null,null,"x",null,null,"x",null,null,null,0,null,null,null,null,0]
[null,null,null,null,null,null,null,"x",null,"","",null,"",null,"x",null,null,"x",null,null,"x",null,null,null,0,null,null,null,null,0]
[null,null,null,null,null,null,null,"x",null,"","",null,"",null,"x",null,null,"x",null,null,"x",null,null,null,0,null,null,null,null,0]
[null,null,null,null,null,null,null,"x",null,"","",null,"",null,"x",null,null,"x",null,null,"x",null,null,null,0,null,null,null,null,0]
[null,null,null,null,null,null,null,"x",null,"","",null,"",null,"x",null,null,"x",null,null,"x",null,null,null,0,null,null,null,null,0]
[null,null,null,null,null,null,null,"x",null,"","",null,"",null,"x",null,null,"x",null,null,"x",null,null,null,0,null,null,null,null,0]
[null,null,null,null,null,null,null,"x",null,"","",null,"",null,"x",null,null,"x",null,null,"x",null,null,null,0,null,null,null,null,0]
[null,null,null,null,null,null,null,"x",null,"","",null,"",null,"x",null,null,"x",null,null,"x",null,null,null,0,null,null,null,null,0]
[null,null,null,null,null,null,null,"x",null,"","",null,"",null,"x",null,null,"x",null,null,"x",null,null,null,0,null,null,null,null,0]
[null,null,null,null,null,null,null,"x",null,"","",null,"",null,"x",null,null,"x",null,null,"x",null,null,null,0,null,null,null,null,0]
[null,null,null,null,null,null,null,"x",null,"","",null,"",null,"x",null,null,"x",null,null,"x",null,null,null,0,null,null,null,null,0]
[null,null,null,null,null,null,null,"x",null,"","",null,"",null,"x",null,null,"x",null,null,"x",null,null,null,0,null,null,null,null,0]
[null,null,null,null,null,null,null,"x",null,"","",null,"",null,"x",null,null,"x",null,null,"x",null,null,null,0,null,null,null,null,0]
[null,null,null,null,null,null,null,"x",null,"","",null,"",null,"x",null,null,"x",null,null,"x",null,null,null,0,null,null,null,null,0]
[null,null,null,null,null,null,null,"x",null,"","",null,"",null,"x",null,null,"x",null,null,"x",null,null,null,0,null,null,null,null,0]
[null,null,null,null,null,null,null,"x",null,"","",null,"",null,"x",null,null,"x",null,null,"x",null,null,null,0,null,null,null,null,0]
[null,null,null,null,null,null,null,"x",null,"","",null,"",null,"x",null,null,"x",null,null,"x",null,null,null,0,null,null,null,null,0]
[null,null,null,null,null,null,null,"x",null,"","",null,"",null,"x",null,null,"x",null,null,"x",null,null,null,0,null,null,null,null,0]
[null,null,null,null,null,null,null,"x",null,"","",null,"",null,"x",null,null,"x",null,null,"x",null,null,null,0,null,null,null,null,0]
[null,null,null,null,null,null,null,"x",null,"","",null,"",null,"x",null,null,"x",null,null,"x",null,null,null,0,null,null,null,null,0]
[null,null,null,null,null,null,null,"x",null,"","",null,"",null,"x",null,null,"x",null,null,"x",null,null,null,0,null,null,null,null,0]
[null,null,null,null,null,null,null,"x",null,"","",null,"",null,"x",null,null,"x",null,null,"x",null,null,null,0,null,null,null,null,0]
[null,null,null,null,null,null,null,"x",null,"","",null,"",null,"x",null,null,"x",null,null,"x",null,null,null,0,null,null,null,null,0]
[null,null,null,null,null,null,null,"x",null,"","",null,"",null,"x",null,null,"x",null,null,"x",null,null,null,0,null,null,null,null,0]
[null,null,null,null,null,null,null,"x",null,"","",null,"",null,"x",null,null,"x",null,null,"x",null,null,null,0,null,null,null,null,0]
[null,null,null,null,null,null,null,"x",null,"","",null,"",null,"x",null,null,"x",null,null,"x",null,null,null,0,null,null,null,null,0]
[null,null,null,null,null,null,null,"x",null,"","",null,"",null,"x",null,null,"x",null,null,"x",null,null,null,0,null,null,null,null,0]
[null,null,null,null,null,null,null,"x",null,"","",null,"",null,"x",null,null,"x",null,null,"x",null,null,null,0,null,null,null,null,0]
[null,null,null,null,null,null,null,"x",null,"","",null,"",null,"x",null,null,"x",null,null,"x",null,null,null,0,null,null,null,null,0]
[null,null,null,null,null,null,null,"x",null,"","",null,"",null,"x",null,null,"x",null,null,"x",null,null,null,0,null,null,null,null,0]
[null,null,null,null,null,null,null,"x",null,"","",null,"",null,"x",null,null,"x",null,null,"x",null,null,null,0,null,null,null,null,0]
[null,null,null,null,null,null,null,"x",null,"","",null,"",null,"x",null,null,"x",null,null,"x",null,null,null,0,null,null,null,null,0]
[null,null,null,null,null,null,null,"x",null,"","",null,"",null,"x",null,null,"x",null,null,"x",null,null,null,0,null,null,null,null,0]
[null,null,null,null,null,null,null,"x",null,"","",null,"",null,"x",null,null,"x",null,null,"x",null,null,null,0,null,null,null,null,0]
[null,null,null,null,null,null,null,"x",null,"","",null,"",null,"x",null,null,"x",null,null,"x",null,null,null,0,null,null,null,null,0]
[null,null,null,null,null,null,null,"x",null,"","",null,"",null,"x",null,null,"x",null,null,"x",null,null,null,0,null,null,null,null,0]
[null,null,null,null,null,null,null,"x",null,"","",null,"",null,"x",null,null,"x",null,null,"x",null,null,null,0,null,null,null,null,0]
[null,null,null,null,null,null,null,"x",null,"","",null,"",null,"x",null,null,"x",null,null,"x",null,null,null,0,null,null,null,null,0]
[null,null,null,null,null,null,null,"x",null,"","",null,"",null,"x",null,null,"x",null,null,"x",null,null,null,0,null,null,null,null,0]
[null,null,null,null,null,null,null,"x",null,"","",null,"",null,"x",null,null,"x",null,null,"x",null,null,null,0,null,null,null,null,0]
[null,null,null,null,null,null,null,"x",null,"","",null,"",null,"x",null,null,"x",null,null,"x",null,null,null,0,null,null,null,null,0]
[null,null,null,null,null,null,null,"x",null,"","",null,"",null,"x",null,null,"x",null,null,"x",null,null,null,0,null,null,null,null,0]
[null,null,null,null,null,null,null,"x",null,"","",null,"",null,"x",null,null,"x",null,null,"x",null,null,null,0,null,null,null,null,0]
[null,null,null,null,null,null,null,"x",null,"","",null,"",null,"x",null,null,"x",null,null,"x",null,null,null,0,null,null,null,null,0]
[null,null,null,null,null,null,null,"x",null,"","",null,"",null,"x",null,null,"x",null,null,"x",null,null,null,0,null,null,null,null,0]
[null,null,null,null,null,null,null,"x",null,"","",null,"",null,"x",null,null,"x",null,null,"x",null,null,null,0,null,null,null,null,0]
[null,null,null,null,null,null,null,"x",null,"","",null,"",null,"x",null,null,"x",null,null,"x",null,null,null,0,null,null,null,null,0]
[null,null,null,null,null,null,null,"x",null,"","",null,"",null,"x",null,null,"x",null,null,"x",null,null,null,0,null,null,null,null,0]
[null,null,null,null,null,null,null,"x",null,"","",null,"",null,"x",null,null,"x",null,null,"x",null,null,null,0,null,null,null,null,0]
[null,null,null,null,null,null,null,"x",null,"","",null,"",null,"x",null,null,"x",null,null,"x",null,null,null,0,null,null,null,null,0]
[null,null,null,null,null,null,null,"x",null,"","",null,"",null,"x",null,null,"x",null,null,"x",null,null,null,0,null,null,null,null,0]
[null,null,null,null,null,null,null,"x",null,"","",null,"",null,"x",null,null,"x",null,null,"x",null,null,null,0,null,null,null,null,0]
[null,null,null,null,null,null,null,"x",null,"","",null,"",null,"x",null,null,"x",null,null,"x",null,null,null,0,null,null,null,null,0]
[null,null,null,null,null,null,null,"x",null,"","",null,"",null,"x",null,null,"x",null,null,"x",null,null,null,0,null,null,null,null,0]
[null,null,null,null,null,null,null,"x",null,"","",null,"",null,"x",null,null,"x",null,null,"x",null,null,null,0,null,null,null,null,0]
[null,null,null,null,null,null,null,"x",null,"","",null,"",null,"x",null,null,"x",null,null,"x",null,null,null,0,null,null,null,null,0]
[null,null,null,null,null,null,null,"x",null,"","",null,"",null,"x",null,null,"x",null,null,"x",null,null,null,0,null,null,null,null,0]
[null,null,null,null,null,null,null,"x",null,"","",null,"",null,"x",null,null,"x",null,null,"x",null,null,null,0,null,null,null,null,0]
[null,null,null,null,null,null,null,"x",null,"","",null,"",null,"x",null,null,"x",null,null,"x",null,null,null,0,null,null,null,null,0]
[null,null,null,null,null,null,null,"x",null,"","",null,"",null,"x",null,null,"x",null,null,"x",null,null,null,0,null,null,null,null,0]
[null,null,null,null,null,null,null,"x",null,"","",null,"",null,"x",null,null,"x",null,null,"x",null,null,null,0,null,null,null,null,0]
[null,null,null,null,null,null,null,"x",null,"","",null,"",null,"x",null,null,"x",null,null,"x",null,null,null,0,null,null,null,null,0]
[null,null,null,null,null,null,null,"x",null,"","",null,"",null,"x",null,null,"x",null,null,"x",null,null,null,0,null,null,null,null,0]
[null,null,null,null,null,null,null,"x",null,"","",null,"",null,"x",null,null,"x",null,null,"x",null,null,null,0,null,null,null,null,0]
[null,null,null,null,null,null,null,"x",null,"","",null,"",null,"x",null,null,"x",null,null,"x",null,null,null,0,null,null,null,null,0]
[null,null,null,null,null,null,null,"x",null,"","",null,"",null,"x",null,null,"x",null,null,"x",null,null,null,0,null,null,null,null,0]
[null,null,null,null,null,null,null,"x",null,"","",null,"",null,"x",null,null,"x",null,null,"x",null,null,null,0,null,null,null,null,0]
[null,null,null,null,null,null,null,"x",null,"","",null,"",null,"x",null,null,"x",null,null,"x",null,null,null,0,null,null,null,null,0]
[null,null,null,null,null,null,null,"x",null,"","",null,"",null,"x",null,null,"x",null,null,"x",null,null,null,0,null,null,null,null,0]
[null,null,null,null,null,null,null,"x",null,"","",null,"",null,"x",null,null,"x",null,null,"x",null,null,null,0,null,null,null,null,0]
[null,null,null,null,null,null,null,"x",null,"","",null,"",null,"x",null,null,"x",null,null,"x",null,null,null,0,null,null,null,null,0]
[null,null,null,null,null,null,null,"x",null,"","",null,"",null,"x",null,null,"x",null,null,"x",null,null,null,0,null,null,null,null,0]
[null,null,null,null,null,null,null,"x",null,"","",null,"",null,"x",null,null,"x",null,null,"x",null,null,null,0,null,null,null,null,0]
[null,null,null,null,null,null,null,"x",null,"","",null,"",null,"x",null,null,"x",null,null,"x",null,null,null,0,null,null,null,null,0]
[null,null,null,null,null,null,null,"x",null,"","",null,"",null,"x",null,null,"x",null,null,"x",null,null,null,0,null,null,null,null,0]
[null,null,null,null,null,null,null,"x",null,"","",null,"",null,"x",null,null,"x",null,null,"x",null,null,null,0,null,null,null,null,0]
[null,null,null,null,null,null,null,"x",null,"","",null,"",null,"x",null,null,"x",null,null,"x",null,null,null,0,null,null,null,null,0]
[null,null,null,null,null,null,null,"x",null,"","",null,"",null,"x",null,null,"x",null,null,"x",null,null,null,0,null,null,null,null,0]
[null,null,null,null,null,null,null,"x",null,"","",null,"",null,"x",null,null,"x",null,null,"x",null,null,null,0,null,null,null,null,0]
[null,null,null,null,null,null,null,"x",null,"","",null,"",null,"x",null,null,"x",null,null,"x",null,null,null,0,null,null,null,null,0]
[null,null,null,null,null,null,null,"x",null,"","",null,"",null,"x",null,null,"x",null,null,"x",null,null,null,0,null,null,null,null,0]
[null,null,null,null,null,null,null,"x",null,"","",null,"",null,"x",null,null,"x",null,null,"x",null,null,null,0,null,null,null,null,0]
[null,null,null,null,null,null,null,"x",null,"","",null,"",null,"x",null,null,"x",null,null,"x",null,null,null,0,null,null,null,null,0]
[null,null,null,null,null,null,null,"x",null,"","",null,"",null,"x",null,null,"x",null,null,"x",null,null,null,0,null,null,null,null,0]
[null,null,null,null,null,null,null,"x",null,"","",null,"",null,"x",null,null,"x",null,null,"x",null,null,null,0,null,null,null,null,0]
[null,null,null,null,null,null,null,"x",null,"","",null,"",null,"x",null,null,"x",null,null,"x",null,null,null,0,null,null,null,null,0]
[null,null,null,null,null,null,null,"x",null,"","",null,"",null,"x",null,null,"x",null,null,"x",null,null,null,0,null,null,null,null,0]
[null,null,null,null,null,null,null,"x",null,"","",null,"",null,"x",null,null,"x",null,null,"x",null,null,null,0,null,null,null,null,0]
[null,null,null,null,null,null,null,"x",null,"","",null,"",null,"x",null,null,"x",null,null,"x",null,null,null,0,null,null,null,null,0]
[null,null,null,null,null,null,null,"x",null,"","",null,"",null,"x",null,null,"x",null,null,"x",null,null,null,0,null,null,null,null,0]
[null,null,null,null,null,null,null,"x",null,"","",null,"",null,"x",null,null,"x",null,null,"x",null,null,null,0,null,null,null,null,0]
[null,null,null,null,null,null,null,"x",null,"","",null,"",null,"x",null,null,"x",null,null,"x",null,null,null,0,null,null,null,null,0]
[null,null,null,null,null,null,null,"x",null,"","",null,"",null,"x",null,null,"x",null,null,"x",null,null,null,0,null,null,null,null,0]
[null,null,null,null,null,null,null,"x",null,"","",null,"",null,"x",null,null,"x",null,null,"x",null,null,null,0,null,null,null,null,0]
[null,null,null,null,null,null,null,"x",null,"","",null,"",null,"x",null,null,"x",null,null,"x",null,null,null,0,null,null,null,null,0]
[null,null,null,null,null,null,null,"x",null,"","",null,"",null,"x",null,null,"x",null,null,"x",null,null,null,0,null,null,null,null,0]
[null,null,null,null,null,null,null,"x",null,"","",null,"",null,"x",null,null,"x",null,null,"x",null,null,null,0,null,null,null,null,0]
[null,null,null,null,null,null,null,"x",null,"","",null,"",null,"x",null,null,"x",null,null,"x",null,null,null,0,null,null,null,null,0]
[null,null,null,null,null,null,null,"x",null,"","",null,"",null,"x",null,null,"x",null,null,"x",null,null,null,0,null,null,null,null,0]
[null,null,null,null,null,null,null,"x",null,"","",null,"",null,"x",null,null,"x",null,null,"x",null,null,null,0,null,null,null,null,0]
[null,null,null,null,null,null,null,"x",null,"","",null,"",null,"x",null,null,"x",null,null,"x",null,null,null,0,null,null,null,null,0]
[null,null,null,null,null,null,null,"x",null,"","",null,"",null,"x",null,null,"x",null,null,"x",null,null,null,0,null,null,null,null,0]
[null,null,null,null,null,null,null,"x",null,"","",null,"",null,"x",null,null,"x",null,null,"x",null,null,null,0,null,null,null,null,0]
[null,null,null,null,null,null,null,"x",null,"","",null,"",null,"x",null,null,"x",null,null,"x",null,null,null,0,null,null,null,null,0]
[null,null,null,null,null,null,null,"x",null,"","",null,"",null,"x",null,null,"x",null,null,"x",null,null,null,0,null,null,null,null,0]
[null,null,null,null,null,null,null,"x",null,"","",null,"",null,"x",null,null,"x",null,null,"x",null,null,null,0,null,null,null,null,0]
[null,null,null,null,null,null,null,"x",null,"","",null,"",null,"x",null,null,"x",null,null,"x",null,null,null,0,null,null,null,null,0]
[null,null,null,null,null,null,null,"x",null,"","",null,"",null,"x",null,null,"x",null,null,"x",null,null,null,0,null,null,null,null,0]
[null,null,null,null,null,null,null,"x",null,"","",null,"",null,"x",null,null,"x",null,null,"x",null,null,null,0,null,null,null,null,0]
[null,null,null,null,null,null,null,"x",null,"","",null,"",null,"x",null,null,"x",null,null,"x",null,null,null,0,null,null,null,null,0]
[null,null,null,null,null,null,null,"x",null,"","",null,"",null,"x",null,null,"x",null,null,"x",null,null,null,0,null,null,null,null,0]
[null,null,null,null,null,null,null,"x",null,"","",null,"",null,"x",null,null,"x",null,null,"x",null,null,null,0,null,null,null,null,0]
[null,null,null,null,null,null,null,"x",null,"","",null,"",null,"x",null,null,"x",null,null,"x",null,null,null,0,null,null,null,null,0]
[null,null,null,null,null,null,null,"x",null,"","",null,"",null,"x",null,null,"x",null,null,"x",null,null,null,0,null,null,null,null,0]
[null,null,null,null,null,null,null,"x",null,"","",null,"",null,"x",null,null,"x",null,null,"x",null,null,null,0,null,null,null,null,0]
[null,null,null,null,null,null,null,"x",null,"","",null,"",null,"x",null,null,"x",null,null,"x",null,null,null,0,null,null,null,null,0]
[null,null,null,null,null,null,null,"x",null,"","",null,"",null,"x",null,null,"x",null,null,"x",null,null,null,0,null,null,null,null,0]
[null,null,null,null,null,null,null,"x",null,"","",null,"",null,"x",null,null,"x",null,null,"x",null,null,null,0,null,null,null,null,0]
[null,null,null,null,null,null,null,"x",null,"","",null,"",null,"x",null,null,"x",null,null,"x",null,null,null,0,null,null,null,null,0]
[null,null,null,null,null,null,null,"x",null,"","",null,"",null,"x",null,null,"x",null,null,"x",null,null,null,0,null,null,null,null,0]
[null,null,null,null,null,null,null,"x",null,"","",null,"",null,"x",null,null,"x",null,null,"x",null,null,null,0,null,null,null,null,0]
[null,null,null,null,null,null,null,"x",null,"","",null,"",null,"x",null,null,"x",null,null,"x",null,null,null,0,null,null,null,null,0]
[null,null,null,null,null,null,null,"x",null,"","",null,"",null,"x",null,null,"x",null,null,"x",null,null,null,0,null,null,null,null,0]
[null,null,null,null,null,null,null,"x",null,"","",null,"",null,"x",null,null,"x",null,null,"x",null,null,null,0,null,null,null,null,0]
[null,null,null,null,null,null,null,"x",null,"","",null,"",null,"x",null,null,"x",null,null,"x",null,null,null,0,null,null,null,null,0]
[null,null,null,null,null,null,null,"x",null,"","",null,"",null,"x",null,null,"x",null,null,"x",null,null,null,0,null,null,null,null,0]
[null,null,null,null,null,null,null,"x",null,"","",null,"",null,"x",null,null,"x",null,null,"x",null,null,null,0,null,null,null,null,0]
[null,null,null,null,null,null,null,"x",null,"","",null,"",null,"x",null,null,"x",null,null,"x",null,null,null,0,null,null,null,null,0]
[null,null,null,null,null,null,null,"x",null,"","",null,"",null,"x",null,null,"x",null,null,"x",null,null,null,0,null,null,null,null,0]
[null,null,null,null,null,null,null,"x",null,"","",null,"",null,"x",null,null,"x",null,null,"x",null,null,null,0,null,null,null,null,0]
[null,null,null,null,null,null,null,"x",null,"","",null,"",null,"x",null,null,"x",null,null,"x",null,null,null,0,null,null,null,null,0]
[null,null,null,null,null,null,null,"x",null,"","",null,"",null,"x",null,null,"x",null,null,"x",null,null,null,0,null,null,null,null,0]
[null,null,null,null,null,null,null,"x",null,"","",null,"",null,"x",null,null,"x",null,null,"x",null,null,null,0,null,null,null,null,0]
[null,null,null,null,null,null,null,"x",null,"","",null,"",null,"x",null,null,"x",null,null,"x",null,null,null,0,null,null,null,null,0]
[null,null,null,null,null,null,null,"x",null,"","",null,"",null,"x",null,null,"x",null,null,"x",null,null,null,0,null,null,null,null,0]
[null,null,null,null,null,null,null,"x",null,"","",null,"",null,"x",null,null,"x",null,null,"x",null,null,null,0,null,null,null,null,0]
[null,null,null,null,null,null,null,"x",null,"","",null,"",null,"x",null,null,"x",null,null,"x",null,null,null,0,null,null,null,null,0]
[null,null,null,null,null,null,null,"x",null,"","",null,"",null,"x",null,null,"x",null,null,"x",null,null,null,0,null,null,null,null,0]
[null,null,null,null,null,null,null,"x",null,"","",null,"",null,"x",null,null,"x",null,null,"x",null,null,null,0,null,null,null,null,0]
[null,null,null,null,null,null,null,"x",null,"","",null,"",null,"x",null,null,"x",null,null,"x",null,null,null,0,null,null,null,null,0]
[null,null,null,null,null,null,null,"x",null,"","",null,"",null,"x",null,null,"x",null,null,"x",null,null,null,0,null,null,null,null,0]
[null,null,null,null,null,null,null,"x",null,"","",null,"",null,"x",null,null,"x",null,null,"x",null,null,null,0,null,null,null,null,0]
[null,null,null,null,null,null,null,"x",null,"","",null,"",null,"x",null,null,"x",null,null,"x",null,null,null,0,null,null,null,null,0]
[null,null,null,null,null,null,null,"x",null,"","",null,"",null,"x",null,null,"x",null,null,"x",null,null,null,0,null,null,null,null,0]
[null,null,null,null,null,null,null,"x",null,"","",null,"",null,"x",null,null,"x",null,null,"x",null,null,null,0,null,null,null,null,0]
[null,null,null,null,null,null,null,"x",null,"","",null,"",null,"x",null,null,"x",null,null,"x",null,null,null,0,null,null,null,null,0]
[null,null,null,null,null,null,null,"x",null,"","",null,"",null,"x",null,null,"x",null,null,"x",null,null,null,0,null,null,null,null,0]
[null,null,null,null,null,null,null,"x",null,"","",null,"",null,"x",null,null,"x",null,null,"x",null,null,null,0,null,null,null,null,0]
[null,null,null,null,null,null,null,"x",null,"","",null,"",null,"x",null,null,"x",null,null,"x",null,null,null,0,null,null,null,null,0]
[null,null,null,null,null,null,null,"x",null,"","",null,"",null,"x",null,null,"x",null,null,"x",null,null,null,0,null,null,null,null,0]
[null,null,null,null,null,null,null,"x",null,"","",null,"",null,"x",null,null,"x",null,null,"x",null,null,null,0,null,null,null,null,0]
[null,null,null,null,null,null,null,"x",null,"","",null,"",null,"x",null,null,"x",null,null,"x",null,null,null,0,null,null,null,null,0]
[null,null,null,null,null,null,null,"x",null,"","",null,"",null,"x",null,null,"x",null,null,"x",null,null,null,0,null,null,null,null,0]
[null,null,null,null,null,null,null,"x",null,"","",null,"",null,"x",null,null,"x",null,null,"x",null,null,null,0,null,null,null,null,0]
[null,null,null,null,null,null,null,"x",null,"","",null,"",null,"x",null,null,"x",null,null,"x",null,null,null,0,null,null,null,null,0]
[null,null,null,null,null,null,null,"x",null,"","",null,"",null,"x",null,null,"x",null,null,"x",null,null,null,0,null,null,null,null,0]
[null,null,null,null,null,null,null,"x",null,"","",null,"",null,"x",null,null,"x",null,null,"x",null,null,null,0,null,null,null,null,0]
[null,null,null,null,null,null,null,"x",null,"","",null,"",null,"x",null,null,"x",null,null,"x",null,null,null,0,null,null,null,null,0]
[null,null,null,null,null,null,null,"x",null,"","",null,"",null,"x",null,null,"x",null,null,"x",null,null,null,0,null,null,null,null,0]
[null,null,null,null,null,null,null,"x",null,"","",null,"",null,"x",null,null,"x",null,null,"x",null,null,null,0,null,null,null,null,0]
[null,null,null,null,null,null,null,"x",null,"","",null,"",null,"x",null,null,"x",null,null,"x",null,null,null,0,null,null,null,null,0]
[null,null,null,null,null,null,null,"x",null,"","",null,"",null,"x",null,null,"x",null,null,"x",null,null,null,0,null,null,null,null,0]
[null,null,null,null,null,null,null,"x",null,"","",null,"",null,"x",null,null,"x",null,null,"x",null,null,null,0,null,null,null,null,0]
[null,null,null,null,null,null,null,"x",null,"","",null,"",null,"x",null,null,"x",null,null,"x",null,null,null,0,null,null,null,null,0]
[null,null,null,null,null,null,null,"x",null,"","",null,"",null,"x",null,null,"x",null,null,"x",null,null,null,0,null,null,null,null,0]
[null,null,null,null,null,null,null,"x",null,"","",null,"",null,"x",null,null,"x",null,null,"x",null,null,null,0,null,null,null,null,0]
[null,null,null,null,null,null,null,"x",null,"","",null,"",null,"x",null,null,"x",null,null,"x",null,null,null,0,null,null,null,null,0]
[null,null,null,null,null,null,null,"x",null,"","",null,"",null,"x",null,null,"x",null,null,"x",null,null,null,0,null,null,null,null,0]
[null,null,null,null,null,null,null,"x",null,"","",null,"",null,"x",null,null,"x",null,null,"x",null,null,null,0,null,null,null,null,0]
[null,null,null,null,null,null,null,"x",null,"","",null,"",null,"x",null,null,"x",null,null,"x",null,null,null,0,null,null,null,null,0]
[null,null,null,null,null,null,null,"x",null,"","",null,"",null,"x",null,null,"x",null,null,"x",null,null,null,0,null,null,null,null,0]
[null,null,null,null,null,null,null,"x",null,"","",null,"",null,"x",null,null,"x",null,null,"x",null,null,null,0,null,null,null,null,0]
[null,null,null,null,null,null,null,"x",null,"","",null,"",null,"x",null,null,"x",null,null,"x",null,null,null,0,null,null,null,null,0]
[null,null,null,null,null,null,null,"x",null,"","",null,"",null,"x",null,null,"x",null,null,"x",null,null,null,0,null,null,null,null,0]
[null,null,null,null,null,null,null,"x",null,"","",null,"",null,"x",null,null,"x",null,null,"x",null,null,null,0,null,null,null,null,0]
[null,null,null,null,null,null,null,"x",null,"","",null,"",null,"x",null,null,"x",null,null,"x",null,null,null,0,null,null,null,null,0]
[null,null,null,null,null,null,null,"x",null,"","",null,"",null,"x",null,null,"x",null,null,"x",null,null,null,0,null,null,null,null,0]
[null,null,null,null,null,null,null,"x",null,"","",null,"",null,"x",null,null,"x",null,null,"x",null,null,null,0,null,null,null,null,0]
[null,null,null,null,null,null,null,"x",null,"","",null,"",null,"x",null,null,"x",null,null,"x",null,null,null,0,null,null,null,null,0]
[null,null,null,null,null,null,null,"x",null,"","",null,"",null,"x",null,null,"x",null,null,"x",null,null,null,0,null,null,null,null,0]
[null,null,null,null,null,null,null,"x",null,"","",null,"",null,"x",null,null,"x",null,null,"x",null,null,null,0,null,null,null,null,0]
[null,null,null,null,null,null,null,"x",null,"","",null,"",null,"x",null,null,"x",null,null,"x",null,null,null,0,null,null,null,null,0]
[null,null,null,null,null,null,null,"x",null,"","",null,"",null,"x",null,null,"x",null,null,"x",null,null,null,0,null,null,null,null,0]
[null,null,null,null,null,null,null,"x",null,"","",null,"",null,"x",null,null,"x",null,null,"x",null,null,null,0,null,null,null,null,0]
[null,null,null,null,null,null,null,"x",null,"","",null,"",null,"x",null,null,"x",null,null,"x",null,null,null,0,null,null,null,null,0]
[null,null,null,null,null,null,null,"x",null,"","",null,"",null,"x",null,null,"x",null,null,"x",null,null,null,0,null,null,null,null,0]
[null,null,null,null,null,null,null,"x",null,"","",null,"",null,"x",null,null,"x",null,null,"x",null,null,null,0,null,null,null,null,0]
[null,null,null,null,null,null,null,"x",null,"","",null,"",null,"x",null,null,"x",null,null,"x",null,null,null,0,null,null,null,null,0]
[null,null,null,null,null,null,null,"x",null,"","",null,"",null,"x",null,null,"x",null,null,"x",null,null,null,0,null,null,null,null,0]
[null,null,null,null,null,null,null,"x",null,"","",null,"",null,"x",null,null,"x",null,null,"x",null,null,null,0,null,null,null,null,0]
[null,null,null,null,null,null,null,"x",null,"","",null,"",null,"x",null,null,"x",null,null,"x",null,null,null,0,null,null,null,null,0]
[null,null,null,null,null,null,null,"x",null,"","",null,"",null,"x",null,null,"x",null,null,"x",null,null,null,0,null,null,null,null,0]
[null,null,null,null,null,null,null,"x",null,"","",null,"",null,"x",null,null,"x",null,null,"x",null,null,null,0,null,null,null,null,0]
[null,null,null,null,null,null,null,"x",null,"","",null,"",null,"x",null,null,"x",null,null,"x",null,null,null,0,null,null,null,null,0]
[null,null,null,null,null,null,null,"x",null,"","",null,"",null,"x",null,null,"x",null,null,"x",null,null,null,0,null,null,null,null,0]
[null,null,null,null,null,null,null,"x",null,"","",null,"",null,"x",null,null,"x",null,null,"x",null,null,null,0,null,null,null,null,0]
[null,null,null,null,null,null,null,"x",null,"","",null,"",null,"x",null,null,"x",null,null,"x",null,null,null,0,null,null,null,null,0]
[null,null,null,null,null,null,null,"x",null,"","",null,"",null,"x",null,null,"x",null,null,"x",null,null,null,0,null,null,null,null,0]
[null,null,null,null,null,null,null,"x",null,"","",null,"",null,"x",null,null,"x",null,null,"x",null,null,null,0,null,null,null,null,0]
[null,null,null,null,null,null,null,"x",null,"","",null,"",null,"x",null,null,"x",null,null,"x",null,null,null,0,null,null,null,null,0]
[null,null,null,null,null,null,null,"x",null,"","",null,"",null,"x",null,null,"x",null,null,"x",null,null,null,0,null,null,null,null,0]
[null,null,null,null,null,null,null,"x",null,"","",null,"",null,"x",null,null,"x",null,null,"x",null,null,null,0,null,null,null,null,0]
[null,null,null,null,null,null,null,"x",null,"","",null,"",null,"x",null,null,"x",null,null,"x",null,null,null,0,null,null,null,null,0]
[null,null,null,null,null,null,null,"x",null,"","",null,"",null,"x",null,null,"x",null,null,"x",null,null,null,0,null,null,null,null,0]
[null,null,null,null,null,null,null,"x",null,"","",null,"",null,"x",null,null,"x",null,null,"x",null,null,null,0,null,null,null,null,0]
[null,null,null,null,null,null,null,"x",null,"","",null,"",null,"x",null,null,"x",null,null,"x",null,null,null,0,null,null,null,null,0]
[null,null,null,null,null,null,null,"x",null,"","",null,"",null,"x",null,null,"x",null,null,"x",null,null,null,0,null,null,null,null,0]
[null,null,null,null,null,null,null,"x",null,"","",null,"",null,"x",null,null,"x",null,null,"x",null,null,null,0,null,null,null,null,0]
[null,null,null,null,null,null,null,"x",null,"","",null,"",null,"x",null,null,"x",null,null,"x",null,null,null,0,null,null,null,null,0]
[null,null,null,null,null,null,null,"x",null,"","",null,"",null,"x",null,null,"x",null,null,"x",null,null,null,0,null,null,null,null,0]
[null,null,null,null,null,null,null,"x",null,"","",null,"",null,"x",null,null,"x",null,null,"x",null,null,null,0,null,null,null,null,0]
[null,null,null,null,null,null,null,"x",null,"","",null,"",null,"x",null,null,"x",null,null,"x",null,null,null,0,null,null,null,null,0]
[null,null,null,null,null,null,null,"x",null,"","",null,"",null,"x",null,null,"x",null,null,"x",null,null,null,0,null,null,null,null,0]
[null,null,null,null,null,null,null,"x",null,"","",null,"",null,"x",null,null,"x",null,null,"x",null,null,null,0,null,null,null,null,0]
[null,null,null,null,null,null,null,"x",null,"","",null,"",null,"x",null,null,"x",null,null,"x",null,null,null,0,null,null,null,null,0]
[null,null,null,null,null,null,null,"x",null,"","",null,"",null,"x",null,null,"x",null,null,"x",null,null,null,0,null,null,null,null,0]
[null,null,null,null,null,null,null,"x",null,"","",null,"",null,"x",null,null,"x",null,null,"x",null,null,null,0,null,null,null,null,0]
[null,null,null,null,null,null,null,"x",null,"","",null,"",null,"x",null,null,"x",null,null,"x",null,null,null,0,null,null,null,null,0]
[null,null,null,null,null,null,null,"x",null,"","",null,"",null,"x",null,null,"x",null,null,"x",null,null,null,0,null,null,null,null,0]
[null,null,null,null,null,null,null,"x",null,"","",null,"",null,"x",null,null,"x",null,null,"x",null,null,null,0,null,null,null,null,0]
[null,null,null,null,null,null,null,"x",null,"","",null,"",null,"x",null,null,"x",null,null,"x",null,null,null,0,null,null,null,null,0]
[null,null,null,null,null,null,null,"x",null,"","",null,"",null,"x",null,null,"x",null,null,"x",null,null,null,0,null,null,null,null,0]
[null,null,null,null,null,null,null,"x",null,"","",null,"",null,"x",null,null,"x",null,null,"x",null,null,null,0,null,null,null,null,0]
[null,null,null,null,null,null,null,"x",null,"","",null,"",null,"x",null,null,"x",null,null,"x",null,null,null,0,null,null,null,null,0]
[null,null,null,null,null,null,null,"x",null,"","",null,"",null,"x",null,null,"x",null,null,"x",null,null,null,0,null,null,null,null,0]
[null,null,null,null,null,null,null,"x",null,"","",null,"",null,"x",null,null,"x",null,null,"x",null,null,null,0,null,null,null,null,0]
[null,null,null,null,null,null,null,"x",null,"","",null,"",null,"x",null,null,"x",null,null,"x",null,null,null,0,null,null,null,null,0]
[null,null,null,null,null,null,null,"x",null,"","",null,"",null,"x",null,null,"x",null,null,"x",null,null,null,0,null,null,null,null,0]
[null,null,null,null,null,null,null,"x",null,"","",null,"",null,"x",null,null,"x",null,null,"x",null,null,null,0,null,null,null,null,0]
[null,null,null,null,null,null,null,"x",null,"","",null,"",null,"x",null,null,"x",null,null,"x",null,null,null,0,null,null,null,null,0]
[null,null,null,null,null,null,null,"x",null,"","",null,"",null,"x",null,null,"x",null,null,"x",null,null,null,0,null,null,null,null,0]
[null,null,null,null,null,null,null,"x",null,"","",null,"",null,"x",null,null,"x",null,null,"x",null,null,null,0,null,null,null,null,0]
[null,null,null,null,null,null,null,"x",null,"","",null,"",null,"x",null,null,"x",null,null,"x",null,null,null,0,null,null,null,null,0]
[null,null,null,null,null,null,null,"x",null,"","",null,"",null,"x",null,null,"x",null,null,"x",null,null,null,0,null,null,null,null,0]
[null,null,null,null,null,null,null,"x",null,"","",null,"",null,"x",null,null,"x",null,null,"x",null,null,null,0,null,null,null,null,0]
[null,null,null,null,null,null,null,"x",null,"","",null,"",null,"x",null,null,"x",null,null,"x",null,null,null,0,null,null,null,null,0]
[null,null,null,null,null,null,null,"x",null,"","",null,"",null,"x",null,null,"x",null,null,"x",null,null,null,0,null,null,null,null,0]
[null,null,null,null,null,null,null,"x",null,"","",null,"",null,"x",null,null,"x",null,null,"x",null,null,null,0,null,null,null,null,0]
[null,null,null,null,null,null,null,"x",null,"","",null,"",null,"x",null,null,"x",null,null,"x",null,null,null,0,null,null,null,null,0]
[null,null,null,null,null,null,null,"x",null,"","",null,"",null,"x",null,null,"x",null,null,"x",null,null,null,0,null,null,null,null,0]
[null,null,null,null,null,null,null,"x",null,"","",null,"",null,"x",null,null,"x",null,null,"x",null,null,null,0,null,null,null,null,0]
[null,null,null,null,null,null,null,"x",null,"","",null,"",null,"x",null,null,"x",null,null,"x",null,null,null,0,null,null,null,null,0]
[null,null,null,null,null,null,null,"x",null,"","",null,"",null,"x",null,null,"x",null,null,"x",null,null,null,0,null,null,null,null,0]
[null,null,null,null,null,null,null,"x",null,"","",null,"",null,"x",null,null,"x",null,null,"x",null,null,null,0,null,null,null,null,0]
[null,null,null,null,null,null,null,"x",null,"","",null,"",null,"x",null,null,"x",null,null,"x",null,null,null,0,null,null,null,null,0]
[null,null,null,null,null,null,null,"x",null,"","",null,"",null,"x",null,null,"x",null,null,"x",null,null,null,0,null,null,null,null,0]
[null,null,null,null,null,null,null,"x",null,"","",null,"",null,"x",null,null,"x",null,null,"x",null,null,null,0,null,null,null,null,0]
[null,null,null,null,null,null,null,"x",null,"","",null,"",null,"x",null,null,"x",null,null,"x",null,null,null,0,null,null,null,null,0]
[null,null,null,null,null,null,null,"x",null,"","",null,"",null,"x",null,null,"x",null,null,"x",null,null,null,0,null,null,null,null,0]
[null,null,null,null,null,null,null,"x",null,"","",null,"",null,"x",null,null,"x",null,null,"x",null,null,null,0,null,null,null,null,0]
[null,null,null,null,null,null,null,"x",null,"","",null,"",null,"x",null,null,"x",null,null,"x",null,null,null,0,null,null,null,null,0]
[null,null,null,null,null,null,null,"x",null,"","",null,"",null,"x",null,null,"x",null,null,"x",null,null,null,0,null,null,null,null,0]
[null,null,null,null,null,null,null,"x",null,"","",null,"",null,"x",null,null,"x",null,null,"x",null,null,null,0,null,null,null,null,0]
[null,null,null,null,null,null,null,"x",null,"","",null,"",null,"x",null,null,"x",null,null,"x",null,null,null,0,null,null,null,null,0]
[null,null,null,null,null,null,null,"x",null,"","",null,"",null,"x",null,null,"x",null,null,"x",null,null,null,0,null,null,null,null,0]
[null,null,null,null,null,null,null,"x",null,"","",null,"",null,"x",null,null,"x",null,null,"x",null,null,null,0,null,null,null,null,0]
[null,null,null,null,null,null,null,"x",null,"","",null,"",null,"x",null,null,"x",null,null,"x",null,null,null,0,null,null,null,null,0]
[null,null,null,null,null,null,null,"x",null,"","",null,"",null,"x",null,null,"x",null,null,"x",null,null,null,0,null,null,null,null,0]
[null,null,null,null,null,null,null,"x",null,"","",null,"",null,"x",null,null,"x",null,null,"x",null,null,null,0,null,null,null,null,0]
[null,null,null,null,null,null,null,"x",null,"","",null,"",null,"x",null,null,"x",null,null,"x",null,null,null,0,null,null,null,null,0]
[null,null,null,null,null,null,null,"x",null,"","",null,"",null,"x",null,null,"x",null,null,"x",null,null,null,0,null,null,null,null,0]
[null,null,null,null,null,null,null,"x",null,"","",null,"",null,"x",null,null,"x",null,null,"x",null,null,null,0,null,null,null,null,0]
[null,null,null,null,null,null,null,"x",null,"","",null,"",null,"x",null,null,"x",null,null,"x",null,null,null,0,null,null,null,null,0]
[null,null,null,null,null,null,null,"x",null,"","",null,"",null,"x",null,null,"x",null,null,"x",null,null,null,0,null,null,null,null,0]
[null,null,null,null,null,null,null,"x",null,"","",null,"",null,"x",null,null,"x",null,null,"x",null,null,null,0,null,null,null,null,0]
[null,null,null,null,null,null,null,"x",null,"","",null,"",null,"x",null,null,"x",null,null,"x",null,null,null,0,null,null,null,null,0]
[null,null,null,null,null,null,null,"x",null,"","",null,"",null,"x",null,null,"x",null,null,"x",null,null,null,0,null,null,null,null,0]
[null,null,null,null,null,null,null,"x",null,"","",null,"",null,"x",null,null,"x",null,null,"x",null,null,null,0,null,null,null,null,0]
[null,null,null,null,null,null,null,"x",null,"","",null,"",null,"x",null,null,"x",null,null,"x",null,null,null,0,null,null,null,null,0]
[null,null,null,null,null,null,null,"x",null,"","",null,"",null,"x",null,null,"x",null,null,"x",null,null,null,0,null,null,null,null,0]
[null,null,null,null,null,null,null,"x",null,"","",null,"",null,"x",null,null,"x",null,null,"x",null,null,null,0,null,null,null,null,0]
[null,null,null,null,null,null,null,"x",null,"","",null,"",null,"x",null,null,"x",null,null,"x",null,null,null,0,null,null,null,null,0]
[null,null,null,null,null,null,null,"x",null,"","",null,"",null,"x",null,null,"x",null,null,"x",null,null,null,0,null,null,null,null,0]
[null,null,null,null,null,null,null,"x",null,"","",null,"",null,"x",null,null,"x",null,null,"x",null,null,null,0,null,null,null,null,0]
[null,null,null,null,null,null,null,"x",null,"","",null,"",null,"x",null,null,"x",null,null,"x",null,null,null,0,null,null,null,null,0]
[null,null,null,null,null,null,null,"x",null,"","",null,"",null,"x",null,null,"x",null,null,"x",null,null,null,0,null,null,null,null,0]
[null,null,null,null,null,null,null,"x",null,"","",null,"",null,"x",null,null,"x",null,null,"x",null,null,null,0,null,null,null,null,0]
[null,null,null,null,null,null,null,"x",null,"","",null,"",null,"x",null,null,"x",null,null,"x",null,null,null,0,null,null,null,null,0]
[null,null,null,null,null,null,null,"x",null,"","",null,"",null,"x",null,null,"x",null,null,"x",null,null,null,0,null,null,null,null,0]
[null,null,null,null,null,null,null,"x",null,"","",null,"",null,"x",null,null,"x",null,null,"x",null,null,null,0,null,null,null,null,0]
[null,null,null,null,null,null,null,"x",null,"","",null,"",null,"x",null,null,"x",null,null,"x",null,null,null,0,null,null,null,null,0]
[null,null,null,null,null,null,null,"x",null,"","",null,"",null,"x",null,null,"x",null,null,"x",null,null,null,0,null,null,null,null,0]
[null,null,null,null,null,null,null,"x",null,"","",null,"",null,"x",null,null,"x",null,null,"x",null,null,null,0,null,null,null,null,0]
[null,null,null,null,null,null,null,"x",null,"","",null,"",null,"x",null,null,"x",null,null,"x",null,null,null,0,null,null,null,null,0]
[null,null,null,null,null,null,null,"x",null,"","",null,"",null,"x",null,null,"x",null,null,"x",null,null,null,0,null,null,null,null,0]
[null,null,null,null,null,null,null,"x",null,"","",null,"",null,"x",null,null,"x",null,null,"x",null,null,null,0,null,null,null,null,0]
[null,null,null,null,null,null,null,"x",null,"","",null,"",null,"x",null,null,"x",null,null,"x",null,null,null,0,null,null,null,null,0]
[null,null,null,null,null,null,null,"x",null,"","",null,"",null,"x",null,null,"x",null,null,"x",null,null,null,0,null,null,null,null,0]
[null,null,null,null,null,null,null,"x",null,"","",null,"",null,"x",null,null,"x",null,null,"x",null,null,null,0,null,null,null,null,0]
[null,null,null,null,null,null,null,"x",null,"","",null,"",null,"x",null,null,"x",null,null,"x",null,null,null,0,null,null,null,null,0]
[null,null,null,null,null,null,null,"x",null,"","",null,"",null,"x",null,null,"x",null,null,"x",null,null,null,0,null,null,null,null,0]
[null,null,null,null,null,null,null,"x",null,"","",null,"",null,"x",null,null,"x",null,null,"x",null,null,null,0,null,null,null,null,0]
[null,null,null,null,null,null,null,"x",null,"","",null,"",null,"x",null,null,"x",null,null,"x",null,null,null,0,null,null,null,null,0]
[null,null,null,null,null,null,null,"x",null,"","",null,"",null,"x",null,null,"x",null,null,"x",null,null,null,0,null,null,null,null,0]
[null,null,null,null,null,null,null,"x",null,"","",null,"",null,"x",null,null,"x",null,null,"x",null,null,null,0,null,null,null,null,0]
[null,null,null,null,null,null,null,"x",null,"","",null,"",null,"x",null,null,"x",null,null,"x",null,null,null,0,null,null,null,null,0]
[null,null,null,null,null,null,null,"x",null,"","",null,"",null,"x",null,null,"x",null,null,"x",null,null,null,0,null,null,null,null,0]
[null,null,null,null,null,null,null,"x",null,"","",null,"",null,"x",null,null,"x",null,null,"x",null,null,null,0,null,null,null,null,0]
[null,null,null,null,null,null,null,"x",null,"","",null,"",null,"x",null,null,"x",null,null,"x",null,null,null,0,null,null,null,null,0]
[null,null,null,null,null,null,null,"x",null,"","",null,"",null,"x",null,null,"x",null,null,"x",null,null,null,0,null,null,null,null,0]
[null,null,null,null,null,null,null,"x",null,"","",null,"",null,"x",null,null,"x",null,null,"x",null,null,null,0,null,null,null,null,0]
[null,null,null,null,null,null,null,"x",null,"","",null,"",null,"x",null,null,"x",null,null,"x",null,null,null,0,null,null,null,null,0]
[null,null,null,null,null,null,null,"x",null,"","",null,"",null,"x",null,null,"x",null,null,"x",null,null,null,0,null,null,null,null,0]
[null,null,null,null,null,null,null,"x",null,"","",null,"",null,"x",null,null,"x",null,null,"x",null,null,null,0,null,null,null,null,0]
[null,null,null,null,null,null,null,"x",null,"","",null,"",null,"x",null,null,"x",null,null,"x",null,null,null,0,null,null,null,null,0]
[null,null,null,null,null,null,null,"x",null,"","",null,"",null,"x",null,null,"x",null,null,"x",null,null,null,0,null,null,null,null,0]
[null,null,null,null,null,null,null,"x",null,"","",null,"",null,"x",null,null,"x",null,null,"x",null,null,null,0,null,null,null,null,0]
[null,null,null,null,null,null,null,"x",null,"","",null,"",null,"x",null,null,"x",null,null,"x",null,null,null,0,null,null,null,null,0]
[null,null,null,null,null,null,null,"x",null,"","",null,"",null,"x",null,null,"x",null,null,"x",null,null,null,0,null,null,null,null,0]
[null,null,null,null,null,null,null,"x",null,"","",null,"",null,"x",null,null,"x",null,null,"x",null,null,null,0,null,null,null,null,0]
[null,null,null,null,null,null,null,"x",null,"","",null,"",null,"x",null,null,"x",null,null,"x",null,null,null,0,null,null,null,null,0]
[null,null,null,null,null,null,null,"x",null,"","",null,"",null,"x",null,null,"x",null,null,"x",null,null,null,0,null,null,null,null,0]
[null,null,null,null,null,null,null,"x",null,"","",null,"",null,"x",null,null,"x",null,null,"x",null,null,null,0,null,null,null,null,0]
[null,null,null,null,null,null,null,"x",null,"","",null,"",null,"x",null,null,"x",null,null,"x",null,null,null,0,null,null,null,null,0]
[null,null,null,null,null,null,null,"x",null,"","",null,"",null,"x",null,null,"x",null,null,"x",null,null,null,0,null,null,null,null,0]
[null,null,null,null,null,null,null,"x",null,"","",null,"",null,"x",null,null,"x",null,null,"x",null,null,null,0,null,null,null,null,0]
[null,null,null,null,null,null,null,"x",null,"","",null,"",null,"x",null,null,"x",null,null,"x",null,null,null,0,null,null,null,null,0]
[null,null,null,null,null,null,null,"x",null,"","",null,"",null,"x",null,null,"x",null,null,"x",null,null,null,0,null,null,null,null,0]
[null,null,null,null,null,null,null,"x",null,"","",null,"",null,"x",null,null,"x",null,null,"x",null,null,null,0,null,null,null,null,0]
[null,null,null,null,null,null,null,"x",null,"","",null,"",null,"x",null,null,"x",null,null,"x",null,null,null,0,null,null,null,null,0]
[null,null,null,null,null,null,null,"x",null,"","",null,"",null,"x",null,null,"x",null,null,"x",null,null,null,0,null,null,null,null,0]
[null,null,null,null,null,null,null,"x",null,"","",null,"",null,"x",null,null,"x",null,null,"x",null,null,null,0,null,null,null,null,0]
[null,null,null,null,null,null,null,"x",null,"","",null,"",null,"x",null,null,"x",null,null,"x",null,null,null,0,null,null,null,null,0]
[null,null,null,null,null,null,null,"x",null,"","",null,"",null,"x",null,null,"x",null,null,"x",null,null,null,0,null,null,null,null,0]
[null,null,null,null,null,null,null,"x",null,"","",null,"",null,"x",null,null,"x",null,null,"x",null,null,null,0,null,null,null,null,0]
[null,null,null,null,null,null,null,"x",null,"","",null,"",null,"x",null,null,"x",null,null,"x",null,null,null,0,null,null,null,null,0]
[null,null,null,null,null,null,null,"x",null,"","",null,"",null,"x",null,null,"x",null,null,"x",null,null,null,0,null,null,null,null,0]
[null,null,null,null,null,null,null,"x",null,"","",null,"",null,"x",null,null,"x",null,null,"x",null,null,null,0,null,null,null,null,0]
[null,null,null,null,null,null,null,"x",null,"","",null,"",null,"x",null,null,"x",null,null,"x",null,null,null,0,null,null,null,null,0]
[null,null,null,null,null,null,null,"x",null,"","",null,"",null,"x",null,null,"x",null,null,"x",null,null,null,0,null,null,null,null,0]
[null,null,null,null,null,null,null,"x",null,"","",null,"",null,"x",null,null,"x",null,null,"x",null,null,null,0,null,null,null,null,0]
[null,null,null,null,null,null,null,"x",null,"","",null,"",null,"x",null,null,"x",null,null,"x",null,null,null,0,null,null,null,null,0]
[null,null,null,null,null,null,null,"x",null,"","",null,"",null,"x",null,null,"x",null,null,"x",null,null,null,0,null,null,null,null,0]
[null,null,null,null,null,null,null,"x",null,"","",null,"",null,"x",null,null,"x",null,null,"x",null,null,null,0,null,null,null,null,0]
[null,null,null,null,null,null,null,"x",null,"","",null,"",null,"x",null,null,"x",null,null,"x",null,null,null,0,null,null,null,null,0]
[null,null,null,null,null,null,null,"x",null,"","",null,"",null,"x",null,null,"x",null,null,"x",null,null,null,0,null,null,null,null,0]
[null,null,null,null,null,null,null,"x",null,"","",null,"",null,"x",null,null,"x",null,null,"x",null,null,null,0,null,null,null,null,0]
[null,null,null,null,null,null,null,"x",null,"","",null,"",null,"x",null,null,"x",null,null,"x",null,null,null,0,null,null,null,null,0]
[null,null,null,null,null,null,null,"x",null,"","",null,"",null,"x",null,null,"x",null,null,"x",null,null,null,0,null,null,null,null,0]
[null,null,null,null,null,null,null,"x",null,"","",null,"",null,"x",null,null,"x",null,null,"x",null,null,null,0,null,null,null,null,0]
[null,null,null,null,null,null,null,"x",null,"","",null,"",null,"x",null,null,"x",null,null,"x",null,null,null,0,null,null,null,null,0]
[null,null,null,null,null,null,null,"x",null,"","",null,"",null,"x",null,null,"x",null,null,"x",null,null,null,0,null,null,null,null,0]
[null,null,null,null,null,null,null,"x",null,"","",null,"",null,"x",null,null,"x",null,null,"x",null,null,null,0,null,null,null,null,0]
[null,null,null,null,null,null,null,"x",null,"","",null,"",null,"x",null,null,"x",null,null,"x",null,null,null,0,null,null,null,null,0]
[null,null,null,null,null,null,null,"x",null,"","",null,"",null,"x",null,null,"x",null,null,"x",null,null,null,0,null,null,null,null,0]
[null,null,null,null,null,null,null,"x",null,"","",null,"",null,"x",null,null,"x",null,null,"x",null,null,null,0,null,null,null,null,0]
[null,null,null,null,null,null,null,"x",null,"","",null,"",null,"x",null,null,"x",null,null,"x",null,null,null,0,null,null,null,null,0]
[null,null,null,null,null,null,null,"x",null,"","",null,"",null,"x",null,null,"x",null,null,"x",null,null,null,0,null,null,null,null,0]
[null,null,null,null,null,null,null,"x",null,"","",null,"",null,"x",null,null,"x",null,null,"x",null,null,null,0,null,null,null,null,0]
[null,null,null,null,null,null,null,"x",null,"","",null,"",null,"x",null,null,"x",null,null,"x",null,null,null,0,null,null,null,null,0]
[null,null,null,null,null,null,null,"x",null,"","",null,"",null,"x",null,null,"x",null,null,"x",null,null,null,0,null,null,null,null,0]
[null,null,null,null,null,null,null,"x",null,"","",null,"",null,"x",null,null,"x",null,null,"x",null,null,null,0,null,null,null,null,0]
[null,null,null,null,null,null,null,"x",null,"","",null,"",null,"x",null,null,"x",null,null,"x",null,null,null,0,null,null,null,null,0]
[null,null,null,null,null,null,null,"x",null,"","",null,"",null,"x",null,null,"x",null,null,"x",null,null,null,0,null,null,null,null,0]
[null,null,null,null,null,null,null,"x",null,"","",null,"",null,"x",null,null,"x",null,null,"x",null,null,null,0,null,null,null,null,0]
[null,null,null,null,null,null,null,"x",null,"","",null,"",null,"x",null,null,"x",null,null,"x",null,null,null,0,null,null,null,null,0]
[null,null,null,null,null,null,null,"x",null,"","",null,"",null,"x",null,null,"x",null,null,"x",null,null,null,0,null,null,null,null,0]
[null,null,null,null,null,null,null,"x",null,"","",null,"",null,"x",null,null,"x",null,null,"x",null,null,null,0,null,null,null,null,0]
[null,null,null,null,null,null,null,"x",null,"","",null,"",null,"x",null,null,"x",null,null,"x",null,null,null,0,null,null,null,null,0]
[null,null,null,null,null,null,null,"x",null,"","",null,"",null,"x",null,null,"x",null,null,"x",null,null,null,0,null,null,null,null,0]
[null,null,null,null,null,null,null,"x",null,"","",null,"",null,"x",null,null,"x",null,null,"x",null,null,null,0,null,null,null,null,0]
[null,null,null,null,null,null,null,"x",null,"","",null,"",null,"x",null,null,"x",null,null,"x",null,null,null,0,null,null,null,null,0]
[null,null,null,null,null,null,null,"x",null,"","",null,"",null,"x",null,null,"x",null,null,"x",null,null,null,0,null,null,null,null,0]
[null,null,null,null,null,null,null,"x",null,"","",null,"",null,"x",null,null,"x",null,null,"x",null,null,null,0,null,null,null,null,0]
[null,null,null,null,null,null,null,"x",null,"","",null,"",null,"x",null,null,"x",null,null,"x",null,null,null,0,null,null,null,null,0]
[null,null,null,null,null,null,null,"x",null,"","",null,"",null,"x",null,null,"x",null,null,"x",null,null,null,0,null,null,null,null,0]
[null,null,null,null,null,null,null,"x",null,"","",null,"",null,"x",null,null,"x",null,null,"x",null,null,null,0,null,null,null,null,0]
[null,null,null,null,null,null,null,"x",null,"","",null,"",null,"x",null,null,"x",null,null,"x",null,null,null,0,null,null,null,null,0]
[null,null,null,null,null,null,null,"x",null,"","",null,"",null,"x",null,null,"x",null,null,"x",null,null,null,0,null,null,null,null,0]
[null,null,null,null,null,null,null,"x",null,"","",null,"",null,"x",null,null,"x",null,null,"x",null,null,null,0,null,null,null,null,0]
[null,null,null,null,null,null,null,"x",null,"","",null,"",null,"x",null,null,"x",null,null,"x",null,null,null,0,null,null,null,null,0]
[null,null,null,null,null,null,null,"x",null,"","",null,"",null,"x",null,null,"x",null,null,"x",null,null,null,0,null,null,null,null,0]
[null,null,null,null,null,null,null,"x",null,"","",null,"",null,"x",null,null,"x",null,null,"x",null,null,null,0,null,null,null,null,0]
[null,null,null,null,null,null,null,"x",null,"","",null,"",null,"x",null,null,"x",null,null,"x",null,null,null,0,null,null,null,null,0]
[null,null,null,null,null,null,null,"x",null,"","",null,"",null,"x",null,null,"x",null,null,"x",null,null,null,0,null,null,null,null,0]
[null,null,null,null,null,null,null,"x",null,"","",null,"",null,"x",null,null,"x",null,null,"x",null,null,null,0,null,null,null,null,0]
[null,null,null,null,null,null,null,"x",null,"","",null,"",null,"x",null,null,"x",null,null,"x",null,null,null,0,null,null,null,null,0]
[null,null,null,null,null,null,null,"x",null,"","",null,"",null,"x",null,null,"x",null,null,"x",null,null,null,0,null,null,null,null,0]
[null,null,null,null,null,null,null,"x",null,"","",null,"",null,"x",null,null,"x",null,null,"x",null,null,null,0,null,null,null,null,0]
[null,null,null,null,null,null,null,"x",null,"","",null,"",null,"x",null,null,"x",null,null,"x",null,null,null,0,null,null,null,null,0]
[null,null,null,null,null,null,null,"x",null,"","",null,"",null,"x",null,null,"x",null,null,"x",null,null,null,0,null,null,null,null,0]
[null,null,null,null,null,null,null,"x",null,"","",null,"",null,"x",null,null,"x",null,null,"x",null,null,null,0,null,null,null,null,0]
[null,null,null,null,null,null,null,"x",null,"","",null,"",null,"x",null,null,"x",null,null,"x",null,null,null,0,null,null,null,null,0]
[null,null,null,null,null,null,null,"x",null,"","",null,"",null,"x",null,null,"x",null,null,"x",null,null,null,0,null,null,null,null,0]
[null,null,null,null,null,null,null,"x",null,"","",null,"",null,"x",null,null,"x",null,null,"x",null,null,null,0,null,null,null,null,0]
[null,null,null,null,null,null,null,"x",null,"","",null,"",null,"x",null,null,"x",null,null,"x",null,null,null,0,null,null,null,null,0]
[null,null,null,null,null,null,null,"x",null,"","",null,"",null,"x",null,null,"x",null,null,"x",null,null,null,0,null,null,null,null,0]
[null,null,null,null,null,null,null,"x",null,"","",null,"",null,"x",null,null,"x",null,null,"x",null,null,null,0,null,null,null,null,0]
[null,null,null,null,null,null,null,"x",null,"","",null,"",null,"x",null,null,"x",null,null,"x",null,null,null,0,null,null,null,null,0]
[null,null,null,null,null,null,null,"x",null,"","",null,"",null,"x",null,null,"x",null,null,"x",null,null,null,0,null,null,null,null,0]
[null,null,null,null,null,null,null,"x",null,"","",null,"",null,"x",null,null,"x",null,null,"x",null,null,null,0,null,null,null,null,0]
[null,null,null,null,null,null,null,"x",null,"","",null,"",null,"x",null,null,"x",null,null,"x",null,null,null,0,null,null,null,null,0]
[null,null,null,null,null,null,null,"x",null,"","",null,"",null,"x",null,null,"x",null,null,"x",null,null,null,0,null,null,null,null,0]
[null,null,null,null,null,null,null,"x",null,"","",null,"",null,"x",null,null,"x",null,null,"x",null,null,null,0,null,null,null,null,0]
[null,null,null,null,null,null,null,"x",null,"","",null,"",null,"x",null,null,"x",null,null,"x",null,null,null,0,null,null,null,null,0]
[null,null,null,null,null,null,null,"x",null,"","",null,"",null,"x",null,null,"x",null,null,"x",null,null,null,0,null,null,null,null,0]
[null,null,null,null,null,null,null,"x",null,"","",null,"",null,"x",null,null,"x",null,null,"x",null,null,null,0,null,null,null,null,0]
[null,null,null,null,null,null,null,"x",null,"","",null,"",null,"x",null,null,"x",null,null,"x",null,null,null,0,null,null,null,null,0]
[null,null,null,null,null,null,null,"x",null,"","",null,"",null,"x",null,null,"x",null,null,"x",null,null,null,0,null,null,null,null,0]
[null,null,null,null,null,null,null,"x",null,"","",null,"",null,"x",null,null,"x",null,null,"x",null,null,null,0,null,null,null,null,0]
[null,null,null,null,null,null,null,"x",null,"","",null,"",null,"x",null,null,"x",null,null,"x",null,null,null,0,null,null,null,null,0]
[null,null,null,null,null,null,null,"x",null,"","",null,"",null,"x",null,null,"x",null,null,"x",null,null,null,0,null,null,null,null,0]
[null,null,null,null,null,null,null,"x",null,"","",null,"",null,"x",null,null,"x",null,null,"x",null,null,null,0,null,null,null,null,0]
[null,null,null,null,null,null,null,"x",null,"","",null,"",null,"x",null,null,"x",null,null,"x",null,null,null,0,null,null,null,null,0]
[null,null,null,null,null,null,null,"x",null,"","",null,"",null,"x",null,null,"x",null,null,"x",null,null,null,0,null,null,null,null,0]
[null,null,null,null,null,null,null,"x",null,"","",null,"",null,"x",null,null,"x",null,null,"x",null,null,null,0,null,null,null,null,0]
[null,null,null,null,null,null,null,"x",null,"","",null,"",null,"x",null,null,"x",null,null,"x",null,null,null,0,null,null,null,null,0]
[null,null,null,null,null,null,null,"x",null,"","",null,"",null,"x",null,null,"x",null,null,"x",null,null,null,0,null,null,null,null,0]
[null,null,null,null,null,null,null,"x",null,"","",null,"",null,"x",null,null,"x",null,null,"x",null,null,null,0,null,null,null,null,0]
[null,null,null,null,null,null,null,"x",null,"","",null,"",null,"x",null,null,"x",null,null,"x",null,null,null,0,null,null,null,null,0]
[null,null,null,null,null,null,null,"x",null,"","",null,"",null,"x",null,null,"x",null,null,"x",null,null,null,0,null,null,null,null,0]
[null,null,null,null,null,null,null,"x",null,"","",null,"",null,"x",null,null,"x",null,null,"x",null,null,null,0,null,null,null,null,0]
[null,null,null,null,null,null,null,"x",null,"","",null,"",null,"x",null,null,"x",null,null,"x",null,null,null,0,null,null,null,null,0]
[null,null,null,null,null,null,null,"x",null,"","",null,"",null,"x",null,null,"x",null,null,"x",null,null,null,0,null,null,null,null,0]
[null,null,null,null,null,null,null,"x",null,"","",null,"",null,"x",null,null,"x",null,null,"x",null,null,null,0,null,null,null,null,0]
[null,null,null,null,null,null,null,"x",null,"","",null,"",null,"x",null,null,"x",null,null,"x",null,null,null,0,null,null,null,null,0]
[null,null,null,null,null,null,null,"x",null,"","",null,"",null,"x",null,null,"x",null,null,"x",null,null,null,0,null,null,null,null,0]
[null,null,null,null,null,null,null,"x",null,"","",null,"",null,"x",null,null,"x",null,null,"x",null,null,null,0,null,null,null,null,0]
[null,null,null,null,null,null,null,"x",null,"","",null,"",null,"x",null,null,"x",null,null,"x",null,null,null,0,null,null,null,null,0]
[null,null,null,null,null,null,null,"x",null,"","",null,"",null,"x",null,null,"x",null,null,"x",null,null,null,0,null,null,null,null,0]
[null,null,null,null,null,null,null,"x",null,"","",null,"",null,"x",null,null,"x",null,null,"x",null,null,null,0,null,null,null,null,0]
[null,null,null,null,null,null,null,"x",null,"","",null,"",null,"x",null,null,"x",null,null,"x",null,null,null,0,null,null,null,null,0]
[null,null,null,null,null,null,null,"x",null,"","",null,"",null,"x",null,null,"x",null,null,"x",null,null,null,0,null,null,null,null,0]
[null,null,null,null,null,null,null,"x",null,"","",null,"",null,"x",null,null,"x",null,null,"x",null,null,null,0,null,null,null,null,0]
[null,null,null,null,null,null,null,"x",null,"","",null,"",null,"x",null,null,"x",null,null,"x",null,null,null,0,null,null,null,null,0]
[null,null,null,null,null,null,null,"x",null,"","",null,"",null,"x",null,null,"x",null,null,"x",null,null,null,0,null,null,null,null,0]
[null,null,null,null,null,null,null,"x",null,"","",null,"",null,"x",null,null,"x",null,null,"x",null,null,null,0,null,null,null,null,0]
[null,null,null,null,null,null,null,"x",null,"","",null,"",null,"x",null,null,"x",null,null,"x",null,null,null,0,null,null,null,null,0]
[null,null,null,null,null,null,null,"x",null,"","",null,"",null,"x",null,null,"x",null,null,"x",null,null,null,0,null,null,null,null,0]
[null,null,null,null,null,null,null,"x",null,"","",null,"",null,"x",null,null,"x",null,null,"x",null,null,null,0,null,null,null,null,0]
[null,null,null,null,null,null,null,"x",null,"","",null,"",null,"x",null,null,"x",null,null,"x",null,null,null,0,null,null,null,null,0]
[null,null,null,null,null,null,null,"x",null,"","",null,"",null,"x",null,null,"x",null,null,"x",null,null,null,0,null,null,null,null,0]
[null,null,null,null,null,null,null,"x",null,"","",null,"",null,"x",null,null,"x",null,null,"x",null,null,null,0,null,null,null,null,0]
[null,null,null,null,null,null,null,"x",null,"","",null,"",null,"x",null,null,"x",null,null,"x",null,null,null,0,null,null,null,null,0]
[null,null,null,null,null,null,null,"x",null,"","",null,"",null,"x",null,null,"x",null,null,"x",null,null,null,0,null,null,null,null,0]
[null,null,null,null,null,null,null,"x",null,"","",null,"",null,"x",null,null,"x",null,null,"x",null,null,null,0,null,null,null,null,0]
[null,null,null,null,null,null,null,"x",null,"","",null,"",null,"x",null,null,"x",null,null,"x",null,null,null,0,null,null,null,null,0]
[null,null,null,null,null,null,null,"x",null,"","",null,"",null,"x",null,null,"x",null,null,"x",null,null,null,0,null,null,null,null,0]
[null,null,null,null,null,null,null,"x",null,"","",null,"",null,"x",null,null,"x",null,null,"x",null,null,null,0,null,null,null,null,0]
[null,null,null,null,null,null,null,"x",null,"","",null,"",null,"x",null,null,"x",null,null,"x",null,null,null,0,null,null,null,null,0]
[null,null,null,null,null,null,null,"x",null,"","",null,"",null,"x",null,null,"x",null,null,"x",null,null,null,0,null,null,null,null,0]
[null,null,null,null,null,null,null,"x",null,"","",null,"",null,"x",null,null,"x",null,null,"x",null,null,null,0,null,null,null,null,0]
[null,null,null,null,null,null,null,"x",null,"","",null,"",null,"x",null,null,"x",null,null,"x",null,null,null,0,null,null,null,null,0]
[null,null,null,null,null,null,null,"x",null,"","",null,"",null,"x",null,null,"x",null,null,"x",null,null,null,0,null,null,null,null,0]
[null,null,null,null,null,null,null,"x",null,"","",null,"",null,"x",null,null,"x",null,null,"x",null,null,null,0,null,null,null,null,0]
[null,null,null,null,null,null,null,"x",null,"","",null,"",null,"x",null,null,"x",null,null,"x",null,null,null,0,null,null,null,null,0]
[null,null,null,null,null,null,null,"x",null,"","",null,"",null,"x",null,null,"x",null,null,"x",null,null,null,0,null,null,null,null,0]
[null,null,null,null,null,null,null,"x",null,"","",null,"",null,"x",null,null,"x",null,null,"x",null,null,null,0,null,null,null,null,0]
[null,null,null,null,null,null,null,"x",null,"","",null,"",null,"x",null,null,"x",null,null,"x",null,null,null,0,null,null,null,null,0]
[null,null,null,null,null,null,null,"x",null,"","",null,"",null,"x",null,null,"x",null,null,"x",null,null,null,0,null,null,null,null,0]
[null,null,null,null,null,null,null,"x",null,"","",null,"",null,"x",null,null,"x",null,null,"x",null,null,null,0,null,null,null,null,0]
[null,null,null,null,null,null,null,"x",null,"","",null,"",null,"x",null,null,"x",null,null,"x",null,null,null,0,null,null,null,null,0]
[null,null,null,null,null,null,null,"x",null,"","",null,"",null,"x",null,null,"x",null,null,"x",null,null,null,0,null,null,null,null,0]
[null,null,null,null,null,null,null,"x",null,"","",null,"",null,"x",null,null,"x",null,null,"x",null,null,null,0,null,null,null,null,0]
[null,null,null,null,null,null,null,"x",null,"","",null,"",null,"x",null,null,"x",null,null,"x",null,null,null,0,null,null,null,null,0]
[null,null,null,null,null,null,null,"x",null,"","",null,"",null,"x",null,null,"x",null,null,"x",null,null,null,0,null,null,null,null,0]
[null,null,null,null,null,null,null,"x",null,"","",null,"",null,"x",null,null,"x",null,null,"x",null,null,null,0,null,null,null,null,0]
[null,null,null,null,null,null,null,"x",null,"","",null,"",null,"x",null,null,"x",null,null,"x",null,null,null,0,null,null,null,null,0]
[null,null,null,null,null,null,null,"x",null,"","",null,"",null,"x",null,null,"x",null,null,"x",null,null,null,0,null,null,null,null,0]
[null,null,null,null,null,null,null,"x",null,"","",null,"",null,"x",null,null,"x",null,null,"x",null,null,null,0,null,null,null,null,0]
[null,null,null,null,null,null,null,"x",null,"","",null,"",null,"x",null,null,"x",null,null,"x",null,null,null,0,null,null,null,null,0]
[null,null,null,null,null,null,null,"x",null,"","",null,"",null,"x",null,null,"x",null,null,"x",null,null,null,0,null,null,null,null,0]
[null,null,null,null,null,null,null,"x",null,"","",null,"",null,"x",null,null,"x",null,null,"x",null,null,null,0,null,null,null,null,0]
[null,null,null,null,null,null,null,"x",null,"","",null,"",null,"x",null,null,"x",null,null,"x",null,null,null,0,null,null,null,null,0]
[null,null,null,null,null,null,null,"x",null,"","",null,"",null,"x",null,null,"x",null,null,"x",null,null,null,0,null,null,null,null,0]
[null,null,null,null,null,null,null,"x",null,"","",null,"",null,"x",null,null,"x",null,null,"x",null,null,null,0,null,null,null,null,0]
[null,null,null,null,null,null,null,"x",null,"","",null,"",null,"x",null,null,"x",null,null,"x",null,null,null,0,null,null,null,null,0]
[null,null,null,null,null,null,null,"x",null,"","",null,"",null,"x",null,null,"x",null,null,"x",null,null,null,0,null,null,null,null,0]
[null,null,null,null,null,null,null,"x",null,"","",null,"",null,"x",null,null,"x",null,null,"x",null,null,null,0,null,null,null,null,0]
[null,null,null,null,null,null,null,"x",null,"","",null,"",null,"x",null,null,"x",null,null,"x",null,null,null,0,null,null,null,null,0]
[null,null,null,null,null,null,null,"x",null,"","",null,"",null,"x",null,null,"x",null,null,"x",null,null,null,0,null,null,null,null,0]
[null,null,null,null,null,null,null,"x",null,"","",null,"",null,"x",null,null,"x",null,null,"x",null,null,null,0,null,null,null,null,0]
[null,null,null,null,null,null,null,"x",null,"","",null,"",null,"x",null,null,"x",null,null,"x",null,null,null,0,null,null,null,null,0]
[null,null,null,null,null,null,null,"x",null,"","",null,"",null,"x",null,null,"x",null,null,"x",null,null,null,0,null,null,null,null,0]
[null,null,null,null,null,null,null,"x",null,"","",null,"",null,"x",null,null,"x",null,null,"x",null,null,null,0,null,null,null,null,0]
[null,null,null,null,null,null,null,"x",null,"","",null,"",null,"x",null,null,"x",null,null,"x",null,null,null,0,null,null,null,null,0]
[null,null,null,null,null,null,null,"x",null,"","",null,"",null,"x",null,null,"x",null,null,"x",null,null,null,0,null,null,null,null,0]
[null,null,null,null,null,null,null,"x",null,"","",null,"",null,"x",null,null,"x",null,null,"x",null,null,null,0,null,null,null,null,0]
[null,null,null,null,null,null,null,"x",null,"","",null,"",null,"x",null,null,"x",null,null,"x",null,null,null,0,null,null,null,null,0]
[null,null,null,null,null,null,null,"x",null,"","",null,"",null,"x",null,null,"x",null,null,"x",null,null,null,0,null,null,null,null,0]
[null,null,null,null,null,null,null,"x",null,"","",null,"",null,"x",null,null,"x",null,null,"x",null,null,null,0,null,null,null,null,0]
[null,null,null,null,null,null,null,"x",null,"","",null,"",null,"x",null,null,"x",null,null,"x",null,null,null,0,null,null,null,null,0]
[null,null,null,null,null,null,null,"x",null,"","",null,"",null,"x",null,null,"x",null,null,"x",null,null,null,0,null,null,null,null,0]
[null,null,null,null,null,null,null,"x",null,"","",null,"",null,"x",null,null,"x",null,null,"x",null,null,null,0,null,null,null,null,0]
[null,null,null,null,null,null,null,"x",null,"","",null,"",null,"x",null,null,"x",null,null,"x",null,null,null,0,null,null,null,null,0]
[null,null,null,null,null,null,null,"x",null,"","",null,"",null,"x",null,null,"x",null,null,"x",null,null,null,0,null,null,null,null,0]
[null,null,null,null,null,null,null,"x",null,"","",null,"",null,"x",null,null,"x",null,null,"x",null,null,null,0,null,null,null,null,0]
[null,null,null,null,null,null,null,"x",null,"","",null,"",null,"x",null,null,"x",null,null,"x",null,null,null,0,null,null,null,null,0]
[null,null,null,null,null,null,null,"x",null,"","",null,"",null,"x",null,null,"x",null,null,"x",null,null,null,0,null,null,null,null,0]
[null,null,null,null,null,null,null,"x",null,"","",null,"",null,"x",null,null,"x",null,null,"x",null,null,null,0,null,null,null,null,0]
[null,null,null,null,null,null,null,"x",null,"","",null,"",null,"x",null,null,"x",null,null,"x",null,null,null,0,null,null,null,null,0]
[null,null,null,null,null,null,null,"x",null,"","",null,"",null,"x",null,null,"x",null,null,"x",null,null,null,0,null,null,null,null,0]
[null,null,null,null,null,null,null,"x",null,"","",null,"",null,"x",null,null,"x",null,null,"x",null,null,null,0,null,null,null,null,0]
[null,null,null,null,null,null,null,"x",null,"","",null,"",null,"x",null,null,"x",null,null,"x",null,null,null,0,null,null,null,null,0]
[null,null,null,null,null,null,null,"x",null,"","",null,"",null,"x",null,null,"x",null,null,"x",null,null,null,0,null,null,null,null,0]
[null,null,null,null,null,null,null,"x",null,"","",null,"",null,"x",null,null,"x",null,null,"x",null,null,null,0,null,null,null,null,0]
[null,null,null,null,null,null,null,"x",null,"","",null,"",null,"x",null,null,"x",null,null,"x",null,null,null,0,null,null,null,null,0]
[null,null,null,null,null,null,null,"x",null,"","",null,"",null,"x",null,null,"x",null,null,"x",null,null,null,0,null,null,null,null,0]
[null,null,null,null,null,null,null,"x",null,"","",null,"",null,"x",null,null,"x",null,null,"x",null,null,null,0,null,null,null,null,0]
[null,null,null,null,null,null,null,"x",null,"","",null,"",null,"x",null,null,"x",null,null,"x",null,null,null,0,null,null,null,null,0]
[null,null,null,null,null,null,null,"x",null,"","",null,"",null,"x",null,null,"x",null,null,"x",null,null,null,0,null,null,null,null,0]
[null,null,null,null,null,null,null,"x",null,"","",null,"",null,"x",null,null,"x",null,null,"x",null,null,null,0,null,null,null,null,0]
[null,null,null,null,null,null,null,"x",null,"","",null,"",null,"x",null,null,"x",null,null,"x",null,null,null,0,null,null,null,null,0]
[null,null,null,null,null,null,null,"x",null,"","",null,"",null,"x",null,null,"x",null,null,"x",null,null,null,0,null,null,null,null,0]
[null,null,null,null,null,null,null,"x",null,"","",null,"",null,"x",null,null,"x",null,null,"x",null,null,null,0,null,null,null,null,0]
[null,null,null,null,null,null,null,"x",null,"","",null,"",null,"x",null,null,"x",null,null,"x",null,null,null,0,null,null,null,null,0]
[null,null,null,null,null,null,null,"x",null,"","",null,"",null,"x",null,null,"x",null,null,"x",null,null,null,0,null,null,null,null,0]
[null,null,null,null,null,null,null,"x",null,"","",null,"",null,"x",null,null,"x",null,null,"x",null,null,null,0,null,null,null,null,0]
[null,null,null,null,null,null,null,"x",null,"","",null,"",null,"x",null,null,"x",null,null,"x",null,null,null,0,null,null,null,null,0]
[null,null,null,null,null,null,null,"x",null,"","",null,"",null,"x",null,null,"x",null,null,"x",null,null,null,0,null,null,null,null,0]
[null,null,null,null,null,null,null,"x",null,"","",null,"",null,"x",null,null,"x",null,null,"x",null,null,null,0,null,null,null,null,0]
[null,null,null,null,null,null,null,"x",null,"","",null,"",null,"x",null,null,"x",null,null,"x",null,null,null,0,null,null,null,null,0]
[null,null,null,null,null,null,null,"x",null,"","",null,"",null,"x",null,null,"x",null,null,"x",null,null,null,0,null,null,null,null,0]
[null,null,null,null,null,null,null,"x",null,"","",null,"",null,"x",null,null,"x",null,null,"x",null,null,null,0,null,null,null,null,0]
[null,null,null,null,null,null,null,"x",null,"","",null,"",null,"x",null,null,"x",null,null,"x",null,null,null,0,null,null,null,null,0]
[null,null,null,null,null,null,null,"x",null,"","",null,"",null,"x",null,null,"x",null,null,"x",null,null,null,0,null,null,null,null,0]
[null,null,null,null,null,null,null,"x",null,"","",null,"",null,"x",null,null,"x",null,null,"x",null,null,null,0,null,null,null,null,0]
[null,null,null,null,null,null,null,"x",null,"","",null,"",null,"x",null,null,"x",null,null,"x",null,null,null,0,null,null,null,null,0]
[null,null,null,null,null,null,null,"x",null,"","",null,"",null,"x",null,null,"x",null,null,"x",null,null,null,0,null,null,null,null,0]
[null,null,null,null,null,null,null,"x",null,"","",null,"",null,"x",null,null,"x",null,null,"x",null,null,null,0,null,null,null,null,0]
[null,null,null,null,null,null,null,"x",null,"","",null,"",null,"x",null,null,"x",null,null,"x",null,null,null,0,null,null,null,null,0]
[null,null,null,null,null,null,null,"x",null,"","",null,"",null,"x",null,null,"x",null,null,"x",null,null,null,0,null,null,null,null,0]
[null,null,null,null,null,null,null,"x",null,"","",null,"",null,"x",null,null,"x",null,null,"x",null,null,null,0,null,null,null,null,0]
[null,null,null,null,null,null,null,"x",null,"","",null,"",null,"x",null,null,"x",null,null,"x",null,null,null,0,null,null,null,null,0]
[null,null,null,null,null,null,null,"x",null,"","",null,"",null,"x",null,null,"x",null,null,"x",null,null,null,0,null,null,null,null,0]
[null,null,null,null,null,null,null,"x",null,"","",null,"",null,"x",null,null,"x",null,null,"x",null,null,null,0,null,null,null,null,0]
[null,null,null,null,null,null,null,"x",null,"","",null,"",null,"x",null,null,"x",null,null,"x",null,null,null,0,null,null,null,null,0]
[null,null,null,null,null,null,null,"x",null,"","",null,"",null,"x",null,null,"x",null,null,"x",null,null,null,0,null,null,null,null,0]
[null,null,null,null,null,null,null,"x",null,"","",null,"",null,"x",null,null,"x",null,null,"x",null,null,null,0,null,null,null,null,0]
[null,null,null,null,null,null,null,"x",null,"","",null,"",null,"x",null,null,"x",null,null,"x",null,null,null,0,null,null,null,null,0]
[null,null,null,null,null,null,null,"x",null,"","",null,"",null,"x",null,null,"x",null,null,"x",null,null,null,0,null,null,null,null,0]
[null,null,null,null,null,null,null,"x",null,"","",null,"",null,"x",null,null,"x",null,null,"x",null,null,null,0,null,null,null,null,0]
[null,null,null,null,null,null,null,"x",null,"","",null,"",null,"x",null,null,"x",null,null,"x",null,null,null,0,null,null,null,null,0]
[null,null,null,null,null,null,null,"x",null,"","",null,"",null,"x",null,null,"x",null,null,"x",null,null,null,0,null,null,null,null,0]
[null,null,null,null,null,null,null,"x",null,"","",null,"",null,"x",null,null,"x",null,null,"x",null,null,null,0,null,null,null,null,0]
[null,null,null,null,null,null,null,"x",null,"","",null,"",null,"x",null,null,"x",null,null,"x",null,null,null,0,null,null,null,null,0]
[null,null,null,null,null,null,null,"x",null,"","",null,"",null,"x",null,null,"x",null,null,"x",null,null,null,0,null,null,null,null,0]
[null,null,null,null,null,null,null,"x",null,"","",null,"",null,"x",null,null,"x",null,null,"x",null,null,null,0,null,null,null,null,0]
[null,null,null,null,null,null,null,"x",null,"","",null,"",null,"x",null,null,"x",null,null,"x",null,null,null,0,null,null,null,null,0]
[null,null,null,null,null,null,null,"x",null,"","",null,"",null,"x",null,null,"x",null,null,"x",null,null,null,0,null,null,null,null,0]
[null,null,null,null,null,null,null,"x",null,"","",null,"",null,"x",null,null,"x",null,null,"x",null,null,null,0,null,null,null,null,0]
[null,null,null,null,null,null,null,"x",null,"","",null,"",null,"x",null,null,"x",null,null,"x",null,null,null,0,null,null,null,null,0]
[null,null,null,null,null,null,null,"x",null,"","",null,"",null,"x",null,null,"x",null,null,"x",null,null,null,0,null,null,null,null,0]
[null,null,null,null,null,null,null,"x",null,"","",null,"",null,"x",null,null,"x",null,null,"x",null,null,null,0,null,null,null,null,0]
[null,null,null,null,null,null,null,"x",null,"","",null,"",null,"x",null,null,"x",null,null,"x",null,null,null,0,null,null,null,null,0]
[null,null,null,null,null,null,null,"x",null,"","",null,"",null,"x",null,null,"x",null,null,"x",null,null,null,0,null,null,null,null,0]
[null,null,null,null,null,null,null,"x",null,"","",null,"",null,"x",null,null,"x",null,null,"x",null,null,null,0,null,null,null,null,0]
[null,null,null,null,null,null,null,"x",null,"","",null,"",null,"x",null,null,"x",null,null,"x",null,null,null,0,null,null,null,null,0]
[null,null,null,null,null,null,null,"x",null,"","",null,"",null,"x",null,null,"x",null,null,"x",null,null,null,0,null,null,null,null,0]
[null,null,null,null,null,null,null,"x",null,"","",null,"",null,"x",null,null,"x",null,null,"x",null,null,null,0,null,null,null,null,0]
[null,null,null,null,null,null,null,"x",null,"","",null,"",null,"x",null,null,"x",null,null,"x",null,null,null,0,null,null,null,null,0]
[null,null,null,null,null,null,null,"x",null,"","",null,"",null,"x",null,null,"x",null,null,"x",null,null,null,0,null,null,null,null,0]
[null,null,null,null,null,null,null,"x",null,"","",null,"",null,"x",null,null,"x",null,null,"x",null,null,null,0,null,null,null,null,0]
[null,null,null,null,null,null,null,"x",null,"","",null,"",null,"x",null,null,"x",null,null,"x",null,null,null,0,null,null,null,null,0]
[null,null,null,null,null,null,null,"x",null,"","",null,"",null,"x",null,null,"x",null,null,"x",null,null,null,0,null,null,null,null,0]
[null,null,null,null,null,null,null,"x",null,"","",null,"",null,"x",null,null,"x",null,null,"x",null,null,null,0,null,null,null,null,0]
[null,null,null,null,null,null,null,"x",null,"","",null,"",null,"x",null,null,"x",null,null,"x",null,null,null,0,null,null,null,null,0]
[null,null,null,null,null,null,null,"x",null,"","",null,"",null,"x",null,null,"x",null,null,"x",null,null,null,0,null,null,null,null,0]
[null,null,null,null,null,null,null,"x",null,"","",null,"",null,"x",null,null,"x",null,null,"x",null,null,null,0,null,null,null,null,0]
[null,null,null,null,null,null,null,"x",null,"","",null,"",null,"x",null,null,"x",null,null,"x",null,null,null,0,null,null,null,null,0]
[null,null,null,null,null,null,null,"x",null,"","",null,"",null,"x",null,null,"x",null,null,"x",null,null,null,0,null,null,null,null,0]
[null,null,null,null,null,null,null,"x",null,"","",null,"",null,"x",null,null,"x",null,null,"x",null,null,null,0,null,null,null,null,0]
[null,null,null,null,null,null,null,"x",null,"","",null,"",null,"x",null,null,"x",null,null,"x",null,null,null,0,null,null,null,null,0]
[null,null,null,null,null,null,null,"x",null,"","",null,"",null,"x",null,null,"x",null,null,"x",null,null,null,0,null,null,null,null,0]
[null,null,null,null,null,null,null,"x",null,"","",null,"",null,"x",null,null,"x",null,null,"x",null,null,null,0,null,null,null,null,0]
[null,null,null,null,null,null,null,"x",null,"","",null,"",null,"x",null,null,"x",null,null,"x",null,null,null,0,null,null,null,null,0]
[null,null,null,null,null,null,null,"x",null,"","",null,"",null,"x",null,null,"x",null,null,"x",null,null,null,0,null,null,null,null,0]
[null,null,null,null,null,null,null,"x",null,"","",null,"",null,"x",null,null,"x",null,null,"x",null,null,null,0,null,null,null,null,0]
[null,null,null,null,null,null,null,"x",null,"","",null,"",null,"x",null,null,"x",null,null,"x",null,null,null,0,null,null,null,null,0]
[null,null,null,null,null,null,null,"x",null,"","",null,"",null,"x",null,null,"x",null,null,"x",null,null,null,0,null,null,null,null,0]
[null,null,null,null,null,null,null,"x",null,"","",null,"",null,"x",null,null,"x",null,null,"x",null,null,null,0,null,null,null,null,0]
[null,null,null,null,null,null,null,"x",null,"","",null,"",null,"x",null,null,"x",null,null,"x",null,null,null,0,null,null,null,null,0]
[null,null,null,null,null,null,null,"x",null,"","",null,"",null,"x",null,null,"x",null,null,"x",null,null,null,0,null,null,null,null,0]
[null,null,null,null,null,null,null,"x",null,"","",null,"",null,"x",null,null,"x",null,null,"x",null,null,null,0,null,null,null,null,0]
[null,null,null,null,null,null,null,"x",null,"","",null,"",null,"x",null,null,"x",null,null,"x",null,null,null,0,null,null,null,null,0]
[null,null,null,null,null,null,null,"x",null,"","",null,"",null,"x",null,null,"x",null,null,"x",null,null,null,0,null,null,null,null,0]
[null,null,null,null,null,null,null,"x",null,"","",null,"",null,"x",null,null,"x",null,null,"x",null,null,null,0,null,null,null,null,0]
[null,null,null,null,null,null,null,"x",null,"","",null,"",null,"x",null,null,"x",null,null,"x",null,null,null,0,null,null,null,null,0]
[null,null,null,null,null,null,null,"x",null,"","",null,"",null,"x",null,null,"x",null,null,"x",null,null,null,0,null,null,null,null,0]
[null,null,null,null,null,null,null,"x",null,"","",null,"",null,"x",null,null,"x",null,null,"x",null,null,null,0,null,null,null,null,0]
[null,null,null,null,null,null,null,"x",null,"","",null,"",null,"x",null,null,"x",null,null,"x",null,null,null,0,null,null,null,null,0]
[null,null,null,null,null,null,null,"x",null,"","",null,"",null,"x",null,null,"x",null,null,"x",null,null,null,0,null,null,null,null,0]
[null,null,null,null,null,null,null,"x",null,"","",null,"",null,"x",null,null,"x",null,null,"x",null,null,null,0,null,null,null,null,0]
[null,null,null,null,null,null,null,"x",null,"","",null,"",null,"x",null,null,"x",null,null,"x",null,null,null,0,null,null,null,null,0]
[null,null,null,null,null,null,null,"x",null,"","",null,"",null,"x",null,null,"x",null,null,"x",null,null,null,0,null,null,null,null,0]
[null,null,null,null,null,null,null,"x",null,"","",null,"",null,"x",null,null,"x",null,null,"x",null,null,null,0,null,null,null,null,0]
[null,null,null,null,null,null,null,"x",null,"","",null,"",null,"x",null,null,"x",null,null,"x",null,null,null,0,null,null,null,null,0]
[null,null,null,null,null,null,null,"x",null,"","",null,"",null,"x",null,null,"x",null,null,"x",null,null,null,0,null,null,null,null,0]
[null,null,null,null,null,null,null,"x",null,"","",null,"",null,"x",null,null,"x",null,null,"x",null,null,null,0,null,null,null,null,0]
[null,null,null,null,null,null,null,"x",null,"","",null,"",null,"x",null,null,"x",null,null,"x",null,null,null,0,null,null,null,null,0]
[null,null,null,null,null,null,null,"x",null,"","",null,"",null,"x",null,null,"x",null,null,"x",null,null,null,0,null,null,null,null,0]
[null,null,null,null,null,null,null,"x",null,"","",null,"",null,"x",null,null,"x",null,null,"x",null,null,null,0,null,null,null,null,0]
[null,null,null,null,null,null,null,"x",null,"","",null,"",null,"x",null,null,"x",null,null,"x",null,null,null,0,null,null,null,null,0]
[null,null,null,null,null,null,null,"x",null,"","",null,"",null,"x",null,null,"x",null,null,"x",null,null,null,0,null,null,null,null,0]
[null,null,null,null,null,null,null,"x",null,"","",null,"",null,"x",null,null,"x",null,null,"x",null,null,null,0,null,null,null,null,0]
[null,null,null,null,null,null,null,"x",null,"","",null,"",null,"x",null,null,"x",null,null,"x",null,null,null,0,null,null,null,null,0]
[null,null,null,null,null,null,null,"x",null,"","",null,"",null,"x",null,null,"x",null,null,"x",null,null,null,0,null,null,null,null,0]
[null,null,null,null,null,null,null,"x",null,"","",null,"",null,"x",null,null,"x",null,null,"x",null,null,null,0,null,null,null,null,0]
[null,null,null,null,null,null,null,"x",null,"","",null,"",null,"x",null,null,"x",null,null,"x",null,null,null,0,null,null,null,null,0]
[null,null,null,null,null,null,null,"x",null,"","",null,"",null,"x",null,null,"x",null,null,"x",null,null,null,0,null,null,null,null,0]
[null,null,null,null,null,null,null,"x",null,"","",null,"",null,"x",null,null,"x",null,null,"x",null,null,null,0,null,null,null,null,0]
[null,null,null,null,null,null,null,"x",null,"","",null,"",null,"x",null,null,"x",null,null,"x",null,null,null,0,null,null,null,null,0]
[null,null,null,null,null,null,null,"x",null,"","",null,"",null,"x",null,null,"x",null,null,"x",null,null,null,0,null,null,null,null,0]
[null,null,null,null,null,null,null,"x",null,"","",null,"",null,"x",null,null,"x",null,null,"x",null,null,null,0,null,null,null,null,0]
[null,null,null,null,null,null,null,"x",null,"","",null,"",null,"x",null,null,"x",null,null,"x",null,null,null,0,null,null,null,null,0]
[null,null,null,null,null,null,null,"x",null,"","",null,"",null,"x",null,null,"x",null,null,"x",null,null,null,0,null,null,null,null,0]
[null,null,null,null,null,null,null,"x",null,"","",null,"",null,"x",null,null,"x",null,null,"x",null,null,null,0,null,null,null,null,0]
[null,null,null,null,null,null,null,"x",null,"","",null,"",null,"x",null,null,"x",null,null,"x",null,null,null,0,null,null,null,null,0]
[null,null,null,null,null,null,null,"x",null,"","",null,"",null,"x",null,null,"x",null,null,"x",null,null,null,0,null,null,null,null,0]
[null,null,null,null,null,null,null,"x",null,"","",null,"",null,"x",null,null,"x",null,null,"x",null,null,null,0,null,null,null,null,0]
[null,null,null,null,null,null,null,"x",null,"","",null,"",null,"x",null,null,"x",null,null,"x",null,null,null,0,null,null,null,null,0]
[null,null,null,null,null,null,null,"x",null,"","",null,"",null,"x",null,null,"x",null,null,"x",null,null,null,0,null,null,null,null,0]
[null,null,null,null,null,null,null,"x",null,"","",null,"",null,"x",null,null,"x",null,null,"x",null,null,null,0,null,null,null,null,0]
[null,null,null,null,null,null,null,"x",null,"","",null,"",null,"x",null,null,"x",null,null,"x",null,null,null,0,null,null,null,null,0]
[null,null,null,null,null,null,null,"x",null,"","",null,"",null,"x",null,null,"x",null,null,"x",null,null,null,0,null,null,null,null,0]
[null,null,null,null,null,null,null,"x",null,"","",null,"",null,"x",null,null,"x",null,null,"x",null,null,null,0,null,null,null,null,0]
[null,null,null,null,null,null,null,"x",null,"","",null,"",null,"x",null,null,"x",null,null,"x",null,null,null,0,null,null,null,null,0]
[null,null,null,null,null,null,null,"x",null,"","",null,"",null,"x",null,null,"x",null,null,"x",null,null,null,0,null,null,null,null,0]
[null,null,null,null,null,null,null,"x",null,"","",null,"",null,"x",null,null,"x",null,null,"x",null,null,null,0,null,null,null,null,0]
[null,null,null,null,null,null,null,"x",null,"","",null,"",null,"x",null,null,"x",null,null,"x",null,null,null,0,null,null,null,null,0]
[null,null,null,null,null,null,null,"x",null,"","",null,"",null,"x",null,null,"x",null,null,"x",null,null,null,0,null,null,null,null,0]
[null,null,null,null,null,null,null,"x",null,"","",null,"",null,"x",null,null,"x",null,null,"x",null,null,null,0,null,null,null,null,0]
[null,null,null,null,null,null,null,"x",null,"","",null,"",null,"x",null,null,"x",null,null,"x",null,null,null,0,null,null,null,null,0]
[null,null,null,null,null,null,null,"x",null,"","",null,"",null,"x",null,null,"x",null,null,"x",null,null,null,0,null,null,null,null,0]
[null,null,null,null,null,null,null,"x",null,"","",null,"",null,"x",null,null,"x",null,null,"x",null,null,null,0,null,null,null,null,0]
[null,null,null,null,null,null,null,"x",null,"","",null,"",null,"x",null,null,"x",null,null,"x",null,null,null,0,null,null,null,null,0]
[null,null,null,null,null,null,null,"x",null,"","",null,"",null,"x",null,null,"x",null,null,"x",null,null,null,0,null,null,null,null,0]
[null,null,null,null,null,null,null,"x",null,"","",null,"",null,"x",null,null,"x",null,null,"x",null,null,null,0,null,null,null,null,0]
[null,null,null,null,null,null,null,"x",null,"","",null,"",null,"x",null,null,"x",null,null,"x",null,null,null,0,null,null,null,null,0]
[null,null,null,null,null,null,null,"x",null,"","",null,"",null,"x",null,null,"x",null,null,"x",null,null,null,0,null,null,null,null,0]
[null,null,null,null,null,null,null,"x",null,"","",null,"",null,"x",null,null,"x",null,null,"x",null,null,null,0,null,null,null,null,0]
[null,null,null,null,null,null,null,"x",null,"","",null,"",null,"x",null,null,"x",null,null,"x",null,null,null,0,null,null,null,null,0]
[null,null,null,null,null,null,null,"x",null,"","",null,"",null,"x",null,null,"x",null,null,"x",null,null,null,0,null,null,null,null,0]
[null,null,null,null,null,null,null,"x",null,"","",null,"",null,"x",null,null,"x",null,null,"x",null,null,null,0,null,null,null,null,0]
[null,null,null,null,null,null,null,"x",null,"","",null,"",null,"x",null,null,"x",null,null,"x",null,null,null,0,null,null,null,null,0]
[null,null,null,null,null,null,null,"x",null,"","",null,"",null,"x",null,null,"x",null,null,"x",null,null,null,0,null,null,null,null,0]
[null,null,null,null,null,null,null,"x",null,"","",null,"",null,"x",null,null,"x",null,null,"x",null,null,null,0,null,null,null,null,0]
[null,null,null,null,null,null,null,"x",null,"","",null,"",null,"x",null,null,"x",null,null,"x",null,null,null,0,null,null,null,null,0]
[null,null,null,null,null,null,null,"x",null,"","",null,"",null,"x",null,null,"x",null,null,"x",null,null,null,0,null,null,null,null,0]
[null,null,null,null,null,null,null,"x",null,"","",null,"",null,"x",null,null,"x",null,null,"x",null,null,null,0,null,null,null,null,0]
[null,null,null,null,null,null,null,"x",null,"","",null,"",null,"x",null,null,"x",null,null,"x",null,null,null,0,null,null,null,null,0]
[null,null,null,null,null,null,null,"x",null,"","",null,"",null,"x",null,null,"x",null,null,"x",null,null,null,0,null,null,null,null,0]
[null,null,null,null,null,null,null,"x",null,"","",null,"",null,"x",null,null,"x",null,null,"x",null,null,null,0,null,null,null,null,0]
[null,null,null,null,null,null,null,"x",null,"","",null,"",null,"x",null,null,"x",null,null,"x",null,null,null,0,null,null,null,null,0]
[null,null,null,null,null,null,null,"x",null,"","",null,"",null,"x",null,null,"x",null,null,"x",null,null,null,0,null,null,null,null,0]
[null,null,null,null,null,null,null,"x",null,"","",null,"",null,"x",null,null,"x",null,null,"x",null,null,null,0,null,null,null,null,0]
[null,null,null,null,null,null,null,"x",null,"","",null,"",null,"x",null,null,"x",null,null,"x",null,null,null,0,null,null,null,null,0]
[null,null,null,null,null,null,null,"x",null,"","",null,"",null,"x",null,null,"x",null,null,"x",null,null,null,0,null,null,null,null,0]
[null,null,null,null,null,null,null,"x",null,"","",null,"",null,"x",null,null,"x",null,null,"x",null,null,null,0,null,null,null,null,0]
[null,null,null,null,null,null,null,"x",null,"","",null,"",null,"x",null,null,"x",null,null,"x",null,null,null,0,null,null,null,null,0]
[null,null,null,null,null,null,null,"x",null,"","",null,"",null,"x",null,null,"x",null,null,"x",null,null,null,0,null,null,null,null,0]
[null,null,null,null,null,null,null,"x",null,"","",null,"",null,"x",null,null,"x",null,null,"x",null,null,null,0,null,null,null,null,0]
[null,null,null,null,null,null,null,"x",null,"","",null,"",null,"x",null,null,"x",null,null,"x",null,null,null,0,null,null,null,null,0]
[null,null,null,null,null,null,null,"x",null,"","",null,"",null,"x",null,null,"x",null,null,"x",null,null,null,0,null,null,null,null,0]
[null,null,null,null,null,null,null,"x",null,"","",null,"",null,"x",null,null,"x",null,null,"x",null,null,null,0,null,null,null,null,0]
[null,null,null,null,null,null,null,"x",null,"","",null,"",null,"x",null,null,"x",null,null,"x",null,null,null,0,null,null,null,null,0]
[null,null,null,null,null,null,null,"x",null,"","",null,"",null,"x",null,null,"x",null,null,"x",null,null,null,0,null,null,null,null,0]
[null,null,null,null,null,null,null,"x",null,"","",null,"",null,"x",null,null,"x",null,null,"x",null,null,null,0,null,null,null,null,0]
[null,null,null,null,null,null,null,"x",null,"","",null,"",null,"x",null,null,"x",null,null,"x",null,null,null,0,null,null,null,null,0]
[null,null,null,null,null,null,null,"x",null,"","",null,"",null,"x",null,null,"x",null,null,"x",null,null,null,0,null,null,null,null,0]
[null,null,null,null,null,null,null,"x",null,"","",null,"",null,"x",null,null,"x",null,null,"x",null,null,null,0,null,null,null,null,0]
[null,null,null,null,null,null,null,"x",null,"","",null,"",null,"x",null,null,"x",null,null,"x",null,null,null,0,null,null,null,null,0]
[null,null,null,null,null,null,null,"x",null,"","",null,"",null,"x",null,null,"x",null,null,"x",null,null,null,0,null,null,null,null,0]
[null,null,null,null,null,null,null,"x",null,"","",null,"",null,"x",null,null,"x",null,null,"x",null,null,null,0,null,null,null,null,0]
[null,null,null,null,null,null,null,"x",null,"","",null,"",null,"x",null,null,"x",null,null,"x",null,null,null,0,null,null,null,null,0]
[null,null,null,null,null,null,null,"x",null,"","",null,"",null,"x",null,null,"x",null,null,"x",null,null,null,0,null,null,null,null,0]
[null,null,null,null,null,null,null,"x",null,"","",null,"",null,"x",null,null,"x",null,null,"x",null,null,null,0,null,null,null,null,0]
[null,null,null,null,null,null,null,"x",null,"","",null,"",null,"x",null,null,"x",null,null,"x",null,null,null,0,null,null,null,null,0]
[null,null,null,null,null,null,null,"x",null,"","",null,"",null,"x",null,null,"x",null,null,"x",null,null,null,0,null,null,null,null,0]
[null,null,null,null,null,null,null,"x",null,"","",null,"",null,"x",null,null,"x",null,null,"x",null,null,null,0,null,null,null,null,0]
[null,null,null,null,null,null,null,"x",null,"","",null,"",null,"x",null,null,"x",null,null,"x",null,null,null,0,null,null,null,null,0]
[null,null,null,null,null,null,null,"x",null,"","",null,"",null,"x",null,null,"x",null,null,"x",null,null,null,0,null,null,null,null,0]
[null,null,null,null,null,null,null,"x",null,"","",null,"",null,"x",null,null,"x",null,null,"x",null,null,null,0,null,null,null,null,0]
[null,null,null,null,null,null,null,"x",null,"","",null,"",null,"x",null,null,"x",null,null,"x",null,null,null,0,null,null,null,null,0]
[null,null,null,null,null,null,null,"x",null,"","",null,"",null,"x",null,null,"x",null,null,"x",null,null,null,0,null,null,null,null,0]
[null,null,null,null,null,null,null,"x",null,"","",null,"",null,"x",null,null,"x",null,null,"x",null,null,null,0,null,null,null,null,0]
[null,null,null,null,null,null,null,"x",null,"","",null,"",null,"x",null,null,"x",null,null,"x",null,null,null,0,null,null,null,null,0]
[null,null,null,null,null,null,null,"x",null,"","",null,"",null,"x",null,null,"x",null,null,"x",null,null,null,0,null,null,null,null,0]
[null,null,null,null,null,null,null,"x",null,"","",null,"",null,"x",null,null,"x",null,null,"x",null,null,null,0,null,null,null,null,0]
[null,null,null,null,null,null,null,"x",null,"","",null,"",null,"x",null,null,"x",null,null,"x",null,null,null,0,null,null,null,null,0]
[null,null,null,null,null,null,null,"x",null,"","",null,"",null,"x",null,null,"x",null,null,"x",null,null,null,0,null,null,null,null,0]
[null,null,null,null,null,null,null,"x",null,"","",null,"",null,"x",null,null,"x",null,null,"x",null,null,null,0,null,null,null,null,0]
[null,null,null,null,null,null,null,"x",null,"","",null,"",null,"x",null,null,"x",null,null,"x",null,null,null,0,null,null,null,null,0]
[null,null,null,null,null,null,null,"x",null,"","",null,"",null,"x",null,null,"x",null,null,"x",null,null,null,0,null,null,null,null,0]
[null,null,null,null,null,null,null,"x",null,"","",null,"",null,"x",null,null,"x",null,null,"x",null,null,null,0,null,null,null,null,0]
[null,null,null,null,null,null,null,"x",null,"","",null,"",null,"x",null,null,"x",null,null,"x",null,null,null,0,null,null,null,null,0]
[null,null,null,null,null,null,null,"x",null,"","",null,"",null,"x",null,null,"x",null,null,"x",null,null,null,0,null,null,null,null,0]
[null,null,null,null,null,null,null,"x",null,"","",null,"",null,"x",null,null,"x",null,null,"x",null,null,null,0,null,null,null,null,0]
[null,null,null,null,null,null,null,"x",null,"","",null,"",null,"x",null,null,"x",null,null,"x",null,null,null,0,null,null,null,null,0]
[null,null,null,null,null,null,null,"x",null,"","",null,"",null,"x",null,null,"x",null,null,"x",null,null,null,0,null,null,null,null,0]
[null,null,null,null,null,null,null,"x",null,"","",null,"",null,"x",null,null,"x",null,null,"x",null,null,null,0,null,null,null,null,0]
[null,null,null,null,null,null,null,"x",null,"","",null,"",null,"x",null,null,"x",null,null,"x",null,null,null,0,null,null,null,null,0]
[null,null,null,null,null,null,null,"x",null,"","",null,"",null,"x",null,null,"x",null,null,"x",null,null,null,0,null,null,null,null,0]
[null,null,null,null,null,null,null,"x",null,"","",null,"",null,"x",null,null,"x",null,null,"x",null,null,null,0,null,null,null,null,0]
[null,null,null,null,null,null,null,"x",null,"","",null,"",null,"x",null,null,"x",null,null,"x",null,null,null,0,null,null,null,null,0]
[null,null,null,null,null,null,null,"x",null,"","",null,"",null,"x",null,null,"x",null,null,"x",null,null,null,0,null,null,null,null,0]
[null,null,null,null,null,null,null,"x",null,"","",null,"",null,"x",null,null,"x",null,null,"x",null,null,null,0,null,null,null,null,0]
[null,null,null,null,null,null,null,"x",null,"","",null,"",null,"x",null,null,"x",null,null,"x",null,null,null,0,null,null,null,null,0]
[null,null,null,null,null,null,null,"x",null,"","",null,"",null,"x",null,null,"x",null,null,"x",null,null,null,0,null,null,null,null,0]
[null,null,null,null,null,null,null,"x",null,"","",null,"",null,"x",null,null,"x",null,null,"x",null,null,null,0,null,null,null,null,0]
[null,null,null,null,null,null,null,"x",null,"","",null,"",null,"x",null,null,"x",null,null,"x",null,null,null,0,null,null,null,null,0]
[null,null,null,null,null,null,null,"x",null,"","",null,"",null,"x",null,null,"x",null,null,"x",null,null,null,0,null,null,null,null,0]
[null,null,null,null,null,null,null,"x",null,"","",null,"",null,"x",null,null,"x",null,null,"x",null,null,null,0,null,null,null,null,0]
[null,null,null,null,null,null,null,"x",null,"","",null,"",null,"x",null,null,"x",null,null,"x",null,null,null,0,null,null,null,null,0]
[null,null,null,null,null,null,null,"x",null,"","",null,"",null,"x",null,null,"x",null,null,"x",null,null,null,0,null,null,null,null,0]
[null,null,null,null,null,null,null,"x",null,"","",null,"",null,"x",null,null,"x",null,null,"x",null,null,null,0,null,null,null,null,0]
[null,null,null,null,null,null,null,"x",null,"","",null,"",null,"x",null,null,"x",null,null,"x",null,null,null,0,null,null,null,null,0]
[null,null,null,null,null,null,null,"x",null,"","",null,"",null,"x",null,null,"x",null,null,"x",null,null,null,0,null,null,null,null,0]
[null,null,null,null,null,null,null,"x",null,"","",null,"",null,"x",null,null,"x",null,null,"x",null,null,null,0,null,null,null,null,0]
[null,null,null,null,null,null,null,"x",null,"","",null,"",null,"x",null,null,"x",null,null,"x",null,null,null,0,null,null,null,null,0]
[null,null,null,null,null,null,null,"x",null,"","",null,"",null,"x",null,null,"x",null,null,"x",null,null,null,0,null,null,null,null,0]
[null,null,null,null,null,null,null,"x",null,"","",null,"",null,"x",null,null,"x",null,null,"x",null,null,null,0,null,null,null,null,0]
[null,null,null,null,null,null,null,"x",null,"","",null,"",null,"x",null,null,"x",null,null,"x",null,null,null,0,null,null,null,null,0]
[null,null,null,null,null,null,null,"x",null,"","",null,"",null,"x",null,null,"x",null,null,"x",null,null,null,0,null,null,null,null,0]
[null,null,null,null,null,null,null,"x",null,"","",null,"",null,"x",null,null,"x",null,null,"x",null,null,null,0,null,null,null,null,0]
[null,null,null,null,null,null,null,"x",null,"","",null,"",null,"x",null,null,"x",null,null,"x",null,null,null,0,null,null,null,null,0]
[null,null,null,null,null,null,null,"x",null,"","",null,"",null,"x",null,null,"x",null,null,"x",null,null,null,0,null,null,null,null,0]
[null,null,null,null,null,null,null,"x",null,"","",null,"",null,"x",null,null,"x",null,null,"x",null,null,null,0,null,null,null,null,0]
[null,null,null,null,null,null,null,"x",null,"","",null,"",null,"x",null,null,"x",null,null,"x",null,null,null,0,null,null,null,null,0]
[null,null,null,null,null,null,null,"x",null,"","",null,"",null,"x",null,null,"x",null,null,"x",null,null,null,0,null,null,null,null,0]
[null,null,null,null,null,null,null,"x",null,"","",null,"",null,"x",null,null,"x",null,null,"x",null,null,null,0,null,null,null,null,0]
[null,null,null,null,null,null,null,"x",null,"","",null,"",null,"x",null,null,"x",null,null,"x",null,null,null,0,null,null,null,null,0]
[null,null,null,null,null,null,null,"x",null,"","",null,"",null,"x",null,null,"x",null,null,"x",null,null,null,0,null,null,null,null,0]
[null,null,null,null,null,null,null,"x",null,"","",null,"",null,"x",null,null,"x",null,null,"x",null,null,null,0,null,null,null,null,0]
[null,null,null,null,null,null,null,"x",null,"","",null,"",null,"x",null,null,"x",null,null,"x",null,null,null,0,null,null,null,null,0]
[null,null,null,null,null,null,null,"x",null,"","",null,"",null,"x",null,null,"x",null,null,"x",null,null,null,0,null,null,null,null,0]
[null,null,null,null,null,null,null,"x",null,"","",null,"",null,"x",null,null,"x",null,null,"x",null,null,null,0,null,null,null,null,0]
[null,null,null,null,null,null,null,"x",null,"","",null,"",null,"x",null,null,"x",null,null,"x",null,null,null,0,null,null,null,null,0]
[null,null,null,null,null,null,null,"x",null,"","",null,"",null,"x",null,null,"x",null,null,"x",null,null,null,0,null,null,null,null,0]
[null,null,null,null,null,null,null,"x",null,"","",null,"",null,"x",null,null,"x",null,null,"x",null,null,null,0,null,null,null,null,0]
[null,null,null,null,null,null,null,"x",null,"","",null,"",null,"x",null,null,"x",null,null,"x",null,null,null,0,null,null,null,null,0]
[null,null,null,null,null,null,null,"x",null,"","",null,"",null,"x",null,null,"x",null,null,"x",null,null,null,0,null,null,null,null,0]
[null,null,null,null,null,null,null,"x",null,"","",null,"",null,"x",null,null,"x",null,null,"x",null,null,null,0,null,null,null,null,0]
[null,null,null,null,null,null,null,"x",null,"","",null,"",null,"x",null,null,"x",null,null,"x",null,null,null,0,null,null,null,null,0]
[null,null,null,null,null,null,null,"x",null,"","",null,"",null,"x",null,null,"x",null,null,"x",null,null,null,0,null,null,null,null,0]
[null,null,null,null,null,null,null,"x",null,"","",null,"",null,"x",null,null,"x",null,null,"x",null,null,null,0,null,null,null,null,0]
[null,null,null,null,null,null,null,"x",null,"","",null,"",null,"x",null,null,"x",null,null,"x",null,null,null,0,null,null,null,null,0]
[null,null,null,null,null,null,null,"x",null,"","",null,"",null,"x",null,null,"x",null,null,"x",null,null,null,0,null,null,null,null,0]
[null,null,null,null,null,null,null,"x",null,"","",null,"",null,"x",null,null,"x",null,null,"x",null,null,null,0,null,null,null,null,0]
[null,null,null,null,null,null,null,"x",null,"","",null,"",null,"x",null,null,"x",null,null,"x",null,null,null,0,null,null,null,null,0]
[null,null,null,null,null,null,null,"x",null,"","",null,"",null,"x",null,null,"x",null,null,"x",null,null,null,0,null,null,null,null,0]
[null,null,null,null,null,null,null,"x",null,"","",null,"",null,"x",null,null,"x",null,null,"x",null,null,null,0,null,null,null,null,0]
[null,null,null,null,null,null,null,"x",null,"","",null,"",null,"x",null,null,"x",null,null,"x",null,null,null,0,null,null,null,null,0]
[null,null,null,null,null,null,null,"x",null,"","",null,"",null,"x",null,null,"x",null,null,"x",null,null,null,0,null,null,null,null,0]
[null,null,null,null,null,null,null,"x",null,"","",null,"",null,"x",null,null,"x",null,null,"x",null,null,null,0,null,null,null,null,0]
[null,null,null,null,null,null,null,"x",null,"","",null,"",null,"x",null,null,"x",null,null,"x",null,null,null,0,null,null,null,null,0]
[null,null,null,null,null,null,null,"x",null,"","",null,"",null,"x",null,null,"x",null,null,"x",null,null,null,0,null,null,null,null,0]
[null,null,null,null,null,null,null,"x",null,"","",null,"",null,"x",null,null,"x",null,null,"x",null,null,null,0,null,null,null,null,0]
[null,null,null,null,null,null,null,"x",null,"","",null,"",null,"x",null,null,"x",null,null,"x",null,null,null,0,null,null,null,null,0]
[null,null,null,null,null,null,null,"x",null,"","",null,"",null,"x",null,null,"x",null,null,"x",null,null,null,0,null,null,null,null,0]
[null,null,null,null,null,null,null,"x",null,"","",null,"",null,"x",null,null,"x",null,null,"x",null,null,null,0,null,null,null,null,0]
[null,null,null,null,null,null,null,"x",null,"","",null,"",null,"x",null,null,"x",null,null,"x",null,null,null,0,null,null,null,null,0]
[null,null,null,null,null,null,null,"x",null,"","",null,"",null,"x",null,null,"x",null,null,"x",null,null,null,0,null,null,null,null,0]
[null,null,null,null,null,null,null,"x",null,"","",null,"",null,"x",null,null,"x",null,null,"x",null,null,null,0,null,null,null,null,0]
[null,null,null,null,null,null,null,"x",null,"","",null,"",null,"x",null,null,"x",null,null,"x",null,null,null,0,null,null,null,null,0]
[null,null,null,null,null,null,null,"x",null,"","",null,"",null,"x",null,null,"x",null,null,"x",null,null,null,0,null,null,null,null,0]
[null,null,null,null,null,null,null,"x",null,"","",null,"",null,"x",null,null,"x",null,null,"x",null,null,null,0,null,null,null,null,0]
[null,null,null,null,null,null,null,"x",null,"","",null,"",null,"x",null,null,"x",null,null,"x",null,null,null,0,null,null,null,null,0]
[null,null,null,null,null,null,null,"x",null,"","",null,"",null,"x",null,null,"x",null,null,"x",null,null,null,0,null,null,null,null,0]
[null,null,null,null,null,null,null,"x",null,"","",null,"",null,"x",null,null,"x",null,null,"x",null,null,null,0,null,null,null,null,0]
[null,null,null,null,null,null,null,"x",null,"","",null,"",null,"x",null,null,"x",null,null,"x",null,null,null,0,null,null,null,null,0]
[null,null,null,null,null,null,null,"x",null,"","",null,"",null,"x",null,null,"x",null,null,"x",null,null,null,0,null,null,null,null,0]
[null,null,null,null,null,null,null,"x",null,"","",null,"",null,"x",null,null,"x",null,null,"x",null,null,null,0,null,null,null,null,0]
[null,null,null,null,null,null,null,"x",null,"","",null,"",null,"x",null,null,"x",null,null,"x",null,null,null,0,null,null,null,null,0]
[null,null,null,null,null,null,null,"x",null,"","",null,"",null,"x",null,null,"x",null,null,"x",null,null,null,0,null,null,null,null,0]
[null,null,null,null,null,null,null,"x",null,"","",null,"",null,"x",null,null,"x",null,null,"x",null,null,null,0,null,null,null,null,0]
[null,null,null,null,null,null,null,"x",null,"","",null,"",null,"x",null,null,"x",null,null,"x",null,null,null,0,null,null,null,null,0]
[null,null,null,null,null,null,null,"x",null,"","",null,"",null,"x",null,null,"x",null,null,"x",null,null,null,0,null,null,null,null,0]
[null,null,null,null,null,null,null,"x",null,"","",null,"",null,"x",null,null,"x",null,null,"x",null,null,null,0,null,null,null,null,0]
[null,null,null,null,null,null,null,"x",null,"","",null,"",null,"x",null,null,"x",null,null,"x",null,null,null,0,null,null,null,null,0]
[null,null,null,null,null,null,null,"x",null,"","",null,"",null,"x",null,null,"x",null,null,"x",null,null,null,0,null,null,null,null,0]
[null,null,null,null,null,null,null,"x",null,"","",null,"",null,"x",null,null,"x",null,null,"x",null,null,null,0,null,null,null,null,0]
[null,null,null,null,null,null,null,"x",null,"","",null,"",null,"x",null,null,"x",null,null,"x",null,null,null,0,null,null,null,null,0]
[null,null,null,null,null,null,null,"x",null,"","",null,"",null,"x",null,null,"x",null,null,"x",null,null,null,0,null,null,null,null,0]
[null,null,null,null,null,null,null,"x",null,"","",null,"",null,"x",null,null,"x",null,null,"x",null,null,null,0,null,null,null,null,0]
[null,null,null,null,null,null,null,"x",null,"","",null,"",null,"x",null,null,"x",null,null,"x",null,null,null,0,null,null,null,null,0]
[null,null,null,null,null,null,null,"x",null,"","",null,"",null,"x",null,null,"x",null,null,"x",null,null,null,0,null,null,null,null,0]
[null,null,null,null,null,null,null,"x",null,"","",null,"",null,"x",null,null,"x",null,null,"x",null,null,null,0,null,null,null,null,0]
[null,null,null,null,null,null,null,"x",null,"","",null,"",null,"x",null,null,"x",null,null,"x",null,null,null,0,null,null,null,null,0]
[null,null,null,null,null,null,null,"x",null,"","",null,"",null,"x",null,null,"x",null,null,"x",null,null,null,0,null,null,null,null,0]
[null,null,null,null,null,null,null,"x",null,"","",null,"",null,"x",null,null,"x",null,null,"x",null,null,null,0,null,null,null,null,0]
[null,null,null,null,null,null,null,"x",null,"","",null,"",null,"x",null,null,"x",null,null,"x",null,null,null,0,null,null,null,null,0]
[null,null,null,null,null,null,null,"x",null,"","",null,"",null,"x",null,null,"x",null,null,"x",null,null,null,0,null,null,null,null,0]
[null,null,null,null,null,null,null,"x",null,"","",null,"",null,"x",null,null,"x",null,null,"x",null,null,null,0,null,null,null,null,0]
[null,null,null,null,null,null,null,"x",null,"","",null,"",null,"x",null,null,"x",null,null,"x",null,null,null,0,null,null,null,null,0]
[null,null,null,null,null,null,null,"x",null,"","",null,"",null,"x",null,null,"x",null,null,"x",null,null,null,0,null,null,null,null,0]
[null,null,null,null,null,null,null,"x",null,"","",null,"",null,"x",null,null,"x",null,null,"x",null,null,null,0,null,null,null,null,0]
[null,null,null,null,null,null,null,"x",null,"","",null,"",null,"x",null,null,"x",null,null,"x",null,null,null,0,null,null,null,null,0]
[null,null,null,null,null,null,null,"x",null,"","",null,"",null,"x",null,null,"x",null,null,"x",null,null,null,0,null,null,null,null,0]
[null,null,null,null,null,null,null,"x",null,"","",null,"",null,"x",null,null,"x",null,null,"x",null,null,null,0,null,null,null,null,0]
[null,null,null,null,null,null,null,"x",null,"","",null,"",null,"x",null,null,"x",null,null,"x",null,null,null,0,null,null,null,null,0]
[null,null,null,null,null,null,null,"x",null,"","",null,"",null,"x",null,null,"x",null,null,"x",null,null,null,0,null,null,null,null,0]
[null,null,null,null,null,null,null,"x",null,"","",null,"",null,"x",null,null,"x",null,null,"x",null,null,null,0,null,null,null,null,0]
[null,null,null,null,null,null,null,"x",null,"","",null,"",null,"x",null,null,"x",null,null,"x",null,null,null,0,null,null,null,null,0]
[null,null,null,null,null,null,null,"x",null,"","",null,"",null,"x",null,null,"x",null,null,"x",null,null,null,0,null,null,null,null,0]
[null,null,null,null,null,null,null,"x",null,"","",null,"",null,"x",null,null,"x",null,null,"x",null,null,null,0,null,null,null,null,0]
[null,null,null,null,null,null,null,"x",null,"","",null,"",null,"x",null,null,"x",null,null,"x",null,null,null,0,null,null,null,null,0]
[null,null,null,null,null,null,null,"x",null,"","",null,"",null,"x",null,null,"x",null,null,"x",null,null,null,0,null,null,null,null,0]
[null,null,null,null,null,null,null,"x",null,"","",null,"",null,"x",null,null,"x",null,null,"x",null,null,null,0,null,null,null,null,0]
[null,null,null,null,null,null,null,"x",null,"","",null,"",null,"x",null,null,"x",null,null,"x",null,null,null,0,null,null,null,null,0]
[null,null,null,null,null,null,null,"x",null,"","",null,"",null,"x",null,null,"x",null,null,"x",null,null,null,0,null,null,null,null,0]
[null,null,null,null,null,null,null,"x",null,"","",null,"",null,"x",null,null,"x",null,null,"x",null,null,null,0,null,null,null,null,0]
[null,null,null,null,null,null,null,"x",null,"","",null,"",null,"x",null,null,"x",null,null,"x",null,null,null,0,null,null,null,null,0]
[null,null,null,null,null,null,null,"x",null,"","",null,"",null,"x",null,null,"x",null,null,"x",null,null,null,0,null,null,null,null,0]
[null,null,null,null,null,null,null,"x",null,"","",null,"",null,"x",null,null,"x",null,null,"x",null,null,null,0,null,null,null,null,0]
[null,null,null,null,null,null,null,"x",null,"","",null,"",null,"x",null,null,"x",null,null,"x",null,null,null,0,null,null,null,null,0]
[null,null,null,null,null,null,null,"x",null,"","",null,"",null,"x",null,null,"x",null,null,"x",null,null,null,0,null,null,null,null,0]
[null,null,null,null,null,null,null,"x",null,"","",null,"",null,"x",null,null,"x",null,null,"x",null,null,null,0,null,null,null,null,0]
[null,null,null,null,null,null,null,"x",null,"","",null,"",null,"x",null,null,"x",null,null,"x",null,null,null,0,null,null,null,null,0]
[null,null,null,null,null,null,null,"x",null,"","",null,"",null,"x",null,null,"x",null,null,"x",null,null,null,0,null,null,null,null,0]
[null,null,null,null,null,null,null,"x",null,"","",null,"",null,"x",null,null,"x",null,null,"x",null,null,null,0,null,null,null,null,0]
[null,null,null,null,null,null,null,"x",null,"","",null,"",null,"x",null,null,"x",null,null,"x",null,null,null,0,null,null,null,null,0]
[null,null,null,null,null,null,null,"x",null,"","",null,"",null,"x",null,null,"x",null,null,"x",null,null,null,0,null,null,null,null,0]
[null,null,null,null,null,null,null,"x",null,"","",null,"",null,"x",null,null,"x",null,null,"x",null,null,null,0,null,null,null,null,0]
[null,null,null,null,null,null,null,"x",null,"","",null,"",null,"x",null,null,"x",null,null,"x",null,null,null,0,null,null,null,null,0]
[null,null,null,null,null,null,null,"x",null,"","",null,"",null,"x",null,null,"x",null,null,"x",null,null,null,0,null,null,null,null,0]
[null,null,null,null,null,null,null,"x",null,"","",null,"",null,"x",null,null,"x",null,null,"x",null,null,null,0,null,null,null,null,0]
[null,null,null,null,null,null,null,"x",null,"","",null,"",null,"x",null,null,"x",null,null,"x",null,null,null,0,null,null,null,null,0]
[null,null,null,null,null,null,null,"x",null,"","",null,"",null,"x",null,null,"x",null,null,"x",null,null,null,0,null,null,null,null,0]
[null,null,null,null,null,null,null,"x",null,"","",null,"",null,"x",null,null,"x",null,null,"x",null,null,null,0,null,null,null,null,0]
[null,null,null,null,null,null,null,"x",null,"","",null,"",null,"x",null,null,"x",null,null,"x",null,null,null,0,null,null,null,null,0]
[null,null,null,null,null,null,null,"x",null,"","",null,"",null,"x",null,null,"x",null,null,"x",null,null,null,0,null,null,null,null,0]
[null,null,null,null,null,null,null,"x",null,"","",null,"",null,"x",null,null,"x",null,null,"x",null,null,null,0,null,null,null,null,0]
[null,null,null,null,null,null,null,"x",null,"","",null,"",null,"x",null,null,"x",null,null,"x",null,null,null,0,null,null,null,null,0]
[null,null,null,null,null,null,null,"x",null,"","",null,"",null,"x",null,null,"x",null,null,"x",null,null,null,0,null,null,null,null,0]
[null,null,null,null,null,null,null,"x",null,"","",null,"",null,"x",null,null,"x",null,null,"x",null,null,null,0,null,null,null,null,0]
[null,null,null,null,null,null,null,"x",null,"","",null,"",null,"x",null,null,"x",null,null,"x",null,null,null,0,null,null,null,null,0]
[null,null,null,null,null,null,null,"x",null,"","",null,"",null,"x",null,null,"x",null,null,"x",null,null,null,0,null,null,null,null,0]
[null,null,null,null,null,null,null,"x",null,"","",null,"",null,"x",null,null,"x",null,null,"x",null,null,null,0,null,null,null,null,0]
[null,null,null,null,null,null,null,"x",null,"","",null,"",null,"x",null,null,"x",null,null,"x",null,null,null,0,null,null,null,null,0]
[null,null,null,null,null,null,null,"x",null,"","",null,"",null,"x",null,null,"x",null,null,"x",null,null,null,0,null,null,null,null,0]
[null,null,null,null,null,null,null,"x",null,"","",null,"",null,"x",null,null,"x",null,null,"x",null,null,null,0,null,null,null,null,0]
[null,null,null,null,null,null,null,"x",null,"","",null,"",null,"x",null,null,"x",null,null,"x",null,null,null,0,null,null,null,null,0]
[null,null,null,null,null,null,null,"x",null,"","",null,"",null,"x",null,null,"x",null,null,"x",null,null,null,0,null,null,null,null,0]
[null,null,null,null,null,null,null,"x",null,"","",null,"",null,"x",null,null,"x",null,null,"x",null,null,null,0,null,null,null,null,0]
[null,null,null,null,null,null,null,"x",null,"","",null,"",null,"x",null,null,"x",null,null,"x",null,null,null,0,null,null,null,null,0]
[null,null,null,null,null,null,null,"x",null,"","",null,"",null,"x",null,null,"x",null,null,"x",null,null,null,0,null,null,null,null,0]
[null,null,null,null,null,null,null,"x",null,"","",null,"",null,"x",null,null,"x",null,null,"x",null,null,null,0,null,null,null,null,0]
[null,null,null,null,null,null,null,"x",null,"","",null,"",null,"x",null,null,"x",null,null,"x",null,null,null,0,null,null,null,null,0]
[null,null,null,null,null,null,null,"x",null,"","",null,"",null,"x",null,null,"x",null,null,"x",null,null,null,0,null,null,null,null,0]
[null,null,null,null,null,null,null,"x",null,"","",null,"",null,"x",null,null,"x",null,null,"x",null,null,null,0,null,null,null,null,0]
[null,null,null,null,null,null,null,"x",null,"","",null,"",null,"x",null,null,"x",null,null,"x",null,null,null,0,null,null,null,null,0]
[null,null,null,null,null,null,null,"x",null,"","",null,"",null,"x",null,null,"x",null,null,"x",null,null,null,0,null,null,null,null,0]
[null,null,null,null,null,null,null,"x",null,"","",null,"",null,"x",null,null,"x",null,null,"x",null,null,null,0,null,null,null,null,0]
[null,null,null,null,null,null,null,"x",null,"","",null,"",null,"x",null,null,"x",null,null,"x",null,null,null,0,null,null,null,null,0]
[null,null,null,null,null,null,null,"x",null,"","",null,"",null,"x",null,null,"x",null,null,"x",null,null,null,0,null,null,null,null,0]
[null,null,null,null,null,null,null,"x",null,"","",null,"",null,"x",null,null,"x",null,null,"x",null,null,null,0,null,null,null,null,0]
[null,null,null,null,null,null,null,"x",null,"","",null,"",null,"x",null,null,"x",null,null,"x",null,null,null,0,null,null,null,null,0]
[null,null,null,null,null,null,null,"x",null,"","",null,"",null,"x",null,null,"x",null,null,"x",null,null,null,0,null,null,null,null,0]
[null,null,null,null,null,null,null,"x",null,"","",null,"",null,"x",null,null,"x",null,null,"x",null,null,null,0,null,null,null,null,0]
[null,null,null,null,null,null,null,"x",null,"","",null,"",null,"x",null,null,"x",null,null,"x",null,null,null,0,null,null,null,null,0]
[null,null,null,null,null,null,null,"x",null,"","",null,"",null,"x",null,null,"x",null,null,"x",null,null,null,0,null,null,null,null,0]
[null,null,null,null,null,null,null,"x",null,"","",null,"",null,"x",null,null,"x",null,null,"x",null,null,null,0,null,null,null,null,0]
[null,null,null,null,null,null,null,"x",null,"","",null,"",null,"x",null,null,"x",null,null,"x",null,null,null,0,null,null,null,null,0]
[null,null,null,null,null,null,null,"x",null,"","",null,"",null,"x",null,null,"x",null,null,"x",null,null,null,0,null,null,null,null,0]
[null,null,null,null,null,null,null,"x",null,"","",null,"",null,"x",null,null,"x",null,null,"x",null,null,null,0,null,null,null,null,0]
[null,null,null,null,null,null,null,"x",null,"","",null,"",null,"x",null,null,"x",null,null,"x",null,null,null,0,null,null,null,null,0]
[null,null,null,null,null,null,null,"x",null,"","",null,"",null,"x",null,null,"x",null,null,"x",null,null,null,0,null,null,null,null,0]
[null,null,null,null,null,null,null,"x",null,"","",null,"",null,"x",null,null,"x",null,null,"x",null,null,null,0,null,null,null,null,0]
[null,null,null,null,null,null,null,"x",null,"","",null,"",null,"x",null,null,"x",null,null,"x",null,null,null,0,null,null,null,null,0]
[null,null,null,null,null,null,null,"x",null,"","",null,"",null,"x",null,null,"x",null,null,"x",null,null,null,0,null,null,null,null,0]
[null,null,null,null,null,null,null,"x",null,"","",null,"",null,"x",null,null,"x",null,null,"x",null,null,null,0,null,null,null,null,0]
[null,null,null,null,null,null,null,"x",null,"","",null,"",null,"x",null,null,"x",null,null,"x",null,null,null,0,null,null,null,null,0]
[null,null,null,null,null,null,null,"x",null,"","",null,"",null,"x",null,null,"x",null,null,"x",null,null,null,0,null,null,null,null,0]
[null,null,null,null,null,null,null,"x",null,"","",null,"",null,"x",null,null,"x",null,null,"x",null,null,null,0,null,null,null,null,0]
[null,null,null,null,null,null,null,"x",null,"","",null,"",null,"x",null,null,"x",null,null,"x",null,null,null,0,null,null,null,null,0]
[null,null,null,null,null,null,null,"x",null,"","",null,"",null,"x",null,null,"x",null,null,"x",null,null,null,0,null,null,null,null,0]
[null,null,null,null,null,null,null,"x",null,"","",null,"",null,"x",null,null,"x",null,null,"x",null,null,null,0,null,null,null,null,0]
[null,null,null,null,null,null,null,"x",null,"","",null,"",null,"x",null,null,"x",null,null,"x",null,null,null,0,null,null,null,null,0]
[null,null,null,null,null,null,null,"x",null,"","",null,"",null,"x",null,null,"x",null,null,"x",null,null,null,0,null,null,null,null,0]
[null,null,null,null,null,null,null,"x",null,"","",null,"",null,"x",null,null,"x",null,null,"x",null,null,null,0,null,null,null,null,0]
[null,null,null,null,null,null,null,"x",null,"","",null,"",null,"x",null,null,"x",null,null,"x",null,null,null,0,null,null,null,null,0]
[null,null,null,null,null,null,null,"x",null,"","",null,"",null,"x",null,null,"x",null,null,"x",null,null,null,0,null,null,null,null,0]
[null,null,null,null,null,null,null,"x",null,"","",null,"",null,"x",null,null,"x",null,null,"x",null,null,null,0,null,null,null,null,0]
[null,null,null,null,null,null,null,"x",null,"","",null,"",null,"x",null,null,"x",null,null,"x",null,null,null,0,null,null,null,null,0]
[null,null,null,null,null,null,null,"x",null,"","",null,"",null,"x",null,null,"x",null,null,"x",null,null,null,0,null,null,null,null,0]
[null,null,null,null,null,null,null,"x",null,"","",null,"",null,"x",null,null,"x",null,null,"x",null,null,null,0,null,null,null,null,0]
[null,null,null,null,null,null,null,"x",null,"","",null,"",null,"x",null,null,"x",null,null,"x",null,null,null,0,null,null,null,null,0]
[null,null,null,null,null,null,null,"x",null,"","",null,"",null,"x",null,null,"x",null,null,"x",null,null,null,0,null,null,null,null,0]
[null,null,null,null,null,null,null,"x",null,"","",null,"",null,"x",null,null,"x",null,null,"x",null,null,null,0,null,null,null,null,0]
[null,null,null,null,null,null,null,"x",null,"","",null,"",null,"x",null,null,"x",null,null,"x",null,null,null,0,null,null,null,null,0]
[null,null,null,null,null,null,null,"x",null,"","",null,"",null,"x",null,null,"x",null,null,"x",null,null,null,0,null,null,null,null,0]
[null,null,null,null,null,null,null,"x",null,"","",null,"",null,"x",null,null,"x",null,null,"x",null,null,null,0,null,null,null,null,0]
[null,null,null,null,null,null,null,"x",null,"","",null,"",null,"x",null,null,"x",null,null,"x",null,null,null,0,null,null,null,null,0]
[null,null,null,null,null,null,null,"x",null,"","",null,"",null,"x",null,null,"x",null,null,"x",null,null,null,0,null,null,null,null,0]
[null,null,null,null,null,null,null,"x",null,"","",null,"",null,"x",null,null,"x",null,null,"x",null,null,null,0,null,null,null,null,0]
[null,null,null,null,null,null,null,"x",null,"","",null,"",null,"x",null,null,"x",null,null,"x",null,null,null,0,null,null,null,null,0]
[null,null,null,null,null,null,null,"x",null,"","",null,"",null,"x",null,null,"x",null,null,"x",null,null,null,0,null,null,null,null,0]
[null,null,null,null,null,null,null,"x",null,"","",null,"",null,"x",null,null,"x",null,null,"x",null,null,null,0,null,null,null,null,0]
[null,null,null,null,null,null,null,"x",null,"","",null,"",null,"x",null,null,"x",null,null,"x",null,null,null,0,null,null,null,null,0]
[null,null,null,null,null,null,null,"x",null,"","",null,"",null,"x",null,null,"x",null,null,"x",null,null,null,0,null,null,null,null,0]
[null,null,null,null,null,null,null,"x",null,"","",null,"",null,"x",null,null,"x",null,null,"x",null,null,null,0,null,null,null,null,0]
[null,null,null,null,null,null,null,"x",null,"","",null,"",null,"x",null,null,"x",null,null,"x",null,null,null,0,null,null,null,null,0]
[null,null,null,null,null,null,null,"x",null,"","",null,"",null,"x",null,null,"x",null,null,"x",null,null,null,0,null,null,null,null,0]
[null,null,null,null,null,null,null,"x",null,"","",null,"",null,"x",null,null,"x",null,null,"x",null,null,null,0,null,null,null,null,0]
[null,null,null,null,null,null,null,"x",null,"","",null,"",null,"x",null,null,"x",null,null,"x",null,null,null,0,null,null,null,null,0]
[null,null,null,null,null,null,null,"x",null,"","",null,"",null,"x",null,null,"x",null,null,"x",null,null,null,0,null,null,null,null,0]
[null,null,null,null,null,null,null,"x",null,"","",null,"",null,"x",null,null,"x",null,null,"x",null,null,null,0,null,null,null,null,0]
[null,null,null,null,null,null,null,"x",null,"","",null,"",null,"x",null,null,"x",null,null,"x",null,null,null,0,null,null,null,null,0]
[null,null,null,null,null,null,null,"x",null,"","",null,"",null,"x",null,null,"x",null,null,"x",null,null,null,0,null,null,null,null,0]
[null,null,null,null,null,null,null,"x",null,"","",null,"",null,"x",null,null,"x",null,null,"x",null,null,null,0,null,null,null,null,0]
[null,null,null,null,null,null,null,"x",null,"","",null,"",null,"x",null,null,"x",null,null,"x",null,null,null,0,null,null,null,null,0]
[null,null,null,null,null,null,null,"x",null,"","",null,"",null,"x",null,null,"x",null,null,"x",null,null,null,0,null,null,null,null,0]
[null,null,null,null,null,null,null,"x",null,"","",null,"",null,"x",null,null,"x",null,null,"x",null,null,null,0,null,null,null,null,0]
[null,null,null,null,null,null,null,"x",null,"","",null,"",null,"x",null,null,"x",null,null,"x",null,null,null,0,null,null,null,null,0]
[null,null,null,null,null,null,null,"x",null,"","",null,"",null,"x",null,null,"x",null,null,"x",null,null,null,0,null,null,null,null,0]
[null,null,null,null,null,null,null,"x",null,"","",null,"",null,"x",null,null,"x",null,null,"x",null,null,null,0,null,null,null,null,0]
[null,null,null,null,null,null,null,"x",null,"","",null,"",null,"x",null,null,"x",null,null,"x",null,null,null,0,null,null,null,null,0]
[null,null,null,null,null,null,null,"x",null,"","",null,"",null,"x",null,null,"x",null,null,"x",null,null,null,0,null,null,null,null,0]
[null,null,null,null,null,null,null,"x",null,"","",null,"",null,"x",null,null,"x",null,null,"x",null,null,null,0,null,null,null,null,0]
[null,null,null,null,null,null,null,"x",null,"","",null,"",null,"x",null,null,"x",null,null,"x",null,null,null,0,null,null,null,null,0]
[null,null,null,null,null,null,null,"x",null,"","",null,"",null,"x",null,null,"x",null,null,"x",null,null,null,0,null,null,null,null,0]
[null,null,null,null,null,null,null,"x",null,"","",null,"",null,"x",null,null,"x",null,null,"x",null,null,null,0,null,null,null,null,0]
[null,null,null,null,null,null,null,"x",null,"","",null,"",null,"x",null,null,"x",null,null,"x",null,null,null,0,null,null,null,null,0]
[null,null,null,null,null,null,null,"x",null,"","",null,"",null,"x",null,null,"x",null,null,"x",null,null,null,0,null,null,null,null,0]
[null,null,null,null,null,null,null,"x",null,"","",null,"",null,"x",null,null,"x",null,null,"x",null,null,null,0,null,null,null,null,0]
[null,null,null,null,null,null,null,"x",null,"","",null,"",null,"x",null,null,"x",null,null,"x",null,null,null,0,null,null,null,null,0]
[null,null,null,null,null,null,null,"x",null,"","",null,"",null,"x",null,null,"x",null,null,"x",null,null,null,0,null,null,null,null,0]
[null,null,null,null,null,null,null,"x",null,"","",null,"",null,"x",null,null,"x",null,null,"x",null,null,null,0,null,null,null,null,0]
[null,null,null,null,null,null,null,"x",null,"","",null,"",null,"x",null,null,"x",null,null,"x",null,null,null,0,null,null,null,null,0]
[null,null,null,null,null,null,null,"x",null,"","",null,"",null,"x",null,null,"x",null,null,"x",null,null,null,0,null,null,null,null,0]
[null,null,null,null,null,null,null,"x",null,"","",null,"",null,"x",null,null,"x",null,null,"x",null,null,null,0,null,null,null,null,0]
[null,null,null,null,null,null,null,"x",null,"","",null,"",null,"x",null,null,"x",null,null,"x",null,null,null,0,null,null,null,null,0]
[null,null,null,null,null,null,null,"x",null,"","",null,"",null,"x",null,null,"x",null,null,"x",null,null,null,0,null,null,null,null,0]
[null,null,null,null,null,null,null,"x",null,"","",null,"",null,"x",null,null,"x",null,null,"x",null,null,null,0,null,null,null,null,0]
[null,null,null,null,null,null,null,"x",null,"","",null,"",null,"x",null,null,"x",null,null,"x",null,null,null,0,null,null,null,null,0]
[null,null,null,null,null,null,null,"x",null,"","",null,"",null,"x",null,null,"x",null,null,"x",null,null,null,0,null,null,null,null,0]
[null,null,null,null,null,null,null,"x",null,"","",null,"",null,"x",null,null,"x",null,null,"x",null,null,null,0,null,null,null,null,0]
[null,null,null,null,null,null,null,"x",null,"","",null,"",null,"x",null,null,"x",null,null,"x",null,null,null,0,null,null,null,null,0]
[null,null,null,null,null,null,null,"x",null,"","",null,"",null,"x",null,null,"x",null,null,"x",null,null,null,0,null,null,null,null,0]
[null,null,null,null,null,null,null,"x",null,"","",null,"",null,"x",null,null,"x",null,null,"x",null,null,null,0,null,null,null,null,0]
[null,null,null,null,null,null,null,"x",null,"","",null,"",null,"x",null,null,"x",null,null,"x",null,null,null,0,null,null,null,null,0]
[null,null,null,null,null,null,null,"x",null,"","",null,"",null,"x",null,null,"x",null,null,"x",null,null,null,0,null,null,null,null,0]
[null,null,null,null,null,null,null,"x",null,"","",null,"",null,"x",null,null,"x",null,null,"x",null,null,null,0,null,null,null,null,0]
[null,null,null,null,null,null,null,"x",null,"","",null,"",null,"x",null,null,"x",null,null,"x",null,null,null,0,null,null,null,null,0]
[null,null,null,null,null,null,null,"x",null,"","",null,"",null,"x",null,null,"x",null,null,"x",null,null,null,0,null,null,null,null,0]
[null,null,null,null,null,null,null,"x",null,"","",null,"",null,"x",null,null,"x",null,null,"x",null,null,null,0,null,null,null,null,0]
[null,null,null,null,null,null,null,"x",null,"","",null,"",null,"x",null,null,"x",null,null,"x",null,null,null,0,null,null,null,null,0]
[null,null,null,null,null,null,null,"x",null,"","",null,"",null,"x",null,null,"x",null,null,"x",null,null,null,0,null,null,null,null,0]
[null,null,null,null,null,null,null,"x",null,"","",null,"",null,"x",null,null,"x",null,null,"x",null,null,null,0,null,null,null,null,0]
[null,null,null,null,null,null,null,"x",null,"","",null,"",null,"x",null,null,"x",null,null,"x",null,null,null,0,null,null,null,null,0]
[null,null,null,null,null,null,null,"x",null,"","",null,"",null,"x",null,null,"x",null,null,"x",null,null,null,0,null,null,null,null,0]
[null,null,null,null,null,null,null,"x",null,"","",null,"",null,"x",null,null,"x",null,null,"x",null,null,null,0,null,null,null,null,0]
[null,null,null,null,null,null,null,"x",null,"","",null,"",null,"x",null,null,"x",null,null,"x",null,null,null,0,null,null,null,null,0]
[null,null,null,null,null,null,null,"x",null,"","",null,"",null,"x",null,null,"x",null,null,"x",null,null,null,0,null,null,null,null,0]
[null,null,null,null,null,null,null,"x",null,"","",null,"",null,"x",null,null,"x",null,null,"x",null,null,null,0,null,null,null,null,0]
[null,null,null,null,null,null,null,"x",null,"","",null,"",null,"x",null,null,"x",null,null,"x",null,null,null,0,null,null,null,null,0]
[null,null,null,null,null,null,null,"x",null,"","",null,"",null,"x",null,null,"x",null,null,"x",null,null,null,0,null,null,null,null,0]
[null,null,null,null,null,null,null,"x",null,"","",null,"",null,"x",null,null,"x",null,null,"x",null,null,null,0,null,null,null,null,0]
[null,null,null,null,null,null,null,"x",null,"","",null,"",null,"x",null,null,"x",null,null,"x",null,null,null,0,null,null,null,null,0]
[null,null,null,null,null,null,null,"x",null,"","",null,"",null,"x",null,null,"x",null,null,"x",null,null,null,0,null,null,null,null,0]
[null,null,null,null,null,null,null,"x",null,"","",null,"",null,"x",null,null,"x",null,null,"x",null,null,null,0,null,null,null,null,0]
[null,null,null,null,null,null,null,"x",null,"","",null,"",null,"x",null,null,"x",null,null,"x",null,null,null,0,null,null,null,null,0]
[null,null,null,null,null,null,null,"x",null,"","",null,"",null,"x",null,null,"x",null,null,"x",null,null,null,0,null,null,null,null,0]
[null,null,null,null,null,null,null,"x",null,"","",null,"",null,"x",null,null,"x",null,null,"x",null,null,null,0,null,null,null,null,0]
[null,null,null,null,null,null,null,"x",null,"","",null,"",null,"x",null,null,"x",null,null,"x",null,null,null,0,null,null,null,null,0]
[null,null,null,null,null,null,null,"x",null,"","",null,"",null,"x",null,null,"x",null,null,"x",null,null,null,0,null,null,null,null,0]
[null,null,null,null,null,null,null,"x",null,"","",null,"",null,"x",null,null,"x",null,null,"x",null,null,null,0,null,null,null,null,0]
[null,null,null,null,null,null,null,"x",null,"","",null,"",null,"x",null,null,"x",null,null,"x",null,null,null,0,null,null,null,null,0]
[null,null,null,null,null,null,null,"x",null,"","",null,"",null,"x",null,null,"x",null,null,"x",null,null,null,0,null,null,null,null,0]
[null,null,null,null,null,null,null,"x",null,"","",null,"",null,"x",null,null,"x",null,null,"x",null,null,null,0,null,null,null,null,0]
[null,null,null,null,null,null,null,"x",null,"","",null,"",null,"x",null,null,"x",null,null,"x",null,null,null,0,null,null,null,null,0]
[null,null,null,null,null,null,null,"x",null,"","",null,"",null,"x",null,null,"x",null,null,"x",null,null,null,0,null,null,null,null,0]
[null,null,null,null,null,null,null,"x",null,"","",null,"",null,"x",null,null,"x",null,null,"x",null,null,null,0,null,null,null,null,0]
[null,null,null,null,null,null,null,"x",null,"","",null,"",null,"x",null,null,"x",null,null,"x",null,null,null,0,null,null,null,null,0]
[null,null,null,null,null,null,null,"x",null,"","",null,"",null,"x",null,null,"x",null,null,"x",null,null,null,0,null,null,null,null,0]
[null,null,null,null,null,null,null,"x",null,"","",null,"",null,"x",null,null,"x",null,null,"x",null,null,null,0,null,null,null,null,0]
[null,null,null,null,null,null,null,"x",null,"","",null,"",null,"x",null,null,"x",null,null,"x",null,null,null,0,null,null,null,null,0]
[null,null,null,null,null,null,null,"x",null,"","",null,"",null,"x",null,null,"x",null,null,"x",null,null,null,0,null,null,null,null,0]
[null,null,null,null,null,null,null,"x",null,"","",null,"",null,"x",null,null,"x",null,null,"x",null,null,null,0,null,null,null,null,0]
[null,null,null,null,null,null,null,"x",null,"","",null,"",null,"x",null,null,"x",null,null,"x",null,null,null,0,null,null,null,null,0]
[null,null,null,null,null,null,null,"x",null,"","",null,"",null,"x",null,null,"x",null,null,"x",null,null,null,0,null,null,null,null,0]
[null,null,null,null,null,null,null,"x",null,"","",null,"",null,"x",null,null,"x",null,null,"x",null,null,null,0,null,null,null,null,0]
[null,null,null,null,null,null,null,"x",null,"","",null,"",null,"x",null,null,"x",null,null,"x",null,null,null,0,null,null,null,null,0]
[null,null,null,null,null,null,null,"x",null,"","",null,"",null,"x",null,null,"x",null,null,"x",null,null,null,0,null,null,null,null,0]
[null,null,null,null,null,null,null,"x",null,"","",null,"",null,"x",null,null,"x",null,null,"x",null,null,null,0,null,null,null,null,0]
[null,null,null,null,null,null,null,"x",null,"","",null,"",null,"x",null,null,"x",null,null,"x",null,null,null,0,null,null,null,null,0]
[null,null,null,null,null,null,null,"x",null,"","",null,"",null,"x",null,null,"x",null,null,"x",null,null,null,0,null,null,null,null,0]
[null,null,null,null,null,null,null,"x",null,"","",null,"",null,"x",null,null,"x",null,null,"x",null,null,null,0,null,null,null,null,0]
[null,null,null,null,null,null,null,"x",null,"","",null,"",null,"x",null,null,"x",null,null,"x",null,null,null,0,null,null,null,null,0]
[null,null,null,null,null,null,null,"x",null,"","",null,"",null,"x",null,null,"x",null,null,"x",null,null,null,0,null,null,null,null,0]
[null,null,null,null,null,null,null,"x",null,"","",null,"",null,"x",null,null,"x",null,null,"x",null,null,null,0,null,null,null,null,0]
[null,null,null,null,null,null,null,"x",null,"","",null,"",null,"x",null,null,"x",null,null,"x",null,null,null,0,null,null,null,null,0]
[null,null,null,null,null,null,null,"x",null,"","",null,"",null,"x",null,null,"x",null,null,"x",null,null,null,0,null,null,null,null,0]
[null,null,null,null,null,null,null,"x",null,"","",null,"",null,"x",null,null,"x",null,null,"x",null,null,null,0,null,null,null,null,0]
[null,null,null,null,null,null,null,"x",null,"","",null,"",null,"x",null,null,"x",null,null,"x",null,null,null,0,null,null,null,null,0]
[null,null,null,null,null,null,null,"x",null,"","",null,"",null,"x",null,null,"x",null,null,"x",null,null,null,0,null,null,null,null,0]
[null,null,null,null,null,null,null,"x",null,"","",null,"",null,"x",null,null,"x",null,null,"x",null,null,null,0,null,null,null,null,0]
[null,null,null,null,null,null,null,"x",null,"","",null,"",null,"x",null,null,"x",null,null,"x",null,null,null,0,null,null,null,null,0]
[null,null,null,null,null,null,null,"x",null,"","",null,"",null,"x",null,null,"x",null,null,"x",null,null,null,0,null,null,null,null,0]
[null,null,null,null,null,null,null,"x",null,"","",null,"",null,"x",null,null,"x",null,null,"x",null,null,null,0,null,null,null,null,0]
[null,null,null,null,null,null,null,"x",null,"","",null,"",null,"x",null,null,"x",null,null,"x",null,null,null,0,null,null,null,null,0]
[null,null,null,null,null,null,null,"x",null,"","",null,"",null,"x",null,null,"x",null,null,"x",null,null,null,0,null,null,null,null,0]
[null,null,null,null,null,null,null,"x",null,"","",null,"",null,"x",null,null,"x",null,null,"x",null,null,null,0,null,null,null,null,0]
[null,null,null,null,null,null,null,"x",null,"","",null,"",null,"x",null,null,"x",null,null,"x",null,null,null,0,null,null,null,null,0]
[null,null,null,null,null,null,null,"x",null,"","",null,"",null,"x",null,null,"x",null,null,"x",null,null,null,0,null,null,null,null,0]
[null,null,null,null,null,null,null,"x",null,"","",null,"",null,"x",null,null,"x",null,null,"x",null,null,null,0,null,null,null,null,0]
[null,null,null,null,null,null,null,"x",null,"","",null,"",null,"x",null,null,"x",null,null,"x",null,null,null,0,null,null,null,null,0]
[null,null,null,null,null,null,null,"x",null,"","",null,"",null,"x",null,null,"x",null,null,"x",null,null,null,0,null,null,null,null,0]
[null,null,null,null,null,null,null,"x",null,"","",null,"",null,"x",null,null,"x",null,null,"x",null,null,null,0,null,null,null,null,0]
[null,null,null,null,null,null,null,"x",null,"","",null,"",null,"x",null,null,"x",null,null,"x",null,null,null,0,null,null,null,null,0]
[null,null,null,null,null,null,null,"x",null,"","",null,"",null,"x",null,null,"x",null,null,"x",null,null,null,0,null,null,null,null,0]
[null,null,null,null,null,null,null,"x",null,"","",null,"",null,"x",null,null,"x",null,null,"x",null,null,null,0,null,null,null,null,0]
[null,null,null,null,null,null,null,"x",null,"","",null,"",null,"x",null,null,"x",null,null,"x",null,null,null,0,null,null,null,null,0]
[null,null,null,null,null,null,null,"x",null,"","",null,"",null,"x",null,null,"x",null,null,"x",null,null,null,0,null,null,null,null,0]
[null,null,null,null,null,null,null,"x",null,"","",null,"",null,"x",null,null,"x",null,null,"x",null,null,null,0,null,null,null,null,0]
[null,null,null,null,null,null,null,"x",null,"","",null,"",null,"x",null,null,"x",null,null,"x",null,null,null,0,null,null,null,null,0]
[null,null,null,null,null,null,null,"x",null,"","",null,"",null,"x",null,null,"x",null,null,"x",null,null,null,0,null,null,null,null,0]
[null,null,null,null,null,null,null,"x",null,"","",null,"",null,"x",null,null,"x",null,null,"x",null,null,null,0,null,null,null,null,0]
[null,null,null,null,null,null,null,"x",null,"","",null,"",null,"x",null,null,"x",null,null,"x",null,null,null,0,null,null,null,null,0]
[null,null,null,null,null,null,null,"x",null,"","",null,"",null,"x",null,null,"x",null,null,"x",null,null,null,0,null,null,null,null,0]
[null,null,null,null,null,null,null,"x",null,"","",null,"",null,"x",null,null,"x",null,null,"x",null,null,null,0,null,null,null,null,0]
[null,null,null,null,null,null,null,"x",null,"","",null,"",null,"x",null,null,"x",null,null,"x",null,null,null,0,null,null,null,null,0]
[null,null,null,null,null,null,null,"x",null,"","",null,"",null,"x",null,null,"x",null,null,"x",null,null,null,0,null,null,null,null,0]
[null,null,null,null,null,null,null,"x",null,"","",null,"",null,"x",null,null,"x",null,null,"x",null,null,null,0,null,null,null,null,0]
[null,null,null,null,null,null,null,"x",null,"","",null,"",null,"x",null,null,"x",null,null,"x",null,null,null,0,null,null,null,null,0]
[null,null,null,null,null,null,null,"x",null,"","",null,"",null,"x",null,null,"x",null,null,"x",null,null,null,0,null,null,null,null,0]
[null,null,null,null,null,null,null,"x",null,"","",null,"",null,"x",null,null,"x",null,null,"x",null,null,null,0,null,null,null,null,0]
[null,null,null,null,null,null,null,"x",null,"","",null,"",null,"x",null,null,"x",null,null,"x",null,null,null,0,null,null,null,null,0]
[null,null,null,null,null,null,null,"x",null,"","",null,"",null,"x",null,null,"x",null,null,"x",null,null,null,0,null,null,null,null,0]
[null,null,null,null,null,null,null,"x",null,"","",null,"",null,"x",null,null,"x",null,null,"x",null,null,null,0,null,null,null,null,0]
[null,null,null,null,null,null,null,"x",null,"","",null,"",null,"x",null,null,"x",null,null,"x",null,null,null,0,null,null,null,null,0]
[null,null,null,null,null,null,null,"x",null,"","",null,"",null,"x",null,null,"x",null,null,"x",null,null,null,0,null,null,null,null,0]
[null,null,null,null,null,null,null,"x",null,"","",null,"",null,"x",null,null,"x",null,null,"x",null,null,null,0,null,null,null,null,0]
[null,null,null,null,null,null,null,"x",null,"","",null,"",null,"x",null,null,"x",null,null,"x",null,null,null,0,null,null,null,null,0]
[null,null,null,null,null,null,null,"x",null,"","",null,"",null,"x",null,null,"x",null,null,"x",null,null,null,0,null,null,null,null,0]
[null,null,null,null,null,null,null,"x",null,"","",null,"",null,"x",null,null,"x",null,null,"x",null,null,null,0,null,null,null,null,0]
[null,null,null,null,null,null,null,"x",null,"","",null,"",null,"x",null,null,"x",null,null,"x",null,null,null,0,null,null,null,null,0]
[null,null,null,null,null,null,null,"x",null,"","",null,"",null,"x",null,null,"x",null,null,"x",null,null,null,0,null,null,null,null,0]
[null,null,null,null,null,null,null,"x",null,"","",null,"",null,"x",null,null,"x",null,null,"x",null,null,null,0,null,null,null,null,0]
[null,null,null,null,null,null,null,"x",null,"","",null,"",null,"x",null,null,"x",null,null,"x",null,null,null,0,null,null,null,null,0]
[null,null,null,null,null,null,null,"x",null,"","",null,"",null,"x",null,null,"x",null,null,"x",null,null,null,0,null,null,null,null,0]
[null,null,null,null,null,null,null,"x",null,"","",null,"",null,"x",null,null,"x",null,null,"x",null,null,null,0,null,null,null,null,0]
[null,null,null,null,null,null,null,"x",null,"","",null,"",null,"x",null,null,"x",null,null,"x",null,null,null,0,null,null,null,null,0]
[null,null,null,null,null,null,null,"x",null,"","",null,"",null,"x",null,null,"x",null,null,"x",null,null,null,0,null,null,null,null,0]
[null,null,null,null,null,null,null,"x",null,"","",null,"",null,"x",null,null,"x",null,null,"x",null,null,null,0,null,null,null,null,0]
[null,null,null,null,null,null,null,"x",null,"","",null,"",null,"x",null,null,"x",null,null,"x",null,null,null,0,null,null,null,null,0]
[null,null,null,null,null,null,null,"x",null,"","",null,"",null,"x",null,null,"x",null,null,"x",null,null,null,0,null,null,null,null,0]
[null,null,null,null,null,null,null,"x",null,"","",null,"",null,"x",null,null,"x",null,null,"x",null,null,null,0,null,null,null,null,0]
[null,null,null,null,null,null,null,"x",null,"","",null,"",null,"x",null,null,"x",null,null,"x",null,null,null,0,null,null,null,null,0]
[null,null,null,null,null,null,null,"x",null,"","",null,"",null,"x",null,null,"x",null,null,"x",null,null,null,0,null,null,null,null,0]
[null,null,null,null,null,null,null,"x",null,"","",null,"",null,"x",null,null,"x",null,null,"x",null,null,null,0,null,null,null,null,0]
[null,null,null,null,null,null,null,"x",null,"","",null,"",null,"x",null,null,"x",null,null,"x",null,null,null,0,null,null,null,null,0]
[null,null,null,null,null,null,null,"x",null,"","",null,"",null,"x",null,null,"x",null,null,"x",null,null,null,0,null,null,null,null,0]
[null,null,null,null,null,null,null,"x",null,"","",null,"",null,"x",null,null,"x",null,null,"x",null,null,null,0,null,null,null,null,0]
[null,null,null,null,null,null,null,"x",null,"","",null,"",null,"x",null,null,"x",null,null,"x",null,null,null,0,null,null,null,null,0]
[null,null,null,null,null,null,null,"x",null,"","",null,"",null,"x",null,null,"x",null,null,"x",null,null,null,0,null,null,null,null,0]
[null,null,null,null,null,null,null,"x",null,"","",null,"",null,"x",null,null,"x",null,null,"x",null,null,null,0,null,null,null,null,0]
[null,null,null,null,null,null,null,"x",null,"","",null,"",null,"x",null,null,"x",null,null,"x",null,null,null,0,null,null,null,null,0]
[null,null,null,null,null,null,null,"x",null,"","",null,"",null,"x",null,null,"x",null,null,"x",null,null,null,0,null,null,null,null,0]
[null,null,null,null,null,null,null,"x",null,"","",null,"",null,"x",null,null,"x",null,null,"x",null,null,null,0,null,null,null,null,0]
[null,null,null,null,null,null,null,"x",null,"","",null,"",null,"x",null,null,"x",null,null,"x",null,null,null,0,null,null,null,null,0]
[null,null,null,null,null,null,null,"x",null,"","",null,"",null,"x",null,null,"x",null,null,"x",null,null,null,0,null,null,null,null,0]
[null,null,null,null,null,null,null,"x",null,"","",null,"",null,"x",null,null,"x",null,null,"x",null,null,null,0,null,null,null,null,0]
[null,null,null,null,null,null,null,"x",null,"","",null,"",null,"x",null,null,"x",null,null,"x",null,null,null,0,null,null,null,null,0]
[null,null,null,null,null,null,null,"x",null,"","",null,"",null,"x",null,null,"x",null,null,"x",null,null,null,0,null,null,null,null,0]
[null,null,null,null,null,null,null,"x",null,"","",null,"",null,"x",null,null,"x",null,null,"x",null,null,null,0,null,null,null,null,0]
[null,null,null,null,null,null,null,"x",null,"","",null,"",null,"x",null,null,"x",null,null,"x",null,null,null,0,null,null,null,null,0]
[null,null,null,null,null,null,null,"x",null,"","",null,"",null,"x",null,null,"x",null,null,"x",null,null,null,0,null,null,null,null,0]
[null,null,null,null,null,null,null,"x",null,"","",null,"",null,"x",null,null,"x",null,null,"x",null,null,null,0,null,null,null,null,0]
[null,null,null,null,null,null,null,"x",null,"","",null,"",null,"x",null,null,"x",null,null,"x",null,null,null,0,null,null,null,null,0]
[null,null,null,null,null,null,null,"x",null,"","",null,"",null,"x",null,null,"x",null,null,"x",null,null,null,0,null,null,null,null,0]
[null,null,null,null,null,null,null,"x",null,"","",null,"",null,"x",null,null,"x",null,null,"x",null,null,null,0,null,null,null,null,0]
[null,null,null,null,null,null,null,"x",null,"","",null,"",null,"x",null,null,"x",null,null,"x",null,null,null,0,null,null,null,null,0]
[null,null,null,null,null,null,null,"x",null,"","",null,"",null,"x",null,null,"x",null,null,"x",null,null,null,0,null,null,null,null,0]
[null,null,null,null,null,null,null,"x",null,"","",null,"",null,"x",null,null,"x",null,null,"x",null,null,null,0,null,null,null,null,0]
[null,null,null,null,null,null,null,"x",null,"","",null,"",null,"x",null,null,"x",null,null,"x",null,null,null,0,null,null,null,null,0]
[null,null,null,null,null,null,null,"x",null,"","",null,"",null,"x",null,null,"x",null,null,"x",null,null,null,0,null,null,null,null,0]
[null,null,null,null,null,null,null,"x",null,"","",null,"",null,"x",null,null,"x",null,null,"x",null,null,null,0,null,null,null,null,0]
[null,null,null,null,null,null,null,"x",null,"","",null,"",null,"x",null,null,"x",null,null,"x",null,null,null,0,null,null,null,null,0]
[null,null,null,null,null,null,null,"x",null,"","",null,"",null,"x",null,null,"x",null,null,"x",null,null,null,0,null,null,null,null,0]
[null,null,null,null,null,null,null,"x",null,"","",null,"",null,"x",null,null,"x",null,null,"x",null,null,null,0,null,null,null,null,0]
[null,null,null,null,null,null,null,"x",null,"","",null,"",null,"x",null,null,"x",null,null,"x",null,null,null,0,null,null,null,null,0]
[null,null,null,null,null,null,null,"x",null,"","",null,"",null,"x",null,null,"x",null,null,"x",null,null,null,0,null,null,null,null,0]
[null,null,null,null,null,null,null,"x",null,"","",null,"",null,"x",null,null,"x",null,null,"x",null,null,null,0,null,null,null,null,0]
[null,null,null,null,null,null,null,"x",null,"","",null,"",null,"x",null,null,"x",null,null,"x",null,null,null,0,null,null,null,null,0]
[null,null,null,null,null,null,null,"x",null,"","",null,"",null,"x",null,null,"x",null,null,"x",null,null,null,0,null,null,null,null,0]
[null,null,null,null,null,null,null,"x",null,"","",null,"",null,"x",null,null,"x",null,null,"x",null,null,null,0,null,null,null,null,0]
[null,null,null,null,null,null,null,"x",null,"","",null,"",null,"x",null,null,"x",null,null,"x",null,null,null,0,null,null,null,null,0]
[null,null,null,null,null,null,null,"x",null,"","",null,"",null,"x",null,null,"x",null,null,"x",null,null,null,0,null,null,null,null,0]
[null,null,null,null,null,null,null,"x",null,"","",null,"",null,"x",null,null,"x",null,null,"x",null,null,null,0,null,null,null,null,0]
[null,null,null,null,null,null,null,"x",null,"","",null,"",null,"x",null,null,"x",null,null,"x",null,null,null,0,null,null,null,null,0]
[null,null,null,null,null,null,null,"x",null,"","",null,"",null,"x",null,null,"x",null,null,"x",null,null,null,0,null,null,null,null,0]
[null,null,null,null,null,null,null,"x",null,"","",null,"",null,"x",null,null,"x",null,null,"x",null,null,null,0,null,null,null,null,0]
[null,null,null,null,null,null,null,"x",null,"","",null,"",null,"x",null,null,"x",null,null,"x",null,null,null,0,null,null,null,null,0]
[null,null,null,null,null,null,null,"x",null,"","",null,"",null,"x",null,null,"x",null,null,"x",null,null,null,0,null,null,null,null,0]
[null,null,null,null,null,null,null,"x",null,"","",null,"",null,"x",null,null,"x",null,null,"x",null,null,null,0,null,null,null,null,0]
[null,null,null,null,null,null,null,"x",null,"","",null,"",null,"x",null,null,"x",null,null,"x",null,null,null,0,null,null,null,null,0]
[null,null,null,null,null,null,null,"x",null,"","",null,"",null,"x",null,null,"x",null,null,"x",null,null,null,0,null,null,null,null,0]
[null,null,null,null,null,null,null,"x",null,"","",null,"",null,"x",null,null,"x",null,null,"x",null,null,null,0,null,null,null,null,0]
[null,null,null,null,null,null,null,"x",null,"","",null,"",null,"x",null,null,"x",null,null,"x",null,null,null,0,null,null,null,null,0]
[null,null,null,null,null,null,null,"x",null,"","",null,"",null,"x",null,null,"x",null,null,"x",null,null,null,0,null,null,null,null,0]
[null,null,null,null,null,null,null,"x",null,"","",null,"",null,"x",null,null,"x",null,null,"x",null,null,null,0,null,null,null,null,0]
[null,null,null,null,null,null,null,"x",null,"","",null,"",null,"x",null,null,"x",null,null,"x",null,null,null,0,null,null,null,null,0]
[null,null,null,null,null,null,null,"x",null,"","",null,"",null,"x",null,null,"x",null,null,"x",null,null,null,0,null,null,null,null,0]
[null,null,null,null,null,null,null,"x",null,"","",null,"",null,"x",null,null,"x",null,null,"x",null,null,null,0,null,null,null,null,0]
[null,null,null,null,null,null,null,"x",null,"","",null,"",null,"x",null,null,"x",null,null,"x",null,null,null,0,null,null,null,null,0]
[null,null,null,null,null,null,null,"x",null,"","",null,"",null,"x",null,null,"x",null,null,"x",null,null,null,0,null,null,null,null,0]
[null,null,null,null,null,null,null,"x",null,"","",null,"",null,"x",null,null,"x",null,null,"x",null,null,null,0,null,null,null,null,0]
[null,null,null,null,null,null,null,"x",null,"","",null,"",null,"x",null,null,"x",null,null,"x",null,null,null,0,null,null,null,null,0]
[null,null,null,null,null,null,null,"x",null,"","",null,"",null,"x",null,null,"x",null,null,"x",null,null,null,0,null,null,null,null,0]
[null,null,null,null,null,null,null,"x",null,"","",null,"",null,"x",null,null,"x",null,null,"x",null,null,null,0,null,null,null,null,0]
[null,null,null,null,null,null,null,"x",null,"","",null,"",null,"x",null,null,"x",null,null,"x",null,null,null,0,null,null,null,null,0]
[null,null,null,null,null,null,null,"x",null,"","",null,"",null,"x",null,null,"x",null,null,"x",null,null,null,0,null,null,null,null,0]
[null,null,null,null,null,null,null,"x",null,"","",null,"",null,"x",null,null,"x",null,null,"x",null,null,null,0,null,null,null,null,0]
[null,null,null,null,null,null,null,"x",null,"","",null,"",null,"x",null,null,"x",null,null,"x",null,null,null,0,null,null,null,null,0]
[null,null,null,null,null,null,null,"x",null,"","",null,"",null,"x",null,null,"x",null,null,"x",null,null,null,0,null,null,null,null,0]
[null,null,null,null,null,null,null,"x",null,"","",null,"",null,"x",null,null,"x",null,null,"x",null,null,null,0,null,null,null,null,0]
[null,null,null,null,null,null,null,"x",null,"","",null,"",null,"x",null,null,"x",null,null,"x",null,null,null,0,null,null,null,null,0]
[null,null,null,null,null,null,null,"x",null,"","",null,"",null,"x",null,null,"x",null,null,"x",null,null,null,0,null,null,null,null,0]
[null,null,null,null,null,null,null,"x",null,"","",null,"",null,"x",null,null,"x",null,null,"x",null,null,null,0,null,null,null,null,0]
[null,null,null,null,null,null,null,"x",null,"","",null,"",null,"x",null,null,"x",null,null,"x",null,null,null,0,null,null,null,null,0]
[null,null,null,null,null,null,null,"x",null,"","",null,"",null,"x",null,null,"x",null,null,"x",null,null,null,0,null,null,null,null,0]
[null,null,null,null,null,null,null,"x",null,"","",null,"",null,"x",null,null,"x",null,null,"x",null,null,null,0,null,null,null,null,0]
[null,null,null,null,null,null,null,"x",null,"","",null,"",null,"x",null,null,"x",null,null,"x",null,null,null,0,null,null,null,null,0]
[null,null,null,null,null,null,null,"x",null,"","",null,"",null,"x",null,null,"x",null,null,"x",null,null,null,0,null,null,null,null,0]
[null,null,null,null,null,null,null,"x",null,"","",null,"",null,"x",null,null,"x",null,null,"x",null,null,null,0,null,null,null,null,0]
[null,null,null,null,null,null,null,"x",null,"","",null,"",null,"x",null,null,"x",null,null,"x",null,null,null,0,null,null,null,null,0]
[null,null,null,null,null,null,null,"x",null,"","",null,"",null,"x",null,null,"x",null,null,"x",null,null,null,0,null,null,null,null,0]
[null,null,null,null,null,null,null,"x",null,"","",null,"",null,"x",null,null,"x",null,null,"x",null,null,null,0,null,null,null,null,0]
[null,null,null,null,null,null,null,"x",null,"","",null,"",null,"x",null,null,"x",null,null,"x",null,null,null,0,null,null,null,null,0]
[null,null,null,null,null,null,null,"x",null,"","",null,"",null,"x",null,null,"x",null,null,"x",null,null,null,0,null,null,null,null,0]
[null,null,null,null,null,null,null,"x",null,"","",null,"",null,"x",null,null,"x",null,null,"x",null,null,null,0,null,null,null,null,0]
[null,null,null,null,null,null,null,"x",null,"","",null,"",null,"x",null,null,"x",null,null,"x",null,null,null,0,null,null,null,null,0]
[null,null,null,null,null,null,null,"x",null,"","",null,"",null,"x",null,null,"x",null,null,"x",null,null,null,0,null,null,null,null,0]
[null,null,null,null,null,null,null,"x",null,"","",null,"",null,"x",null,null,"x",null,null,"x",null,null,null,0,null,null,null,null,0]
[null,null,null,null,null,null,null,"x",null,"","",null,"",null,"x",null,null,"x",null,null,"x",null,null,null,0,null,null,null,null,0]
[null,null,null,null,null,null,null,"x",null,"","",null,"",null,"x",null,null,"x",null,null,"x",null,null,null,0,null,null,null,null,0]
[null,null,null,null,null,null,null,"x",null,"","",null,"",null,"x",null,null,"x",null,null,"x",null,null,null,0,null,null,null,null,0]
[null,null,null,null,null,null,null,"x",null,"","",null,"",null,"x",null,null,"x",null,null,"x",null,null,null,0,null,null,null,null,0]
[null,null,null,null,null,null,null,"x",null,"","",null,"",null,"x",null,null,"x",null,null,"x",null,null,null,0,null,null,null,null,0]
[null,null,null,null,null,null,null,"x",null,"","",null,"",null,"x",null,null,"x",null,null,"x",null,null,null,0,null,null,null,null,0]
[null,null,null,null,null,null,null,"x",null,"","",null,"",null,"x",null,null,"x",null,null,"x",null,null,null,0,null,null,null,null,0]
[null,null,null,null,null,null,null,"x",null,"","",null,"",null,"x",null,null,"x",null,null,"x",null,null,null,0,null,null,null,null,0]
[null,null,null,null,null,null,null,"x",null,"","",null,"",null,"x",null,null,"x",null,null,"x",null,null,null,0,null,null,null,null,0]
[null,null,null,null,null,null,null,"x",null,"","",null,"",null,"x",null,null,"x",null,null,"x",null,null,null,0,null,null,null,null,0]
[null,null,null,null,null,null,null,"x",null,"","",null,"",null,"x",null,null,"x",null,null,"x",null,null,null,0,null,null,null,null,0]
[null,null,null,null,null,null,null,"x",null,"","",null,"",null,"x",null,null,"x",null,null,"x",null,null,null,0,null,null,null,null,0]
[null,null,null,null,null,null,null,"x",null,"","",null,"",null,"x",null,null,"x",null,null,"x",null,null,null,0,null,null,null,null,0]
[null,null,null,null,null,null,null,"x",null,"","",null,"",null,"x",null,null,"x",null,null,"x",null,null,null,0,null,null,null,null,0]
[null,null,null,null,null,null,null,"x",null,"","",null,"",null,"x",null,null,"x",null,null,"x",null,null,null,0,null,null,null,null,0]
[null,null,null,null,null,null,null,"x",null,"","",null,"",null,"x",null,null,"x",null,null,"x",null,null,null,0,null,null,null,null,0]
[null,null,null,null,null,null,null,"x",null,"","",null,"",null,"x",null,null,"x",null,null,"x",null,null,null,0,null,null,null,null,0]
[null,null,null,null,null,null,null,"x",null,"","",null,"",null,"x",null,null,"x",null,null,"x",null,null,null,0,null,null,null,null,0]
[null,null,null,null,null,null,null,"x",null,"","",null,"",null,"x",null,null,"x",null,null,"x",null,null,null,0,null,null,null,null,0]
[null,null,null,null,null,null,null,"x",null,"","",null,"",null,"x",null,null,"x",null,null,"x",null,null,null,0,null,null,null,null,0]
[null,null,null,null,null,null,null,"x",null,"","",null,"",null,"x",null,null,"x",null,null,"x",null,null,null,0,null,null,null,null,0]
[null,null,null,null,null,null,null,"x",null,"","",null,"",null,"x",null,null,"x",null,null,"x",null,null,null,0,null,null,null,null,0]
[null,null,null,null,null,null,null,"x",null,"","",null,"",null,"x",null,null,"x",null,null,"x",null,null,null,0,null,null,null,null,0]
[null,null,null,null,null,null,null,"x",null,"","",null,"",null,"x",null,null,"x",null,null,"x",null,null,null,0,null,null,null,null,0]
[null,null,null,null,null,null,null,"x",null,"","",null,"",null,"x",null,null,"x",null,null,"x",null,null,null,0,null,null,null,null,0]
[null,null,null,null,null,null,null,"x",null,"","",null,"",null,"x",null,null,"x",null,null,"x",null,null,null,0,null,null,null,null,0]
[null,null,null,null,null,null,null,"x",null,"","",null,"",null,"x",null,null,"x",null,null,"x",null,null,null,0,null,null,null,null,0]
[null,null,null,null,null,null,null,"x",null,"","",null,"",null,"x",null,null,"x",null,null,"x",null,null,null,0,null,null,null,null,0]
[null,null,null,null,null,null,null,"x",null,"","",null,"",null,"x",null,null,"x",null,null,"x",null,null,null,0,null,null,null,null,0]
[null,null,null,null,null,null,null,"x",null,"","",null,"",null,"x",null,null,"x",null,null,"x",null,null,null,0,null,null,null,null,0]
[null,null,null,null,null,null,null,"x",null,"","",null,"",null,"x",null,null,"x",null,null,"x",null,null,null,0,null,null,null,null,0]
[null,null,null,null,null,null,null,"x",null,"","",null,"",null,"x",null,null,"x",null,null,"x",null,null,null,0,null,null,null,null,0]
[null,null,null,null,null,null,null,"x",null,"","",null,"",null,"x",null,null,"x",null,null,"x",null,null,null,0,null,null,null,null,0]
[null,null,null,null,null,null,null,"x",null,"","",null,"",null,"x",null,null,"x",null,null,"x",null,null,null,0,null,null,null,null,0]
[null,null,null,null,null,null,null,"x",null,"","",null,"",null,"x",null,null,"x",null,null,"x",null,null,null,0,null,null,null,null,0]
[null,null,null,null,null,null,null,"x",null,"","",null,"",null,"x",null,null,"x",null,null,"x",null,null,null,0,null,null,null,null,0]
[null,null,null,null,null,null,null,"x",null,"","",null,"",null,"x",null,null,"x",null,null,"x",null,null,null,0,null,null,null,null,0]
[null,null,null,null,null,null,null,"x",null,"","",null,"",null,"x",null,null,"x",null,null,"x",null,null,null,0,null,null,null,null,0]
[null,null,null,null,null,null,null,"x",null,"","",null,"",null,"x",null,null,"x",null,null,"x",null,null,null,0,null,null,null,null,0]
[null,null,null,null,null,null,null,"x",null,"","",null,"",null,"x",null,null,"x",null,null,"x",null,null,null,0,null,null,null,null,0]
[null,null,null,null,null,null,null,"x",null,"","",null,"",null,"x",null,null,"x",null,null,"x",null,null,null,0,null,null,null,null,0]
[null,null,null,null,null,null,null,"x",null,"","",null,"",null,"x",null,null,"x",null,null,"x",null,null,null,0,null,null,null,null,0]
[null,null,null,null,null,null,null,"x",null,"","",null,"",null,"x",null,null,"x",null,null,"x",null,null,null,0,null,null,null,null,0]
[null,null,null,null,null,null,null,"x",null,"","",null,"",null,"x",null,null,"x",null,null,"x",null,null,null,0,null,null,null,null,0]
[null,null,null,null,null,null,null,"x",null,"","",null,"",null,"x",null,null,"x",null,null,"x",null,null,null,0,null,null,null,null,0]
[null,null,null,null,null,null,null,"x",null,"","",null,"",null,"x",null,null,"x",null,null,"x",null,null,null,0,null,null,null,null,0]
[null,null,null,null,null,null,null,"x",null,"","",null,"",null,"x",null,null,"x",null,null,"x",null,null,null,0,null,null,null,null,0]
[null,null,null,null,null,null,null,"x",null,"","",null,"",null,"x",null,null,"x",null,null,"x",null,null,null,0,null,null,null,null,0]
[null,null,null,null,null,null,null,"x",null,"","",null,"",null,"x",null,null,"x",null,null,"x",null,null,null,0,null,null,null,null,0]
[null,null,null,null,null,null,null,"x",null,"","",null,"",null,"x",null,null,"x",null,null,"x",null,null,null,0,null,null,null,null,0]
[null,null,null,null,null,null,null,"x",null,"","",null,"",null,"x",null,null,"x",null,null,"x",null,null,null,0,null,null,null,null,0]
[null,null,null,null,null,null,null,"x",null,"","",null,"",null,"x",null,null,"x",null,null,"x",null,null,null,0,null,null,null,null,0]
[null,null,null,null,null,null,null,"x",null,"","",null,"",null,"x",null,null,"x",null,null,"x",null,null,null,0,null,null,null,null,0]
[null,null,null,null,null,null,null,"x",null,"","",null,"",null,"x",null,null,"x",null,null,"x",null,null,null,0,null,null,null,null,0]
[null,null,null,null,null,null,null,"x",null,"","",null,"",null,"x",null,null,"x",null,null,"x",null,null,null,0,null,null,null,null,0]
[null,null,null,null,null,null,null,"x",null,"","",null,"",null,"x",null,null,"x",null,null,"x",null,null,null,0,null,null,null,null,0]
[null,null,null,null,null,null,null,"x",null,"","",null,"",null,"x",null,null,"x",null,null,"x",null,null,null,0,null,null,null,null,0]
[null,null,null,null,null,null,null,"x",null,"","",null,"",null,"x",null,null,"x",null,null,"x",null,null,null,0,null,null,null,null,0]
[null,null,null,null,null,null,null,"x",null,"","",null,"",null,"x",null,null,"x",null,null,"x",null,null,null,0,null,null,null,null,0]
[null,null,null,null,null,null,null,"x",null,"","",null,"",null,"x",null,null,"x",null,null,"x",null,null,null,0,null,null,null,null,0]
[null,null,null,null,null,null,null,"x",null,"","",null,"",null,"x",null,null,"x",null,null,"x",null,null,null,0,null,null,null,null,0]
[null,null,null,null,null,null,null,"x",null,"","",null,"",null,"x",null,null,"x",null,null,"x",null,null,null,0,null,null,null,null,0]
[null,null,null,null,null,null,null,"x",null,"","",null,"",null,"x",null,null,"x",null,null,"x",null,null,null,0,null,null,null,null,0]
[null,null,null,null,null,null,null,"x",null,"","",null,"",null,"x",null,null,"x",null,null,"x",null,null,null,0,null,null,null,null,0]
[null,null,null,null,null,null,null,"x",null,"","",null,"",null,"x",null,null,"x",null,null,"x",null,null,null,0,null,null,null,null,0]
[null,null,null,null,null,null,null,"x",null,"","",null,"",null,"x",null,null,"x",null,null,"x",null,null,null,0,null,null,null,null,0]
[null,null,null,null,null,null,null,"x",null,"","",null,"",null,"x",null,null,"x",null,null,"x",null,null,null,0,null,null,null,null,0]
[null,null,null,null,null,null,null,"x",null,"","",null,"",null,"x",null,null,"x",null,null,"x",null,null,null,0,null,null,null,null,0]
[null,null,null,null,null,null,null,"x",null,"","",null,"",null,"x",null,null,"x",null,null,"x",null,null,null,0,null,null,null,null,0]
[null,null,null,null,null,null,null,"x",null,"","",null,"",null,"x",null,null,"x",null,null,"x",null,null,null,0,null,null,null,null,0]
[null,null,null,null,null,null,null,"x",null,"","",null,"",null,"x",null,null,"x",null,null,"x",null,null,null,0,null,null,null,null,0]
[null,null,null,null,null,null,null,"x",null,"","",null,"",null,"x",null,null,"x",null,null,"x",null,null,null,0,null,null,null,null,0]
[null,null,null,null,null,null,null,"x",null,"","",null,"",null,"x",null,null,"x",null,null,"x",null,null,null,0,null,null,null,null,0]
[null,null,null,null,null,null,null,"x",null,"","",null,"",null,"x",null,null,"x",null,null,"x",null,null,null,0,null,null,null,null,0]
[null,null,null,null,null,null,null,"x",null,"","",null,"",null,"x",null,null,"x",null,null,"x",null,null,null,0,null,null,null,null,0]
[null,null,null,null,null,null,null,"x",null,"","",null,"",null,"x",null,null,"x",null,null,"x",null,null,null,0,null,null,null,null,0]
[null,null,null,null,null,null,null,"x",null,"","",null,"",null,"x",null,null,"x",null,null,"x",null,null,null,0,null,null,null,null,0]
[null,null,null,null,null,null,null,"x",null,"","",null,"",null,"x",null,null,"x",null,null,"x",null,null,null,0,null,null,null,null,0]
[null,null,null,null,null,null,null,"x",null,"","",null,"",null,"x",null,null,"x",null,null,"x",null,null,null,0,null,null,null,null,0]
[null,null,null,null,null,null,null,"x",null,"","",null,"",null,"x",null,null,"x",null,null,"x",null,null,null,0,null,null,null,null,0]
[null,null,null,null,null,null,null,"x",null,"","",null,"",null,"x",null,null,"x",null,null,"x",null,null,null,0,null,null,null,null,0]
[null,null,null,null,null,null,null,"x",null,"","",null,"",null,"x",null,null,"x",null,null,"x",null,null,null,0,null,null,null,null,0]
[null,null,null,null,null,null,null,"x",null,"","",null,"",null,"x",null,null,"x",null,null,"x",null,null,null,0,null,null,null,null,0]
[null,null,null,null,null,null,null,"x",null,"","",null,"",null,"x",null,null,"x",null,null,"x",null,null,null,0,null,null,null,null,0]
[null,null,null,null,null,null,null,"x",null,"","",null,"",null,"x",null,null,"x",null,null,"x",null,null,null,0,null,null,null,null,0]
[null,null,null,null,null,null,null,"x",null,"","",null,"",null,"x",null,null,"x",null,null,"x",null,null,null,0,null,null,null,null,0]
[null,null,null,null,null,null,null,"x",null,"","",null,"",null,"x",null,null,"x",null,null,"x",null,null,null,0,null,null,null,null,0]
[null,null,null,null,null,null,null,"x",null,"","",null,"",null,"x",null,null,"x",null,null,"x",null,null,null,0,null,null,null,null,0]
[null,null,null,null,null,null,null,"x",null,"","",null,"",null,"x",null,null,"x",null,null,"x",null,null,null,0,null,null,null,null,0]
[null,null,null,null,null,null,null,"x",null,"","",null,"",null,"x",null,null,"x",null,null,"x",null,null,null,0,null,null,null,null,0]
[null,null,null,null,null,null,null,"x",null,"","",null,"",null,"x",null,null,"x",null,null,"x",null,null,null,0,null,null,null,null,0]
[null,null,null,null,null,null,null,"x",null,"","",null,"",null,"x",null,null,"x",null,null,"x",null,null,null,0,null,null,null,null,0]
[null,null,null,null,null,null,null,"x",null,"","",null,"",null,"x",null,null,"x",null,null,"x",null,null,null,0,null,null,null,null,0]
[null,null,null,null,null,null,null,"x",null,"","",null,"",null,"x",null,null,"x",null,null,"x",null,null,null,0,null,null,null,null,0]
[null,null,null,null,null,null,null,"x",null,"","",null,"",null,"x",null,null,"x",null,null,"x",null,null,null,0,null,null,null,null,0]
[null,null,null,null,null,null,null,"x",null,"","",null,"",null,"x",null,null,"x",null,null,"x",null,null,null,0,null,null,null,null,0]
[null,null,null,null,null,null,null,"x",null,"","",null,"",null,"x",null,null,"x",null,null,"x",null,null,null,0,null,null,null,null,0]
[null,null,null,null,null,null,null,"x",null,"","",null,"",null,"x",null,null,"x",null,null,"x",null,null,null,0,null,null,null,null,0]
[null,null,null,null,null,null,null,"x",null,"","",null,"",null,"x",null,null,"x",null,null,"x",null,null,null,0,null,null,null,null,0]
[null,null,null,null,null,null,null,"x",null,"","",null,"",null,"x",null,null,"x",null,null,"x",null,null,null,0,null,null,null,null,0]
[null,null,null,null,null,null,null,"x",null,"","",null,"",null,"x",null,null,"x",null,null,"x",null,null,null,0,null,null,null,null,0]
[null,null,null,null,null,null,null,"x",null,"","",null,"",null,"x",null,null,"x",null,null,"x",null,null,null,0,null,null,null,null,0]
[null,null,null,null,null,null,null,"x",null,"","",null,"",null,"x",null,null,"x",null,null,"x",null,null,null,0,null,null,null,null,0]
[null,null,null,null,null,null,null,"x",null,"","",null,"",null,"x",null,null,"x",null,null,"x",null,null,null,0,null,null,null,null,0]
[null,null,null,null,null,null,null,"x",null,"","",null,"",null,"x",null,null,"x",null,null,"x",null,null,null,0,null,null,null,null,0]
[null,null,null,null,null,null,null,"x",null,"","",null,"",null,"x",null,null,"x",null,null,"x",null,null,null,0,null,null,null,null,0]
[null,null,null,null,null,null,null,"x",null,"","",null,"",null,"x",null,null,"x",null,null,"x",null,null,null,0,null,null,null,null,0]
[null,null,null,null,null,null,null,"x",null,"","",null,"",null,"x",null,null,"x",null,null,"x",null,null,null,0,null,null,null,null,0]
[null,null,null,null,null,null,null,"x",null,"","",null,"",null,"x",null,null,"x",null,null,"x",null,null,null,0,null,null,null,null,0]
[null,null,null,null,null,null,null,"x",null,"","",null,"",null,"x",null,null,"x",null,null,"x",null,null,null,0,null,null,null,null,0]
[null,null,null,null,null,null,null,"x",null,"","",null,"",null,"x",null,null,"x",null,null,"x",null,null,null,0,null,null,null,null,0]
[null,null,null,null,null,null,null,"x",null,"","",null,"",null,"x",null,null,"x",null,null,"x",null,null,null,0,null,null,null,null,0]
[null,null,null,null,null,null,null,"x",null,"","",null,"",null,"x",null,null,"x",null,null,"x",null,null,null,0,null,null,null,null,0]
[null,null,null,null,null,null,null,"x",null,"","",null,"",null,"x",null,null,"x",null,null,"x",null,null,null,0,null,null,null,null,0]
[null,null,null,null,null,null,null,"x",null,"","",null,"",null,"x",null,null,"x",null,null,"x",null,null,null,0,null,null,null,null,0]
[null,null,null,null,null,null,null,"x",null,"","",null,"",null,"x",null,null,"x",null,null,"x",null,null,null,0,null,null,null,null,0]
[null,null,null,null,null,null,null,"x",null,"","",null,"",null,"x",null,null,"x",null,null,"x",null,null,null,0,null,null,null,null,0]
[null,null,null,null,null,null,null,"x",null,"","",null,"",null,"x",null,null,"x",null,null,"x",null,null,null,0,null,null,null,null,0]
[null,null,null,null,null,null,null,"x",null,"","",null,"",null,"x",null,null,"x",null,null,"x",null,null,null,0,null,null,null,null,0]
[null,null,null,null,null,null,null,"x",null,"","",null,"",null,"x",null,null,"x",null,null,"x",null,null,null,0,null,null,null,null,0]
[null,null,null,null,null,null,null,"x",null,"","",null,"",null,"x",null,null,"x",null,null,"x",null,null,null,0,null,null,null,null,0]
[null,null,null,null,null,null,null,"x",null,"","",null,"",null,"x",null,null,"x",null,null,"x",null,null,null,0,null,null,null,null,0]
[null,null,null,null,null,null,null,"x",null,"","",null,"",null,"x",null,null,"x",null,null,"x",null,null,null,0,null,null,null,null,0]
[null,null,null,null,null,null,null,"x",null,"","",null,"",null,"x",null,null,"x",null,null,"x",null,null,null,0,null,null,null,null,0]
[null,null,null,null,null,null,null,"x",null,"","",null,"",null,"x",null,null,"x",null,null,"x",null,null,null,0,null,null,null,null,0]
[null,null,null,null,null,null,null,"x",null,"","",null,"",null,"x",null,null,"x",null,null,"x",null,null,null,0,null,null,null,null,0]
[null,null,null,null,null,null,null,"x",null,"","",null,"",null,"x",null,null,"x",null,null,"x",null,null,null,0,null,null,null,null,0]
[null,null,null,null,null,null,null,"x",null,"","",null,"",null,"x",null,null,"x",null,null,"x",null,null,null,0,null,null,null,null,0]
[null,null,null,null,null,null,null,"x",null,"","",null,"",null,"x",null,null,"x",null,null,"x",null,null,null,0,null,null,null,null,0]
[null,null,null,null,null,null,null,"x",null,"","",null,"",null,"x",null,null,"x",null,null,"x",null,null,null,0,null,null,null,null,0]
[null,null,null,null,null,null,null,"x",null,"","",null,"",null,"x",null,null,"x",null,null,"x",null,null,null,0,null,null,null,null,0]
[null,null,null,null,null,null,null,"x",null,"","",null,"",null,"x",null,null,"x",null,null,"x",null,null,null,0,null,null,null,null,0]
[null,null,null,null,null,null,null,"x",null,"","",null,"",null,"x",null,null,"x",null,null,"x",null,null,null,0,null,null,null,null,0]
[null,null,null,null,null,null,null,"x",null,"","",null,"",null,"x",null,null,"x",null,null,"x",null,null,null,0,null,null,null,null,0]
[null,null,null,null,null,null,null,"x",null,"","",null,"",null,"x",null,null,"x",null,null,"x",null,null,null,0,null,null,null,null,0]
[null,null,null,null,null,null,null,"x",null,"","",null,"",null,"x",null,null,"x",null,null,"x",null,null,null,0,null,null,null,null,0]
[null,null,null,null,null,null,null,"x",null,"","",null,"",null,"x",null,null,"x",null,null,"x",null,null,null,0,null,null,null,null,0]
[null,null,null,null,null,null,null,"x",null,"","",null,"",null,"x",null,null,"x",null,null,"x",null,null,null,0,null,null,null,null,0]
[null,null,null,null,null,null,null,"x",null,"","",null,"",null,"x",null,null,"x",null,null,"x",null,null,null,0,null,null,null,null,0]
[null,null,null,null,null,null,null,"x",null,"","",null,"",null,"x",null,null,"x",null,null,"x",null,null,null,0,null,null,null,null,0]
[null,null,null,null,null,null,null,"x",null,"","",null,"",null,"x",null,null,"x",null,null,"x",null,null,null,0,null,null,null,null,0]
[null,null,null,null,null,null,null,"x",null,"","",null,"",null,"x",null,null,"x",null,null,"x",null,null,null,0,null,null,null,null,0]
[null,null,null,null,null,null,null,"x",null,"","",null,"",null,"x",null,null,"x",null,null,"x",null,null,null,0,null,null,null,null,0]
[null,null,null,null,null,null,null,"x",null,"","",null,"",null,"x",null,null,"x",null,null,"x",null,null,null,0,null,null,null,null,0]
[null,null,null,null,null,null,null,"x",null,"","",null,"",null,"x",null,null,"x",null,null,"x",null,null,null,0,null,null,null,null,0]
[null,null,null,null,null,null,null,"x",null,"","",null,"",null,"x",null,null,"x",null,null,"x",null,null,null,0,null,null,null,null,0]
[null,null,null,null,null,null,null,"x",null,"","",null,"",null,"x",null,null,"x",null,null,"x",null,null,null,0,null,null,null,null,0]
[null,null,null,null,null,null,null,"x",null,"","",null,"",null,"x",null,null,"x",null,null,"x",null,null,null,0,null,null,null,null,0]
[null,null,null,null,null,null,null,"x",null,"","",null,"",null,"x",null,null,"x",null,null,"x",null,null,null,0,null,null,null,null,0]
[null,null,null,null,null,null,null,"x",null,"","",null,"",null,"x",null,null,"x",null,null,"x",null,null,null,0,null,null,null,null,0]
[null,null,null,null,null,null,null,"x",null,"","",null,"",null,"x",null,null,"x",null,null,"x",null,null,null,0,null,null,null,null,0]
[null,null,null,null,null,null,null,"x",null,"","",null,"",null,"x",null,null,"x",null,null,"x",null,null,null,0,null,null,null,null,0]
[null,null,null,null,null,null,null,"x",null,"","",null,"",null,"x",null,null,"x",null,null,"x",null,null,null,0,null,null,null,null,0]
[null,null,null,null,null,null,null,"x",null,"","",null,"",null,"x",null,null,"x",null,null,"x",null,null,null,0,null,null,null,null,0]
[null,null,null,null,null,null,null,"x",null,"","",null,"",null,"x",null,null,"x",null,null,"x",null,null,null,0,null,null,null,null,0]
[null,null,null,null,null,null,null,"x",null,"","",null,"",null,"x",null,null,"x",null,null,"x",null,null,null,0,null,null,null,null,0]
[null,null,null,null,null,null,null,"x",null,"","",null,"",null,"x",null,null,"x",null,null,"x",null,null,null,0,null,null,null,null,0]
[null,null,null,null,null,null,null,"x",null,"","",null,"",null,"x",null,null,"x",null,null,"x",null,null,null,0,null,null,null,null,0]
[null,null,null,null,null,null,null,"x",null,"","",null,"",null,"x",null,null,"x",null,null,"x",null,null,null,0,null,null,null,null,0]
[null,null,null,null,null,null,null,"x",null,"","",null,"",null,"x",null,null,"x",null,null,"x",null,null,null,0,null,null,null,null,0]
[null,null,null,null,null,null,null,"x",null,"","",null,"",null,"x",null,null,"x",null,null,"x",null,null,null,0,null,null,null,null,0]
[null,null,null,null,null,null,null,"x",null,"","",null,"",null,"x",null,null,"x",null,null,"x",null,null,null,0,null,null,null,null,0]
[null,null,null,null,null,null,null,"x",null,"","",null,"",null,"x",null,null,"x",null,null,"x",null,null,null,0,null,null,null,null,0]
[null,null,null,null,null,null,null,"x",null,"","",null,"",null,"x",null,null,"x",null,null,"x",null,null,null,0,null,null,null,null,0]
[null,null,null,null,null,null,null,"x",null,"","",null,"",null,"x",null,null,"x",null,null,"x",null,null,null,0,null,null,null,null,0]
[null,null,null,null,null,null,null,"x",null,"","",null,"",null,"x",null,null,"x",null,null,"x",null,null,null,0,null,null,null,null,0]
[null,null,null,null,null,null,null,"x",null,"","",null,"",null,"x",null,null,"x",null,null,"x",null,null,null,0,null,null,null,null,0]
[null,null,null,null,null,null,null,"x",null,"","",null,"",null,"x",null,null,"x",null,null,"x",null,null,null,0,null,null,null,null,0]
[null,null,null,null,null,null,null,"x",null,"","",null,"",null,"x",null,null,"x",null,null,"x",null,null,null,0,null,null,null,null,0]
[null,null,null,null,null,null,null,"x",null,"","",null,"",null,"x",null,null,"x",null,null,"x",null,null,null,0,null,null,null,null,0]
[null,null,null,null,null,null,null,"x",null,"","",null,"",null,"x",null,null,"x",null,null,"x",null,null,null,0,null,null,null,null,0]
[null,null,null,null,null,null,null,"x",null,"","",null,"",null,"x",null,null,"x",null,null,"x",null,null,null,0,null,null,null,null,0]
[null,null,null,null,null,null,null,"x",null,"","",null,"",null,"x",null,null,"x",null,null,"x",null,null,null,0,null,null,null,null,0]
[null,null,null,null,null,null,null,"x",null,"","",null,"",null,"x",null,null,"x",null,null,"x",null,null,null,0,null,null,null,null,0]
[null,null,null,null,null,null,null,"x",null,"","",null,"",null,"x",null,null,"x",null,null,"x",null,null,null,0,null,null,null,null,0]
[null,null,null,null,null,null,null,"x",null,"","",null,"",null,"x",null,null,"x",null,null,"x",null,null,null,0,null,null,null,null,0]
[null,null,null,null,null,null,null,"x",null,"","",null,"",null,"x",null,null,"x",null,null,"x",null,null,null,0,null,null,null,null,0]
[null,null,null,null,null,null,null,"x",null,"","",null,"",null,"x",null,null,"x",null,null,"x",null,null,null,0,null,null,null,null,0]
[null,null,null,null,null,null,null,"x",null,"","",null,"",null,"x",null,null,"x",null,null,"x",null,null,null,0,null,null,null,null,0]
[null,null,null,null,null,null,null,"x",null,"","",null,"",null,"x",null,null,"x",null,null,"x",null,null,null,0,null,null,null,null,0]
[null,null,null,null,null,null,null,"x",null,"","",null,"",null,"x",null,null,"x",null,null,"x",null,null,null,0,null,null,null,null,0]
[null,null,null,null,null,null,null,"x",null,"","",null,"",null,"x",null,null,"x",null,null,"x",null,null,null,0,null,null,null,null,0]
[null,null,null,null,null,null,null,"x",null,"","",null,"",null,"x",null,null,"x",null,null,"x",null,null,null,0,null,null,null,null,0]
[null,null,null,null,null,null,null,"x",null,"","",null,"",null,"x",null,null,"x",null,null,"x",null,null,null,0,null,null,null,null,0]
[null,null,null,null,null,null,null,"x",null,"","",null,"",null,"x",null,null,"x",null,null,"x",null,null,null,0,null,null,null,null,0]
[null,null,null,null,null,null,null,"x",null,"","",null,"",null,"x",null,null,"x",null,null,"x",null,null,null,0,null,null,null,null,0]
[null,null,null,null,null,null,null,"x",null,"","",null,"",null,"x",null,null,"x",null,null,"x",null,null,null,0,null,null,null,null,0]
[null,null,null,null,null,null,null,"x",null,"","",null,"",null,"x",null,null,"x",null,null,"x",null,null,null,0,null,null,null,null,0]
[null,null,null,null,null,null,null,"x",null,"","",null,"",null,"x",null,null,"x",null,null,"x",null,null,null,0,null,null,null,null,0]
[null,null,null,null,null,null,null,"x",null,"","",null,"",null,"x",null,null,"x",null,null,"x",null,null,null,0,null,null,null,null,0]
[null,null,null,null,null,null,null,"x",null,"","",null,"",null,"x",null,null,"x",null,null,"x",null,null,null,0,null,null,null,null,0]
[null,null,null,null,null,null,null,"x",null,"","",null,"",null,"x",null,null,"x",null,null,"x",null,null,null,0,null,null,null,null,0]
[null,null,null,null,null,null,null,"x",null,"","",null,"",null,"x",null,null,"x",null,null,"x",null,null,null,0,null,null,null,null,0]
[null,null,null,null,null,null,null,"x",null,"","",null,"",null,"x",null,null,"x",null,null,"x",null,null,null,0,null,null,null,null,0]
[null,null,null,null,null,null,null,"x",null,"","",null,"",null,"x",null,null,"x",null,null,"x",null,null,null,0,null,null,null,null,0]
[null,null,null,null,null,null,null,"x",null,"","",null,"",null,"x",null,null,"x",null,null,"x",null,null,null,0,null,null,null,null,0]
[null,null,null,null,null,null,null,"x",null,"","",null,"",null,"x",null,null,"x",null,null,"x",null,null,null,0,null,null,null,null,0]
[null,null,null,null,null,null,null,"x",null,"","",null,"",null,"x",null,null,"x",null,null,"x",null,null,null,0,null,null,null,null,0]
[null,null,null,null,null,null,null,"x",null,"","",null,"",null,"x",null,null,"x",null,null,"x",null,null,null,0,null,null,null,null,0]
[null,null,null,null,null,null,null,"x",null,"","",null,"",null,"x",null,null,"x",null,null,"x",null,null,null,0,null,null,null,null,0]
[null,null,null,null,null,null,null,"x",null,"","",null,"",null,"x",null,null,"x",null,null,"x",null,null,null,0,null,null,null,null,0]
[null,null,null,null,null,null,null,"x",null,"","",null,"",null,"x",null,null,"x",null,null,"x",null,null,null,0,null,null,null,null,0]
[null,null,null,null,null,null,null,"x",null,"","",null,"",null,"x",null,null,"x",null,null,"x",null,null,null,0,null,null,null,null,0]
[null,null,null,null,null,null,null,"x",null,"","",null,"",null,"x",null,null,"x",null,null,"x",null,null,null,0,null,null,null,null,0]
[null,null,null,null,null,null,null,"x",null,"","",null,"",null,"x",null,null,"x",null,null,"x",null,null,null,0,null,null,null,null,0]
[null,null,null,null,null,null,null,"x",null,"","",null,"",null,"x",null,null,"x",null,null,"x",null,null,null,0,null,null,null,null,0]
[null,null,null,null,null,null,null,"x",null,"","",null,"",null,"x",null,null,"x",null,null,"x",null,null,null,0,null,null,null,null,0]
[null,null,null,null,null,null,null,"x",null,"","",null,"",null,"x",null,null,"x",null,null,"x",null,null,null,0,null,null,null,null,0]
[null,null,null,null,null,null,null,"x",null,"","",null,"",null,"x",null,null,"x",null,null,"x",null,null,null,0,null,null,null,null,0]
[null,null,null,null,null,null,null,"x",null,"","",null,"",null,"x",null,null,"x",null,null,"x",null,null,null,0,null,null,null,null,0]
[null,null,null,null,null,null,null,"x",null,"","",null,"",null,"x",null,null,"x",null,null,"x",null,null,null,0,null,null,null,null,0]
[null,null,null,null,null,null,null,"x",null,"","",null,"",null,"x",null,null,"x",null,null,"x",null,null,null,0,null,null,null,null,0]
[null,null,null,null,null,null,null,"x",null,"","",null,"",null,"x",null,null,"x",null,null,"x",null,null,null,0,null,null,null,null,0]
[null,null,null,null,null,null,null,"x",null,"","",null,"",null,"x",null,null,"x",null,null,"x",null,null,null,0,null,null,null,null,0]
[null,null,null,null,null,null,null,"x",null,"","",null,"",null,"x",null,null,"x",null,null,"x",null,null,null,0,null,null,null,null,0]
[null,null,null,null,null,null,null,"x",null,"","",null,"",null,"x",null,null,"x",null,null,"x",null,null,null,0,null,null,null,null,0]
[null,null,null,null,null,null,null,"x",null,"","",null,"",null,"x",null,null,"x",null,null,"x",null,null,null,0,null,null,null,null,0]
[null,null,null,null,null,null,null,"x",null,"","",null,"",null,"x",null,null,"x",null,null,"x",null,null,null,0,null,null,null,null,0]
[null,null,null,null,null,null,null,"x",null,"","",null,"",null,"x",null,null,"x",null,null,"x",null,null,null,0,null,null,null,null,0]
[null,null,null,null,null,null,null,"x",null,"","",null,"",null,"x",null,null,"x",null,null,"x",null,null,null,0,null,null,null,null,0]
[null,null,null,null,null,null,null,"x",null,"","",null,"",null,"x",null,null,"x",null,null,"x",null,null,null,0,null,null,null,null,0]
[null,null,null,null,null,null,null,"x",null,"","",null,"",null,"x",null,null,"x",null,null,"x",null,null,null,0,null,null,null,null,0]
[null,null,null,null,null,null,null,"x",null,"","",null,"",null,"x",null,null,"x",null,null,"x",null,null,null,0,null,null,null,null,0]
[null,null,null,null,null,null,null,"x",null,"","",null,"",null,"x",null,null,"x",null,null,"x",null,null,null,0,null,null,null,null,0]
[null,null,null,null,null,null,null,"x",null,"","",null,"",null,"x",null,null,"x",null,null,"x",null,null,null,0,null,null,null,null,0]
[null,null,null,null,null,null,null,"x",null,"","",null,"",null,"x",null,null,"x",null,null,"x",null,null,null,0,null,null,null,null,0]
[null,null,null,null,null,null,null,"x",null,"","",null,"",null,"x",null,null,"x",null,null,"x",null,null,null,0,null,null,null,null,0]
[null,null,null,null,null,null,null,"x",null,"","",null,"",null,"x",null,null,"x",null,null,"x",null,null,null,0,null,null,null,null,0]
[null,null,null,null,null,null,null,"x",null,"","",null,"",null,"x",null,null,"x",null,null,"x",null,null,null,0,null,null,null,null,0]
[null,null,null,null,null,null,null,"x",null,"","",null,"",null,"x",null,null,"x",null,null,"x",null,null,null,0,null,null,null,null,0]
[null,null,null,null,null,null,null,"x",null,"","",null,"",null,"x",null,null,"x",null,null,"x",null,null,null,0,null,null,null,null,0]
[null,null,null,null,null,null,null,"x",null,"","",null,"",null,"x",null,null,"x",null,null,"x",null,null,null,0,null,null,null,null,0]
[null,null,null,null,null,null,null,"x",null,"","",null,"",null,"x",null,null,"x",null,null,"x",null,null,null,0,null,null,null,null,0]
[null,null,null,null,null,null,null,"x",null,"","",null,"",null,"x",null,null,"x",null,null,"x",null,null,null,0,null,null,null,null,0]
[null,null,null,null,null,null,null,"x",null,"","",null,"",null,"x",null,null,"x",null,null,"x",null,null,null,0,null,null,null,null,0]
[null,null,null,null,null,null,null,"x",null,"","",null,"",null,"x",null,null,"x",null,null,"x",null,null,null,0,null,null,null,null,0]
[null,null,null,null,null,null,null,"x",null,"","",null,"",null,"x",null,null,"x",null,null,"x",null,null,null,0,null,null,null,null,0]
[null,null,null,null,null,null,null,"x",null,"","",null,"",null,"x",null,null,"x",null,null,"x",null,null,null,0,null,null,null,null,0]
[null,null,null,null,null,null,null,"x",null,"","",null,"",null,"x",null,null,"x",null,null,"x",null,null,null,0,null,null,null,null,0]
[null,null,null,null,null,null,null,"x",null,"","",null,"",null,"x",null,null,"x",null,null,"x",null,null,null,0,null,null,null,null,0]
[null,null,null,null,null,null,null,"x",null,"","",null,"",null,"x",null,null,"x",null,null,"x",null,null,null,0,null,null,null,null,0]
[null,null,null,null,null,null,null,"x",null,"","",null,"",null,"x",null,null,"x",null,null,"x",null,null,null,0,null,null,null,null,0]
[null,null,null,null,null,null,null,"x",null,"","",null,"",null,"x",null,null,"x",null,null,"x",null,null,null,0,null,null,null,null,0]
[null,null,null,null,null,null,null,"x",null,"","",null,"",null,"x",null,null,"x",null,null,"x",null,null,null,0,null,null,null,null,0]
[null,null,null,null,null,null,null,"x",null,"","",null,"",null,"x",null,null,"x",null,null,"x",null,null,null,0,null,null,null,null,0]
[null,null,null,null,null,null,null,"x",null,"","",null,"",null,"x",null,null,"x",null,null,"x",null,null,null,0,null,null,null,null,0]
[null,null,null,null,null,null,null,"x",null,"","",null,"",null,"x",null,null,"x",null,null,"x",null,null,null,0,null,null,null,null,0]
[null,null,null,null,null,null,null,"x",null,"","",null,"",null,"x",null,null,"x",null,null,"x",null,null,null,0,null,null,null,null,0]
[null,null,null,null,null,null,null,"x",null,"","",null,"",null,"x",null,null,"x",null,null,"x",null,null,null,0,null,null,null,null,0]
[null,null,null,null,null,null,null,"x",null,"","",null,"",null,"x",null,null,"x",null,null,"x",null,null,null,0,null,null,null,null,0]
[null,null,null,null,null,null,null,"x",null,"","",null,"",null,"x",null,null,"x",null,null,"x",null,null,null,0,null,null,null,null,0]
[null,null,null,null,null,null,null,"x",null,"","",null,"",null,"x",null,null,"x",null,null,"x",null,null,null,0,null,null,null,null,0]
[null,null,null,null,null,null,null,"x",null,"","",null,"",null,"x",null,null,"x",null,null,"x",null,null,null,0,null,null,null,null,0]
[null,null,null,null,null,null,null,"x",null,"","",null,"",null,"x",null,null,"x",null,null,"x",null,null,null,0,null,null,null,null,0]
[null,null,null,null,null,null,null,"x",null,"","",null,"",null,"x",null,null,"x",null,null,"x",null,null,null,0,null,null,null,null,0]
[null,null,null,null,null,null,null,"x",null,"","",null,"",null,"x",null,null,"x",null,null,"x",null,null,null,0,null,null,null,null,0]
[null,null,null,null,null,null,null,"x",null,"","",null,"",null,"x",null,null,"x",null,null,"x",null,null,null,0,null,null,null,null,0]
[null,null,null,null,null,null,null,"x",null,"","",null,"",null,"x",null,null,"x",null,null,"x",null,null,null,0,null,null,null,null,0]
[null,null,null,null,null,null,null,"x",null,"","",null,"",null,"x",null,null,"x",null,null,"x",null,null,null,0,null,null,null,null,0]
[null,null,null,null,null,null,null,"x",null,"","",null,"",null,"x",null,null,"x",null,null,"x",null,null,null,0,null,null,null,null,0]
[null,null,null,null,null,null,null,"x",null,"","",null,"",null,"x",null,null,"x",null,null,"x",null,null,null,0,null,null,null,null,0]
[null,null,null,null,null,null,null,"x",null,"","",null,"",null,"x",null,null,"x",null,null,"x",null,null,null,0,null,null,null,null,0]
[null,null,null,null,null,null,null,"x",null,"","",null,"",null,"x",null,null,"x",null,null,"x",null,null,null,0,null,null,null,null,0]
[null,null,null,null,null,null,null,"x",null,"","",null,"",null,"x",null,null,"x",null,null,"x",null,null,null,0,null,null,null,null,0]
[null,null,null,null,null,null,null,"x",null,"","",null,"",null,"x",null,null,"x",null,null,"x",null,null,null,0,null,null,null,null,0]
[null,null,null,null,null,null,null,"x",null,"","",null,"",null,"x",null,null,"x",null,null,"x",null,null,null,0,null,null,null,null,0]
[null,null,null,null,null,null,null,"x",null,"","",null,"",null,"x",null,null,"x",null,null,"x",null,null,null,0,null,null,null,null,0]
[null,null,null,null,null,null,null,"x",null,"","",null,"",null,"x",null,null,"x",null,null,"x",null,null,null,0,null,null,null,null,0]
[null,null,null,null,null,null,null,"x",null,"","",null,"",null,"x",null,null,"x",null,null,"x",null,null,null,0,null,null,null,null,0]
[null,null,null,null,null,null,null,"x",null,"","",null,"",null,"x",null,null,"x",null,null,"x",null,null,null,0,null,null,null,null,0]
[null,null,null,null,null,null,null,"x",null,"","",null,"",null,"x",null,null,"x",null,null,"x",null,null,null,0,null,null,null,null,0]
[null,null,null,null,null,null,null,"x",null,"","",null,"",null,"x",null,null,"x",null,null,"x",null,null,null,0,null,null,null,null,0]
[null,null,null,null,null,null,null,"x",null,"","",null,"",null,"x",null,null,"x",null,null,"x",null,null,null,0,null,null,null,null,0]
[null,null,null,null,null,null,null,"x",null,"","",null,"",null,"x",null,null,"x",null,null,"x",null,null,null,0,null,null,null,null,0]
[null,null,null,null,null,null,null,"x",null,"","",null,"",null,"x",null,null,"x",null,null,"x",null,null,null,0,null,null,null,null,0]
[null,null,null,null,null,null,null,"x",null,"","",null,"",null,"x",null,null,"x",null,null,"x",null,null,null,0,null,null,null,null,0]
[null,null,null,null,null,null,null,"x",null,"","",null,"",null,"x",null,null,"x",null,null,"x",null,null,null,0,null,null,null,null,0]
[null,null,null,null,null,null,null,"x",null,"","",null,"",null,"x",null,null,"x",null,null,"x",null,null,null,0,null,null,null,null,0]
[null,null,null,null,null,null,null,"x",null,"","",null,"",null,"x",null,null,"x",null,null,"x",null,null,null,0,null,null,null,null,0]
[null,null,null,null,null,null,null,"x",null,"","",null,"",null,"x",null,null,"x",null,null,"x",null,null,null,0,null,null,null,null,0]
[null,null,null,null,null,null,null,"x",null,"","",null,"",null,"x",null,null,"x",null,null,"x",null,null,null,0,null,null,null,null,0]
[null,null,null,null,null,null,null,"x",null,"","",null,"",null,"x",null,null,"x",null,null,"x",null,null,null,0,null,null,null,null,0]
[null,null,null,null,null,null,null,"x",null,"","",null,"",null,"x",null,null,"x",null,null,"x",null,null,null,0,null,null,null,null,0]
[null,null,null,null,null,null,null,"x",null,"","",null,"",null,"x",null,null,"x",null,null,"x",null,null,null,0,null,null,null,null,0]
[null,null,null,null,null,null,null,"x",null,"","",null,"",null,"x",null,null,"x",null,null,"x",null,null,null,0,null,null,null,null,0]
[null,null,null,null,null,null,null,"x",null,"","",null,"",null,"x",null,null,"x",null,null,"x",null,null,null,0,null,null,null,null,0]
[null,null,null,null,null,null,null,"x",null,"","",null,"",null,"x",null,null,"x",null,null,"x",null,null,null,0,null,null,null,null,0]
[null,null,null,null,null,null,null,"x",null,"","",null,"",null,"x",null,null,"x",null,null,"x",null,null,null,0,null,null,null,null,0]
[null,null,null,null,null,null,null,"x",null,"","",null,"",null,"x",null,null,"x",null,null,"x",null,null,null,0,null,null,null,null,0]
[null,null,null,null,null,null,null,"x",null,"","",null,"",null,"x",null,null,"x",null,null,"x",null,null,null,0,null,null,null,null,0]
[null,null,null,null,null,null,null,"x",null,"","",null,"",null,"x",null,null,"x",null,null,"x",null,null,null,0,null,null,null,null,0]
[null,null,null,null,null,null,null,"x",null,"","",null,"",null,"x",null,null,"x",null,null,"x",null,null,null,0,null,null,null,null,0]
[null,null,null,null,null,null,null,"x",null,"","",null,"",null,"x",null,null,"x",null,null,"x",null,null,null,0,null,null,null,null,0]
[null,null,null,null,null,null,null,"x",null,"","",null,"",null,"x",null,null,"x",null,null,"x",null,null,null,0,null,null,null,null,0]
[null,null,null,null,null,null,null,"x",null,"","",null,"",null,"x",null,null,"x",null,null,"x",null,null,null,0,null,null,null,null,0]
[null,null,null,null,null,null,null,"x",null,"","",null,"",null,"x",null,null,"x",null,null,"x",null,null,null,0,null,null,null,null,0]
[null,null,null,null,null,null,null,"x",null,"","",null,"",null,"x",null,null,"x",null,null,"x",null,null,null,0,null,null,null,null,0]
[null,null,null,null,null,null,null,"x",null,"","",null,"",null,"x",null,null,"x",null,null,"x",null,null,null,0,null,null,null,null,0]
[null,null,null,null,null,null,null,"x",null,"","",null,"",null,"x",null,null,"x",null,null,"x",null,null,null,0,null,null,null,null,0]
[null,null,null,null,null,null,null,"x",null,"","",null,"",null,"x",null,null,"x",null,null,"x",null,null,null,0,null,null,null,null,0]
[null,null,null,null,null,null,null,"x",null,"","",null,"",null,"x",null,null,"x",null,null,"x",null,null,null,0,null,null,null,null,0]
[null,null,null,null,null,null,null,"x",null,"","",null,"",null,"x",null,null,"x",null,null,"x",null,null,null,0,null,null,null,null,0]
[null,null,null,null,null,null,null,"x",null,"","",null,"",null,"x",null,null,"x",null,null,"x",null,null,null,0,null,null,null,null,0]
[null,null,null,null,null,null,null,"x",null,"","",null,"",null,"x",null,null,"x",null,null,"x",null,null,null,0,null,null,null,null,0]
[null,null,null,null,null,null,null,"x",null,"","",null,"",null,"x",null,null,"x",null,null,"x",null,null,null,0,null,null,null,null,0]
[null,null,null,null,null,null,null,"x",null,"","",null,"",null,"x",null,null,"x",null,null,"x",null,null,null,0,null,null,null,null,0]
[null,null,null,null,null,null,null,"x",null,"","",null,"",null,"x",null,null,"x",null,null,"x",null,null,null,0,null,null,null,null,0]
[null,null,null,null,null,null,null,"x",null,"","",null,"",null,"x",null,null,"x",null,null,"x",null,null,null,0,null,null,null,null,0]
[null,null,null,null,null,null,null,"x",null,"","",null,"",null,"x",null,null,"x",null,null,"x",null,null,null,0,null,null,null,null,0]
[null,null,null,null,null,null,null,"x",null,"","",null,"",null,"x",null,null,"x",null,null,"x",null,null,null,0,null,null,null,null,0]
[null,null,null,null,null,null,null,"x",null,"","",null,"",null,"x",null,null,"x",null,null,"x",null,null,null,0,null,null,null,null,0]
[null,null,null,null,null,null,null,"x",null,"","",null,"",null,"x",null,null,"x",null,null,"x",null,null,null,0,null,null,null,null,0]
[null,null,null,null,null,null,null,"x",null,"","",null,"",null,"x",null,null,"x",null,null,"x",null,null,null,0,null,null,null,null,0]
[null,null,null,null,null,null,null,"x",null,"","",null,"",null,"x",null,null,"x",null,null,"x",null,null,null,0,null,null,null,null,0]
[null,null,null,null,null,null,null,"x",null,"","",null,"",null,"x",null,null,"x",null,null,"x",null,null,null,0,null,null,null,null,0]
[null,null,null,null,null,null,null,"x",null,"","",null,"",null,"x",null,null,"x",null,null,"x",null,null,null,0,null,null,null,null,0]
[null,null,null,null,null,null,null,"x",null,"","",null,"",null,"x",null,null,"x",null,null,"x",null,null,null,0,null,null,null,null,0]
[null,null,null,null,null,null,null,"x",null,"","",null,"",null,"x",null,null,"x",null,null,"x",null,null,null,0,null,null,null,null,0]
[null,null,null,null,null,null,null,"x",null,"","",null,"",null,"x",null,null,"x",null,null,"x",null,null,null,0,null,null,null,null,0]
[null,null,null,null,null,null,null,"x",null,"","",null,"",null,"x",null,null,"x",null,null,"x",null,null,null,0,null,null,null,null,0]
[null,null,null,null,null,null,null,"x",null,"","",null,"",null,"x",null,null,"x",null,null,"x",null,null,null,0,null,null,null,null,0]
[null,null,null,null,null,null,null,"x",null,"","",null,"",null,"x",null,null,"x",null,null,"x",null,null,null,0,null,null,null,null,0]
[null,null,null,null,null,null,null,"x",null,"","",null,"",null,"x",null,null,"x",null,null,"x",null,null,null,0,null,null,null,null,0]
[null,null,null,null,null,null,null,"x",null,"","",null,"",null,"x",null,null,"x",null,null,"x",null,null,null,0,null,null,null,null,0]
[null,null,null,null,null,null,null,"x",null,"","",null,"",null,"x",null,null,"x",null,null,"x",null,null,null,0,null,null,null,null,0]
[null,null,null,null,null,null,null,"x",null,"","",null,"",null,"x",null,null,"x",null,null,"x",null,null,null,0,null,null,null,null,0]
[null,null,null,null,null,null,null,"x",null,"","",null,"",null,"x",null,null,"x",null,null,"x",null,null,null,0,null,null,null,null,0]
[null,null,null,null,null,null,null,"x",null,"","",null,"",null,"x",null,null,"x",null,null,"x",null,null,null,0,null,null,null,null,0]
[null,null,null,null,null,null,null,"x",null,"","",null,"",null,"x",null,null,"x",null,null,"x",null,null,null,0,null,null,null,null,0]
[null,null,null,null,null,null,null,"x",null,"","",null,"",null,"x",null,null,"x",null,null,"x",null,null,null,0,null,null,null,null,0]
[null,null,null,null,null,null,null,"x",null,"","",null,"",null,"x",null,null,"x",null,null,"x",null,null,null,0,null,null,null,null,0]
[null,null,null,null,null,null,null,"x",null,"","",null,"",null,"x",null,null,"x",null,null,"x",null,null,null,0,null,null,null,null,0]
[null,null,null,null,null,null,null,"x",null,"","",null,"",null,"x",null,null,"x",null,null,"x",null,null,null,0,null,null,null,null,0]
[null,null,null,null,null,null,null,"x",null,"","",null,"",null,"x",null,null,"x",null,null,"x",null,null,null,0,null,null,null,null,0]
[null,null,null,null,null,null,null,"x",null,"","",null,"",null,"x",null,null,"x",null,null,"x",null,null,null,0,null,null,null,null,0]
[null,null,null,null,null,null,null,"x",null,"","",null,"",null,"x",null,null,"x",null,null,"x",null,null,null,0,null,null,null,null,0]
[null,null,null,null,null,null,null,"x",null,"","",null,"",null,"x",null,null,"x",null,null,"x",null,null,null,0,null,null,null,null,0]
[null,null,null,null,null,null,null,"x",null,"","",null,"",null,"x",null,null,"x",null,null,"x",null,null,null,0,null,null,null,null,0]
[null,null,null,null,null,null,null,"x",null,"","",null,"",null,"x",null,null,"x",null,null,"x",null,null,null,0,null,null,null,null,0]
[null,null,null,null,null,null,null,"x",null,"","",null,"",null,"x",null,null,"x",null,null,"x",null,null,null,0,null,null,null,null,0]
[null,null,null,null,null,null,null,"x",null,"","",null,"",null,"x",null,null,"x",null,null,"x",null,null,null,0,null,null,null,null,0]
[null,null,null,null,null,null,null,"x",null,"","",null,"",null,"x",null,null,"x",null,null,"x",null,null,null,0,null,null,null,null,0]
[null,null,null,null,null,null,null,"x",null,"","",null,"",null,"x",null,null,"x",null,null,"x",null,null,null,0,null,null,null,null,0]
[null,null,null,null,null,null,null,"x",null,"","",null,"",null,"x",null,null,"x",null,null,"x",null,null,null,0,null,null,null,null,0]
[null,null,null,null,null,null,null,"x",null,"","",null,"",null,"x",null,null,"x",null,null,"x",null,null,null,0,null,null,null,null,0]
[null,null,null,null,null,null,null,"x",null,"","",null,"",null,"x",null,null,"x",null,null,"x",null,null,null,0,null,null,null,null,0]
[null,null,null,null,null,null,null,"x",null,"","",null,"",null,"x",null,null,"x",null,null,"x",null,null,null,0,null,null,null,null,0]
[null,null,null,null,null,null,null,"x",null,"","",null,"",null,"x",null,null,"x",null,null,"x",null,null,null,0,null,null,null,null,0]
[null,null,null,null,null,null,null,"x",null,"","",null,"",null,"x",null,null,"x",null,null,"x",null,null,null,0,null,null,null,null,0]
[null,null,null,null,null,null,null,"x",null,"","",null,"",null,"x",null,null,"x",null,null,"x",null,null,null,0,null,null,null,null,0]
[null,null,null,null,null,null,null,"x",null,"","",null,"",null,"x",null,null,"x",null,null,"x",null,null,null,0,null,null,null,null,0]
[null,null,null,null,null,null,null,"x",null,"","",null,"",null,"x",null,null,"x",null,null,"x",null,null,null,0,null,null,null,null,0]
[null,null,null,null,null,null,null,"x",null,"","",null,"",null,"x",null,null,"x",null,null,"x",null,null,null,0,null,null,null,null,0]
[null,null,null,null,null,null,null,"x",null,"","",null,"",null,"x",null,null,"x",null,null,"x",null,null,null,0,null,null,null,null,0]
[null,null,null,null,null,null,null,"x",null,"","",null,"",null,"x",null,null,"x",null,null,"x",null,null,null,0,null,null,null,null,0]
[null,null,null,null,null,null,null,"x",null,"","",null,"",null,"x",null,null,"x",null,null,"x",null,null,null,0,null,null,null,null,0]
[null,null,null,null,null,null,null,"x",null,"","",null,"",null,"x",null,null,"x",null,null,"x",null,null,null,0,null,null,null,null,0]
[null,null,null,null,null,null,null,"x",null,"","",null,"",null,"x",null,null,"x",null,null,"x",null,null,null,0,null,null,null,null,0]
[null,null,null,null,null,null,null,"x",null,"","",null,"",null,"x",null,null,"x",null,null,"x",null,null,null,0,null,null,null,null,0]
[null,null,null,null,null,null,null,"x",null,"","",null,"",null,"x",null,null,"x",null,null,"x",null,null,null,0,null,null,null,null,0]
[null,null,null,null,null,null,null,"x",null,"","",null,"",null,"x",null,null,"x",null,null,"x",null,null,null,0,null,null,null,null,0]
[null,null,null,null,null,null,null,"x",null,"","",null,"",null,"x",null,null,"x",null,null,"x",null,null,null,0,null,null,null,null,0]
[null,null,null,null,null,null,null,"x",null,"","",null,"",null,"x",null,null,"x",null,null,"x",null,null,null,0,null,null,null,null,0]
[null,null,null,null,null,null,null,"x",null,"","",null,"",null,"x",null,null,"x",null,null,"x",null,null,null,0,null,null,null,null,0]
[null,null,null,null,null,null,null,"x",null,"","",null,"",null,"x",null,null,"x",null,null,"x",null,null,null,0,null,null,null,null,0]
[null,null,null,null,null,null,null,"x",null,"","",null,"",null,"x",null,null,"x",null,null,"x",null,null,null,0,null,null,null,null,0]
[null,null,null,null,null,null,null,"x",null,"","",null,"",null,"x",null,null,"x",null,null,"x",null,null,null,0,null,null,null,null,0]
[null,null,null,null,null,null,null,"x",null,"","",null,"",null,"x",null,null,"x",null,null,"x",null,null,null,0,null,null,null,null,0]
[null,null,null,null,null,null,null,"x",null,"","",null,"",null,"x",null,null,"x",null,null,"x",null,null,null,0,null,null,null,null,0]
[null,null,null,null,null,null,null,"x",null,"","",null,"",null,"x",null,null,"x",null,null,"x",null,null,null,0,null,null,null,null,0]
[null,null,null,null,null,null,null,"x",null,"","",null,"",null,"x",null,null,"x",null,null,"x",null,null,null,0,null,null,null,null,0]
[null,null,null,null,null,null,null,"x",null,"","",null,"",null,"x",null,null,"x",null,null,"x",null,null,null,0,null,null,null,null,0]
[null,null,null,null,null,null,null,"x",null,"","",null,"",null,"x",null,null,"x",null,null,"x",null,null,null,0,null,null,null,null,0]
[null,null,null,null,null,null,null,"x",null,"","",null,"",null,"x",null,null,"x",null,null,"x",null,null,null,0,null,null,null,null,0]
[null,null,null,null,null,null,null,"x",null,"","",null,"",null,"x",null,null,"x",null,null,"x",null,null,null,0,null,null,null,null,0]
[null,null,null,null,null,null,null,"x",null,"","",null,"",null,"x",null,null,"x",null,null,"x",null,null,null,0,null,null,null,null,0]
[null,null,null,null,null,null,null,"x",null,"","",null,"",null,"x",null,null,"x",null,null,"x",null,null,null,0,null,null,null,null,0]
[null,null,null,null,null,null,null,"x",null,"","",null,"",null,"x",null,null,"x",null,null,"x",null,null,null,0,null,null,null,null,0]
[null,null,null,null,null,null,null,"x",null,"","",null,"",null,"x",null,null,"x",null,null,"x",null,null,null,0,null,null,null,null,0]
[null,null,null,null,null,null,null,"x",null,"","",null,"",null,"x",null,null,"x",null,null,"x",null,null,null,0,null,null,null,null,0]
[null,null,null,null,null,null,null,"x",null,"","",null,"",null,"x",null,null,"x",null,null,"x",null,null,null,0,null,null,null,null,0]
[null,null,null,null,null,null,null,"x",null,"","",null,"",null,"x",null,null,"x",null,null,"x",null,null,null,0,null,null,null,null,0]
[null,null,null,null,null,null,null,"x",null,"","",null,"",null,"x",null,null,"x",null,null,"x",null,null,null,0,null,null,null,null,0]
[null,null,null,null,null,null,null,"x",null,"","",null,"",null,"x",null,null,"x",null,null,"x",null,null,null,0,null,null,null,null,0]
[null,null,null,null,null,null,null,"x",null,"","",null,"",null,"x",null,null,"x",null,null,"x",null,null,null,0,null,null,null,null,0]
[null,null,null,null,null,null,null,"x",null,"","",null,"",null,"x",null,null,"x",null,null,"x",null,null,null,0,null,null,null,null,0]
[null,null,null,null,null,null,null,"x",null,"","",null,"",null,"x",null,null,"x",null,null,"x",null,null,null,0,null,null,null,null,0]
[null,null,null,null,null,null,null,"x",null,"","",null,"",null,"x",null,null,"x",null,null,"x",null,null,null,0,null,null,null,null,0]
[null,null,null,null,null,null,null,"x",null,"","",null,"",null,"x",null,null,"x",null,null,"x",null,null,null,0,null,null,null,null,0]
[null,null,null,null,null,null,null,"x",null,"","",null,"",null,"x",null,null,"x",null,null,"x",null,null,null,0,null,null,null,null,0]
[null,null,null,null,null,null,null,"x",null,"","",null,"",null,"x",null,null,"x",null,null,"x",null,null,null,0,null,null,null,null,0]
[null,null,null,null,null,null,null,"x",null,"","",null,"",null,"x",null,null,"x",null,null,"x",null,null,null,0,null,null,null,null,0]
[null,null,null,null,null,null,null,"x",null,"","",null,"",null,"x",null,null,"x",null,null,"x",null,null,null,0,null,null,null,null,0]
[null,null,null,null,null,null,null,"x",null,"","",null,"",null,"x",null,null,"x",null,null,"x",null,null,null,0,null,null,null,null,0]
[null,null,null,null,null,null,null,"x",null,"","",null,"",null,"x",null,null,"x",null,null,"x",null,null,null,0,null,null,null,null,0]
[null,null,null,null,null,null,null,"x",null,"","",null,"",null,"x",null,null,"x",null,null,"x",null,null,null,0,null,null,null,null,0]
[null,null,null,null,null,null,null,"x",null,"","",null,"",null,"x",null,null,"x",null,null,"x",null,null,null,0,null,null,null,null,0]
[null,null,null,null,null,null,null,"x",null,"","",null,"",null,"x",null,null,"x",null,null,"x",null,null,null,0,null,null,null,null,0]
[null,null,null,null,null,null,null,"x",null,"","",null,"",null,"x",null,null,"x",null,null,"x",null,null,null,0,null,null,null,null,0]
[null,null,null,null,null,null,null,"x",null,"","",null,"",null,"x",null,null,"x",null,null,"x",null,null,null,0,null,null,null,null,0]
[null,null,null,null,null,null,null,"x",null,"","",null,"",null,"x",null,null,"x",null,null,"x",null,null,null,0,null,null,null,null,0]
[null,null,null,null,null,null,null,"x",null,"","",null,"",null,"x",null,null,"x",null,null,"x",null,null,null,0,null,null,null,null,0]
[null,null,null,null,null,null,null,"x",null,"","",null,"",null,"x",null,null,"x",null,null,"x",null,null,null,0,null,null,null,null,0]
[null,null,null,null,null,null,null,"x",null,"","",null,"",null,"x",null,null,"x",null,null,"x",null,null,null,0,null,null,null,null,0]
[null,null,null,null,null,null,null,"x",null,"","",null,"",null,"x",null,null,"x",null,null,"x",null,null,null,0,null,null,null,null,0]
[null,null,null,null,null,null,null,"x",null,"","",null,"",null,"x",null,null,"x",null,null,"x",null,null,null,0,null,null,null,null,0]
[null,null,null,null,null,null,null,"x",null,"","",null,"",null,"x",null,null,"x",null,null,"x",null,null,null,0,null,null,null,null,0]
[null,null,null,null,null,null,null,"x",null,"","",null,"",null,"x",null,null,"x",null,null,"x",null,null,null,0,null,null,null,null,0]
[null,null,null,null,null,null,null,"x",null,"","",null,"",null,"x",null,null,"x",null,null,"x",null,null,null,0,null,null,null,null,0]
[null,null,null,null,null,null,null,"x",null,"","",null,"",null,"x",null,null,"x",null,null,"x",null,null,null,0,null,null,null,null,0]
[null,null,null,null,null,null,null,"x",null,"","",null,"",null,"x",null,null,"x",null,null,"x",null,null,null,0,null,null,null,null,0]
[null,null,null,null,null,null,null,"x",null,"","",null,"",null,"x",null,null,"x",null,null,"x",null,null,null,0,null,null,null,null,0]
[null,null,null,null,null,null,null,"x",null,"","",null,"",null,"x",null,null,"x",null,null,"x",null,null,null,0,null,null,null,null,0]
[null,null,null,null,null,null,null,"x",null,"","",null,"",null,"x",null,null,"x",null,null,"x",null,null,null,0,null,null,null,null,0]
[null,null,null,null,null,null,null,"x",null,"","",null,"",null,"x",null,null,"x",null,null,"x",null,null,null,0,null,null,null,null,0]
[null,null,null,null,null,null,null,"x",null,"","",null,"",null,"x",null,null,"x",null,null,"x",null,null,null,0,null,null,null,null,0]
[null,null,null,null,null,null,null,"x",null,"","",null,"",null,"x",null,null,"x",null,null,"x",null,null,null,0,null,null,null,null,0]
[null,null,null,null,null,null,null,"x",null,"","",null,"",null,"x",null,null,"x",null,null,"x",null,null,null,0,null,null,null,null,0]
[null,null,null,null,null,null,null,"x",null,"","",null,"",null,"x",null,null,"x",null,null,"x",null,null,null,0,null,null,null,null,0]
[null,null,null,null,null,null,null,"x",null,"","",null,"",null,"x",null,null,"x",null,null,"x",null,null,null,0,null,null,null,null,0]
[null,null,null,null,null,null,null,"x",null,"","",null,"",null,"x",null,null,"x",null,null,"x",null,null,null,0,null,null,null,null,0]
[null,null,null,null,null,null,null,"x",null,"","",null,"",null,"x",null,null,"x",null,null,"x",null,null,null,0,null,null,null,null,0]
[null,null,null,null,null,null,null,"x",null,"","",null,"",null,"x",null,null,"x",null,null,"x",null,null,null,0,null,null,null,null,0]
[null,null,null,null,null,null,null,"x",null,"","",null,"",null,"x",null,null,"x",null,null,"x",null,null,null,0,null,null,null,null,0]
[null,null,null,null,null,null,null,"x",null,"","",null,"",null,"x",null,null,"x",null,null,"x",null,null,null,0,null,null,null,null,0]
[null,null,null,null,null,null,null,"x",null,"","",null,"",null,"x",null,null,"x",null,null,"x",null,null,null,0,null,null,null,null,0]
[null,null,null,null,null,null,null,"x",null,"","",null,"",null,"x",null,null,"x",null,null,"x",null,null,null,0,null,null,null,null,0]
[null,null,null,null,null,null,null,"x",null,"","",null,"",null,"x",null,null,"x",null,null,"x",null,null,null,0,null,null,null,null,0]
[null,null,null,null,null,null,null,"x",null,"","",null,"",null,"x",null,null,"x",null,null,"x",null,null,null,0,null,null,null,null,0]
[null,null,null,null,null,null,null,"x",null,"","",null,"",null,"x",null,null,"x",null,null,"x",null,null,null,0,null,null,null,null,0]
[null,null,null,null,null,null,null,"x",null,"","",null,"",null,"x",null,null,"x",null,null,"x",null,null,null,0,null,null,null,null,0]
[null,null,null,null,null,null,null,"x",null,"","",null,"",null,"x",null,null,"x",null,null,"x",null,null,null,0,null,null,null,null,0]
[null,null,null,null,null,null,null,"x",null,"","",null,"",null,"x",null,null,"x",null,null,"x",null,null,null,0,null,null,null,null,0]
[null,null,null,null,null,null,null,"x",null,"","",null,"",null,"x",null,null,"x",null,null,"x",null,null,null,0,null,null,null,null,0]
[null,null,null,null,null,null,null,"x",null,"","",null,"",null,"x",null,null,"x",null,null,"x",null,null,null,0,null,null,null,null,0]
[null,null,null,null,null,null,null,"x",null,"","",null,"",null,"x",null,null,"x",null,null,"x",null,null,null,0,null,null,null,null,0]
[null,null,null,null,null,null,null,"x",null,"","",null,"",null,"x",null,null,"x",null,null,"x",null,null,null,0,null,null,null,null,0]
[null,null,null,null,null,null,null,"x",null,"","",null,"",null,"x",null,null,"x",null,null,"x",null,null,null,0,null,null,null,null,0]
[null,null,null,null,null,null,null,"x",null,"","",null,"",null,"x",null,null,"x",null,null,"x",null,null,null,0,null,null,null,null,0]
[null,null,null,null,null,null,null,"x",null,"","",null,"",null,"x",null,null,"x",null,null,"x",null,null,null,0,null,null,null,null,0]
[null,null,null,null,null,null,null,"x",null,"","",null,"",null,"x",null,null,"x",null,null,"x",null,null,null,0,null,null,null,null,0]
[null,null,null,null,null,null,null,"x",null,"","",null,"",null,"x",null,null,"x",null,null,"x",null,null,null,0,null,null,null,null,0]
[null,null,null,null,null,null,null,"x",null,"","",null,"",null,"x",null,null,"x",null,null,"x",null,null,null,0,null,null,null,null,0]
[null,null,null,null,null,null,null,"x",null,"","",null,"",null,"x",null,null,"x",null,null,"x",null,null,null,0,null,null,null,null,0]
[null,null,null,null,null,null,null,"x",null,"","",null,"",null,"x",null,null,"x",null,null,"x",null,null,null,0,null,null,null,null,0]
[null,null,null,null,null,null,null,"x",null,"","",null,"",null,"x",null,null,"x",null,null,"x",null,null,null,0,null,null,null,null,0]
[null,null,null,null,null,null,null,"x",null,"","",null,"",null,"x",null,null,"x",null,null,"x",null,null,null,0,null,null,null,null,0]
[null,null,null,null,null,null,null,"x",null,"","",null,"",null,"x",null,null,"x",null,null,"x",null,null,null,0,null,null,null,null,0]
[null,null,null,null,null,null,null,"x",null,"","",null,"",null,"x",null,null,"x",null,null,"x",null,null,null,0,null,null,null,null,0]
[null,null,null,null,null,null,null,"x",null,"","",null,"",null,"x",null,null,"x",null,null,"x",null,null,null,0,null,null,null,null,0]
[null,null,null,null,null,null,null,"x",null,"","",null,"",null,"x",null,null,"x",null,null,"x",null,null,null,0,null,null,null,null,0]
[null,null,null,null,null,null,null,"x",null,"","",null,"",null,"x",null,null,"x",null,null,"x",null,null,null,0,null,null,null,null,0]
[null,null,null,null,null,null,null,"x",null,"","",null,"",null,"x",null,null,"x",null,null,"x",null,null,null,0,null,null,null,null,0]
[null,null,null,null,null,null,null,"x",null,"","",null,"",null,"x",null,null,"x",null,null,"x",null,null,null,0,null,null,null,null,0]
[null,null,null,null,null,null,null,"x",null,"","",null,"",null,"x",null,null,"x",null,null,"x",null,null,null,0,null,null,null,null,0]
[null,null,null,null,null,null,null,"x",null,"","",null,"",null,"x",null,null,"x",null,null,"x",null,null,null,0,null,null,null,null,0]
[null,null,null,null,null,null,null,"x",null,"","",null,"",null,"x",null,null,"x",null,null,"x",null,null,null,0,null,null,null,null,0]
[null,null,null,null,null,null,null,"x",null,"","",null,"",null,"x",null,null,"x",null,null,"x",null,null,null,0,null,null,null,null,0]
[null,null,null,null,null,null,null,"x",null,"","",null,"",null,"x",null,null,"x",null,null,"x",null,null,null,0,null,null,null,null,0]
[null,null,null,null,null,null,null,"x",null,"","",null,"",null,"x",null,null,"x",null,null,"x",null,null,null,0,null,null,null,null,0]
[null,null,null,null,null,null,null,"x",null,"","",null,"",null,"x",null,null,"x",null,null,"x",null,null,null,0,null,null,null,null,0]
[null,null,null,null,null,null,null,"x",null,"","",null,"",null,"x",null,null,"x",null,null,"x",null,null,null,0,null,null,null,null,0]
[null,null,null,null,null,null,null,"x",null,"","",null,"",null,"x",null,null,"x",null,null,"x",null,null,null,0,null,null,null,null,0]
[null,null,null,null,null,null,null,"x",null,"","",null,"",null,"x",null,null,"x",null,null,"x",null,null,null,0,null,null,null,null,0]
[null,null,null,null,null,null,null,"x",null,"","",null,"",null,"x",null,null,"x",null,null,"x",null,null,null,0,null,null,null,null,0]
[null,null,null,null,null,null,null,"x",null,"","",null,"",null,"x",null,null,"x",null,null,"x",null,null,null,0,null,null,null,null,0]
[null,null,null,null,null,null,null,"x",null,"","",null,"",null,"x",null,null,"x",null,null,"x",null,null,null,0,null,null,null,null,0]
[null,null,null,null,null,null,null,"x",null,"","",null,"",null,"x",null,null,"x",null,null,"x",null,null,null,0,null,null,null,null,0]
[null,null,null,null,null,null,null,"x",null,"","",null,"",null,"x",null,null,"x",null,null,"x",null,null,null,0,null,null,null,null,0]
[null,null,null,null,null,null,null,"x",null,"","",null,"",null,"x",null,null,"x",null,null,"x",null,null,null,0,null,null,null,null,0]
[null,null,null,null,null,null,null,"x",null,"","",null,"",null,"x",null,null,"x",null,null,"x",null,null,null,0,null,null,null,null,0]
[null,null,null,null,null,null,null,"x",null,"","",null,"",null,"x",null,null,"x",null,null,"x",null,null,null,0,null,null,null,null,0]
[null,null,null,null,null,null,null,"x",null,"","",null,"",null,"x",null,null,"x",null,null,"x",null,null,null,0,null,null,null,null,0]
[null,null,null,null,null,null,null,"x",null,"","",null,"",null,"x",null,null,"x",null,null,"x",null,null,null,0,null,null,null,null,0]
[null,null,null,null,null,null,null,"x",null,"","",null,"",null,"x",null,null,"x",null,null,"x",null,null,null,0,null,null,null,null,0]
[null,null,null,null,null,null,null,"x",null,"","",null,"",null,"x",null,null,"x",null,null,"x",null,null,null,0,null,null,null,null,0]
[null,null,null,null,null,null,null,"x",null,"","",null,"",null,"x",null,null,"x",null,null,"x",null,null,null,0,null,null,null,null,0]
[null,null,null,null,null,null,null,"x",null,"","",null,"",null,"x",null,null,"x",null,null,"x",null,null,null,0,null,null,null,null,0]
[null,null,null,null,null,null,null,"x",null,"","",null,"",null,"x",null,null,"x",null,null,"x",null,null,null,0,null,null,null,null,0]
[null,null,null,null,null,null,null,"x",null,"","",null,"",null,"x",null,null,"x",null,null,"x",null,null,null,0,null,null,null,null,0]
[null,null,null,null,null,null,null,"x",null,"","",null,"",null,"x",null,null,"x",null,null,"x",null,null,null,0,null,null,null,null,0]
[null,null,null,null,null,null,null,"x",null,"","",null,"",null,"x",null,null,"x",null,null,"x",null,null,null,0,null,null,null,null,0]
[null,null,null,null,null,null,null,"x",null,"","",null,"",null,"x",null,null,"x",null,null,"x",null,null,null,0,null,null,null,null,0]
[null,null,null,null,null,null,null,"x",null,"","",null,"",null,"x",null,null,"x",null,null,"x",null,null,null,0,null,null,null,null,0]
[null,null,null,null,null,null,null,"x",null,"","",null,"",null,"x",null,null,"x",null,null,"x",null,null,null,0,null,null,null,null,0]
[null,null,null,null,null,null,null,"x",null,"","",null,"",null,"x",null,null,"x",null,null,"x",null,null,null,0,null,null,null,null,0]
[null,null,null,null,null,null,null,"x",null,"","",null,"",null,"x",null,null,"x",null,null,"x",null,null,null,0,null,null,null,null,0]
[null,null,null,null,null,null,null,"x",null,"","",null,"",null,"x",null,null,"x",null,null,"x",null,null,null,0,null,null,null,null,0]
[null,null,null,null,null,null,null,"x",null,"","",null,"",null,"x",null,null,"x",null,null,"x",null,null,null,0,null,null,null,null,0]
[null,null,null,null,null,null,null,"x",null,"","",null,"",null,"x",null,null,"x",null,null,"x",null,null,null,0,null,null,null,null,0]
[null,null,null,null,null,null,null,"x",null,"","",null,"",null,"x",null,null,"x",null,null,"x",null,null,null,0,null,null,null,null,0]
[null,null,null,null,null,null,null,"x",null,"","",null,"",null,"x",null,null,"x",null,null,"x",null,null,null,0,null,null,null,null,0]
[null,null,null,null,null,null,null,"x",null,"","",null,"",null,"x",null,null,"x",null,null,"x",null,null,null,0,null,null,null,null,0]
[null,null,null,null,null,null,null,"x",null,"","",null,"",null,"x",null,null,"x",null,null,"x",null,null,null,0,null,null,null,null,0]
[null,null,null,null,null,null,null,"x",null,"","",null,"",null,"x",null,null,"x",null,null,"x",null,null,null,0,null,null,null,null,0]
[null,null,null,null,null,null,null,"x",null,"","",null,"",null,"x",null,null,"x",null,null,"x",null,null,null,0,null,null,null,null,0]
[null,null,null,null,null,null,null,"x",null,"","",null,"",null,"x",null,null,"x",null,null,"x",null,null,null,0,null,null,null,null,0]
[null,null,null,null,null,null,null,"x",null,"","",null,"",null,"x",null,null,"x",null,null,"x",null,null,null,0,null,null,null,null,0]
[null,null,null,null,null,null,null,"x",null,"","",null,"",null,"x",null,null,"x",null,null,"x",null,null,null,0,null,null,null,null,0]
[null,null,null,null,null,null,null,"x",null,"","",null,"",null,"x",null,null,"x",null,null,"x",null,null,null,0,null,null,null,null,0]
[null,null,null,null,null,null,null,"x",null,"","",null,"",null,"x",null,null,"x",null,null,"x",null,null,null,0,null,null,null,null,0]
[null,null,null,null,null,null,null,"x",null,"","",null,"",null,"x",null,null,"x",null,null,"x",null,null,null,0,null,null,null,null,0]
[null,null,null,null,null,null,null,"x",null,"","",null,"",null,"x",null,null,"x",null,null,"x",null,null,null,0,null,null,null,null,0]
[null,null,null,null,null,null,null,"x",null,"","",null,"",null,"x",null,null,"x",null,null,"x",null,null,null,0,null,null,null,null,0]
[null,null,null,null,null,null,null,"x",null,"","",null,"",null,"x",null,null,"x",null,null,"x",null,null,null,0,null,null,null,null,0]
[null,null,null,null,null,null,null,"x",null,"","",null,"",null,"x",null,null,"x",null,null,"x",null,null,null,0,null,null,null,null,0]
[null,null,null,null,null,null,null,"x",null,"","",null,"",null,"x",null,null,"x",null,null,"x",null,null,null,0,null,null,null,null,0]
[null,null,null,null,null,null,null,"x",null,"","",null,"",null,"x",null,null,"x",null,null,"x",null,null,null,0,null,null,null,null,0]
[null,null,null,null,null,null,null,"x",null,"","",null,"",null,"x",null,null,"x",null,null,"x",null,null,null,0,null,null,null,null,0]
[null,null,null,null,null,null,null,"x",null,"","",null,"",null,"x",null,null,"x",null,null,"x",null,null,null,0,null,null,null,null,0]
[null,null,null,null,null,null,null,"x",null,"","",null,"",null,"x",null,null,"x",null,null,"x",null,null,null,0,null,null,null,null,0]
[null,null,null,null,null,null,null,"x",null,"","",null,"",null,"x",null,null,"x",null,null,"x",null,null,null,0,null,null,null,null,0]
[null,null,null,null,null,null,null,"x",null,"","",null,"",null,"x",null,null,"x",null,null,"x",null,null,null,0,null,null,null,null,0]
[null,null,null,null,null,null,null,"x",null,"","",null,"",null,"x",null,null,"x",null,null,"x",null,null,null,0,null,null,null,null,0]
[null,null,null,null,null,null,null,"x",null,"","",null,"",null,"x",null,null,"x",null,null,"x",null,null,null,0,null,null,null,null,0]
[null,null,null,null,null,null,null,"x",null,"","",null,"",null,"x",null,null,"x",null,null,"x",null,null,null,0,null,null,null,null,0]
[null,null,null,null,null,null,null,"x",null,"","",null,"",null,"x",null,null,"x",null,null,"x",null,null,null,0,null,null,null,null,0]
[null,null,null,null,null,null,null,"x",null,"","",null,"",null,"x",null,null,"x",null,null,"x",null,null,null,0,null,null,null,null,0]
[null,null,null,null,null,null,null,"x",null,"","",null,"",null,"x",null,null,"x",null,null,"x",null,null,null,0,null,null,null,null,0]
[null,null,null,null,null,null,null,"x",null,"","",null,"",null,"x",null,null,"x",null,null,"x",null,null,null,0,null,null,null,null,0]
[null,null,null,null,null,null,null,"x",null,"","",null,"",null,"x",null,null,"x",null,null,"x",null,null,null,0,null,null,null,null,0]
[null,null,null,null,null,null,null,"x",null,"","",null,"",null,"x",null,null,"x",null,null,"x",null,null,null,0,null,null,null,null,0]
[null,null,null,null,null,null,null,"x",null,"","",null,"",null,"x",null,null,"x",null,null,"x",null,null,null,0,null,null,null,null,0]
[null,null,null,null,null,null,null,"x",null,"","",null,"",null,"x",null,null,"x",null,null,"x",null,null,null,0,null,null,null,null,0]
[null,null,null,null,null,null,null,"x",null,"","",null,"",null,"x",null,null,"x",null,null,"x",null,null,null,0,null,null,null,null,0]
[null,null,null,null,null,null,null,"x",null,"","",null,"",null,"x",null,null,"x",null,null,"x",null,null,null,0,null,null,null,null,0]
[null,null,null,null,null,null,null,"x",null,"","",null,"",null,"x",null,null,"x",null,null,"x",null,null,null,0,null,null,null,null,0]
[null,null,null,null,null,null,null,"x",null,"","",null,"",null,"x",null,null,"x",null,null,"x",null,null,null,0,null,null,null,null,0]
[null,null,null,null,null,null,null,"x",null,"","",null,"",null,"x",null,null,"x",null,null,"x",null,null,null,0,null,null,null,null,0]
[null,null,null,null,null,null,null,"x",null,"","",null,"",null,"x",null,null,"x",null,null,"x",null,null,null,0,null,null,null,null,0]
[null,null,null,null,null,null,null,"x",null,"","",null,"",null,"x",null,null,"x",null,null,"x",null,null,null,0,null,null,null,null,0]
[null,null,null,null,null,null,null,"x",null,"","",null,"",null,"x",null,null,"x",null,null,"x",null,null,null,0,null,null,null,null,0]
[null,null,null,null,null,null,null,"x",null,"","",null,"",null,"x",null,null,"x",null,null,"x",null,null,null,0,null,null,null,null,0]
[null,null,null,null,null,null,null,"x",null,"","",null,"",null,"x",null,null,"x",null,null,"x",null,null,null,0,null,null,null,null,0]
[null,null,null,null,null,null,null,"x",null,"","",null,"",null,"x",null,null,"x",null,null,"x",null,null,null,0,null,null,null,null,0]
[null,null,null,null,null,null,null,"x",null,"","",null,"",null,"x",null,null,"x",null,null,"x",null,null,null,0,null,null,null,null,0]
[null,null,null,null,null,null,null,"x",null,"","",null,"",null,"x",null,null,"x",null,null,"x",null,null,null,0,null,null,null,null,0]
[null,null,null,null,null,null,null,"x",null,"","",null,"",null,"x",null,null,"x",null,null,"x",null,null,null,0,null,null,null,null,0]
[null,null,null,null,null,null,null,"x",null,"","",null,"",null,"x",null,null,"x",null,null,"x",null,null,null,0,null,null,null,null,0]
[null,null,null,null,null,null,null,"x",null,"","",null,"",null,"x",null,null,"x",null,null,"x",null,null,null,0,null,null,null,null,0]
[null,null,null,null,null,null,null,"x",null,"","",null,"",null,"x",null,null,"x",null,null,"x",null,null,null,0,null,null,null,null,0]
[null,null,null,null,null,null,null,"x",null,"","",null,"",null,"x",null,null,"x",null,null,"x",null,null,null,0,null,null,null,null,0]
[null,null,null,null,null,null,null,"x",null,"","",null,"",null,"x",null,null,"x",null,null,"x",null,null,null,0,null,null,null,null,0]
[null,null,null,null,null,null,null,"x",null,"","",null,"",null,"x",null,null,"x",null,null,"x",null,null,null,0,null,null,null,null,0]
[null,null,null,null,null,null,null,"x",null,"","",null,"",null,"x",null,null,"x",null,null,"x",null,null,null,0,null,null,null,null,0]
[null,null,null,null,null,null,null,"x",null,"","",null,"",null,"x",null,null,"x",null,null,"x",null,null,null,0,null,null,null,null,0]
[null,null,null,null,null,null,null,"x",null,"","",null,"",null,"x",null,null,"x",null,null,"x",null,null,null,0,null,null,null,null,0]
[null,null,null,null,null,null,null,"x",null,"","",null,"",null,"x",null,null,"x",null,null,"x",null,null,null,0,null,null,null,null,0]
[null,null,null,null,null,null,null,"x",null,"","",null,"",null,"x",null,null,"x",null,null,"x",null,null,null,0,null,null,null,null,0]
[null,null,null,null,null,null,null,"x",null,"","",null,"",null,"x",null,null,"x",null,null,"x",null,null,null,0,null,null,null,null,0]
[null,null,null,null,null,null,null,"x",null,"","",null,"",null,"x",null,null,"x",null,null,"x",null,null,null,0,null,null,null,null,0]
[null,null,null,null,null,null,null,"x",null,"","",null,"",null,"x",null,null,"x",null,null,"x",null,null,null,0,null,null,null,null,0]
[null,null,null,null,null,null,null,"x",null,"","",null,"",null,"x",null,null,"x",null,null,"x",null,null,null,0,null,null,null,null,0]
[null,null,null,null,null,null,null,"x",null,"","",null,"",null,"x",null,null,"x",null,null,"x",null,null,null,0,null,null,null,null,0]
[null,null,null,null,null,null,null,"x",null,"","",null,"",null,"x",null,null,"x",null,null,"x",null,null,null,0,null,null,null,null,0]
[null,null,null,null,null,null,null,"x",null,"","",null,"",null,"x",null,null,"x",null,null,"x",null,null,null,0,null,null,null,null,0]
[null,null,null,null,null,null,null,"x",null,"","",null,"",null,"x",null,null,"x",null,null,"x",null,null,null,0,null,null,null,null,0]
[null,null,null,null,null,null,null,"x",null,"","",null,"",null,"x",null,null,"x",null,null,"x",null,null,null,0,null,null,null,null,0]
[null,null,null,null,null,null,null,"x",null,"","",null,"",null,"x",null,null,"x",null,null,"x",null,null,null,0,null,null,null,null,0]
[null,null,null,null,null,null,null,"x",null,"","",null,"",null,"x",null,null,"x",null,null,"x",null,null,null,0,null,null,null,null,0]
[null,null,null,null,null,null,null,"x",null,"","",null,"",null,"x",null,null,"x",null,null,"x",null,null,null,0,null,null,null,null,0]
[null,null,null,null,null,null,null,"x",null,"","",null,"",null,"x",null,null,"x",null,null,"x",null,null,null,0,null,null,null,null,0]
[null,null,null,null,null,null,null,"x",null,"","",null,"",null,"x",null,null,"x",null,null,"x",null,null,null,0,null,null,null,null,0]
[null,null,null,null,null,null,null,"x",null,"","",null,"",null,"x",null,null,"x",null,null,"x",null,null,null,0,null,null,null,null,0]
[null,null,null,null,null,null,null,"x",null,"","",null,"",null,"x",null,null,"x",null,null,"x",null,null,null,0,null,null,null,null,0]
[null,null,null,null,null,null,null,"x",null,"","",null,"",null,"x",null,null,"x",null,null,"x",null,null,null,0,null,null,null,null,0]
[null,null,null,null,null,null,null,"x",null,"","",null,"",null,"x",null,null,"x",null,null,"x",null,null,null,0,null,null,null,null,0]
[null,null,null,null,null,null,null,"x",null,"","",null,"",null,"x",null,null,"x",null,null,"x",null,null,null,0,null,null,null,null,0]
[null,null,null,null,null,null,null,"x",null,"","",null,"",null,"x",null,null,"x",null,null,"x",null,null,null,0,null,null,null,null,0]
[null,null,null,null,null,null,null,"x",null,"","",null,"",null,"x",null,null,"x",null,null,"x",null,null,null,0,null,null,null,null,0]
[null,null,null,null,null,null,null,"x",null,"","",null,"",null,"x",null,null,"x",null,null,"x",null,null,null,0,null,null,null,null,0]
[null,null,null,null,null,null,null,"x",null,"","",null,"",null,"x",null,null,"x",null,null,"x",null,null,null,0,null,null,null,null,0]
[null,null,null,null,null,null,null,"x",null,"","",null,"",null,"x",null,null,"x",null,null,"x",null,null,null,0,null,null,null,null,0]
[null,null,null,null,null,null,null,"x",null,"","",null,"",null,"x",null,null,"x",null,null,"x",null,null,null,0,null,null,null,null,0]
[null,null,null,null,null,null,null,"x",null,"","",null,"",null,"x",null,null,"x",null,null,"x",null,null,null,0,null,null,null,null,0]
[null,null,null,null,null,null,null,"x",null,"","",null,"",null,"x",null,null,"x",null,null,"x",null,null,null,0,null,null,null,null,0]
[null,null,null,null,null,null,null,"x",null,"","",null,"",null,"x",null,null,"x",null,null,"x",null,null,null,0,null,null,null,null,0]
[null,null,null,null,null,null,null,"x",null,"","",null,"",null,"x",null,null,"x",null,null,"x",null,null,null,0,null,null,null,null,0]
[null,null,null,null,null,null,null,"x",null,"","",null,"",null,"x",null,null,"x",null,null,"x",null,null,null,0,null,null,null,null,0]
[null,null,null,null,null,null,null,"x",null,"","",null,"",null,"x",null,null,"x",null,null,"x",null,null,null,0,null,null,null,null,0]
[null,null,null,null,null,null,null,"x",null,"","",null,"",null,"x",null,null,"x",null,null,"x",null,null,null,0,null,null,null,null,0]
[null,null,null,null,null,null,null,"x",null,"","",null,"",null,"x",null,null,"x",null,null,"x",null,null,null,0,null,null,null,null,0]
[null,null,null,null,null,null,null,"x",null,"","",null,"",null,"x",null,null,"x",null,null,"x",null,null,null,0,null,null,null,null,0]
[null,null,null,null,null,null,null,"x",null,"","",null,"",null,"x",null,null,"x",null,null,"x",null,null,null,0,null,null,null,null,0]
[null,null,null,null,null,null,null,"x",null,"","",null,"",null,"x",null,null,"x",null,null,"x",null,null,null,0,null,null,null,null,0]
[null,null,null,null,null,null,null,"x",null,"","",null,"",null,"x",null,null,"x",null,null,"x",null,null,null,0,null,null,null,null,0]
[null,null,null,null,null,null,null,"x",null,"","",null,"",null,"x",null,null,"x",null,null,"x",null,null,null,0,null,null,null,null,0]
[null,null,null,null,null,null,null,"x",null,"","",null,"",null,"x",null,null,"x",null,null,"x",null,null,null,0,null,null,null,null,0]
[null,null,null,null,null,null,null,"x",null,"","",null,"",null,"x",null,null,"x",null,null,"x",null,null,null,0,null,null,null,null,0]
[null,null,null,null,null,null,null,"x",null,"","",null,"",null,"x",null,null,"x",null,null,"x",null,null,null,0,null,null,null,null,0]
[null,null,null,null,null,null,null,"x",null,"","",null,"",null,"x",null,null,"x",null,null,"x",null,null,null,0,null,null,null,null,0]
[null,null,null,null,null,null,null,"x",null,"","",null,"",null,"x",null,null,"x",null,null,"x",null,null,null,0,null,null,null,null,0]
[null,null,null,null,null,null,null,"x",null,"","",null,"",null,"x",null,null,"x",null,null,"x",null,null,null,0,null,null,null,null,0]
[null,null,null,null,null,null,null,"x",null,"","",null,"",null,"x",null,null,"x",null,null,"x",null,null,null,0,null,null,null,null,0]
[null,null,null,null,null,null,null,"x",null,"","",null,"",null,"x",null,null,"x",null,null,"x",null,null,null,0,null,null,null,null,0]
[null,null,null,null,null,null,null,"x",null,"","",null,"",null,"x",null,null,"x",null,null,"x",null,null,null,0,null,null,null,null,0]
[null,null,null,null,null,null,null,"x",null,"","",null,"",null,"x",null,null,"x",null,null,"x",null,null,null,0,null,null,null,null,0]
[null,null,null,null,null,null,null,"x",null,"","",null,"",null,"x",null,null,"x",null,null,"x",null,null,null,0,null,null,null,null,0]
[null,null,null,null,null,null,null,"x",null,"","",null,"",null,"x",null,null,"x",null,null,"x",null,null,null,0,null,null,null,null,0]
[null,null,null,null,null,null,null,"x",null,"","",null,"",null,"x",null,null,"x",null,null,"x",null,null,null,0,null,null,null,null,0]
[null,null,null,null,null,null,null,"x",null,"","",null,"",null,"x",null,null,"x",null,null,"x",null,null,null,0,null,null,null,null,0]
[null,null,null,null,null,null,null,"x",null,"","",null,"",null,"x",null,null,"x",null,null,"x",null,null,null,0,null,null,null,null,0]
[null,null,null,null,null,null,null,"x",null,"","",null,"",null,"x",null,null,"x",null,null,"x",null,null,null,0,null,null,null,null,0]
[null,null,null,null,null,null,null,"x",null,"","",null,"",null,"x",null,null,"x",null,null,"x",null,null,null,0,null,null,null,null,0]
[null,null,null,null,null,null,null,"x",null,"","",null,"",null,"x",null,null,"x",null,null,"x",null,null,null,0,null,null,null,null,0]
[null,null,null,null,null,null,null,"x",null,"","",null,"",null,"x",null,null,"x",null,null,"x",null,null,null,0,null,null,null,null,0]
[null,null,null,null,null,null,null,"x",null,"","",null,"",null,"x",null,null,"x",null,null,"x",null,null,null,0,null,null,null,null,0]
[null,null,null,null,null,null,null,"x",null,"","",null,"",null,"x",null,null,"x",null,null,"x",null,null,null,0,null,null,null,null,0]
[null,null,null,null,null,null,null,"x",null,"","",null,"",null,"x",null,null,"x",null,null,"x",null,null,null,0,null,null,null,null,0]
[null,null,null,null,null,null,null,"x",null,"","",null,"",null,"x",null,null,"x",null,null,"x",null,null,null,0,null,null,null,null,0]
[null,null,null,null,null,null,null,"x",null,"","",null,"",null,"x",null,null,"x",null,null,"x",null,null,null,0,null,null,null,null,0]
[null,null,null,null,null,null,null,"x",null,"","",null,"",null,"x",null,null,"x",null,null,"x",null,null,null,0,null,null,null,null,0]
[null,null,null,null,null,null,null,"x",null,"","",null,"",null,"x",null,null,"x",null,null,"x",null,null,null,0,null,null,null,null,0]
[null,null,null,null,null,null,null,"x",null,"","",null,"",null,"x",null,null,"x",null,null,"x",null,null,null,0,null,null,null,null,0]
[null,null,null,null,null,null,null,"x",null,"","",null,"",null,"x",null,null,"x",null,null,"x",null,null,null,0,null,null,null,null,0]
[null,null,null,null,null,null,null,"x",null,"","",null,"",null,"x",null,null,"x",null,null,"x",null,null,null,0,null,null,null,null,0]
[null,null,null,null,null,null,null,"x",null,"","",null,"",null,"x",null,null,"x",null,null,"x",null,null,null,0,null,null,null,null,0]
[null,null,null,null,null,null,null,"x",null,"","",null,"",null,"x",null,null,"x",null,null,"x",null,null,null,0,null,null,null,null,0]
[null,null,null,null,null,null,null,"x",null,"","",null,"",null,"x",null,null,"x",null,null,"x",null,null,null,0,null,null,null,null,0]
[null,null,null,null,null,null,null,"x",null,"","",null,"",null,"x",null,null,"x",null,null,"x",null,null,null,0,null,null,null,null,0]
[null,null,null,null,null,null,null,"x",null,"","",null,"",null,"x",null,null,"x",null,null,"x",null,null,null,0,null,null,null,null,0]
[null,null,null,null,null,null,null,"x",null,"","",null,"",null,"x",null,null,"x",null,null,"x",null,null,null,0,null,null,null,null,0]
[null,null,null,null,null,null,null,"x",null,"","",null,"",null,"x",null,null,"x",null,null,"x",null,null,null,0,null,null,null,null,0]
[null,null,null,null,null,null,null,"x",null,"","",null,"",null,"x",null,null,"x",null,null,"x",null,null,null,0,null,null,null,null,0]
[null,null,null,null,null,null,null,"x",null,"","",null,"",null,"x",null,null,"x",null,null,"x",null,null,null,0,null,null,null,null,0]
[null,null,null,null,null,null,null,"x",null,"","",null,"",null,"x",null,null,"x",null,null,"x",null,null,null,0,null,null,null,null,0]
[null,null,null,null,null,null,null,"x",null,"","",null,"",null,"x",null,null,"x",null,null,"x",null,null,null,0,null,null,null,null,0]
[null,null,null,null,null,null,null,"x",null,"","",null,"",null,"x",null,null,"x",null,null,"x",null,null,null,0,null,null,null,null,0]
[null,null,null,null,null,null,null,"x",null,"","",null,"",null,"x",null,null,"x",null,null,"x",null,null,null,0,null,null,null,null,0]
[null,null,null,null,null,null,null,"x",null,"","",null,"",null,"x",null,null,"x",null,null,"x",null,null,null,0,null,null,null,null,0]
[null,null,null,null,null,null,null,"x",null,"","",null,"",null,"x",null,null,"x",null,null,"x",null,null,null,0,null,null,null,null,0]
[null,null,null,null,null,null,null,"x",null,"","",null,"",null,"x",null,null,"x",null,null,"x",null,null,null,0,null,null,null,null,0]
[null,null,null,null,null,null,null,"x",null,"","",null,"",null,"x",null,null,"x",null,null,"x",null,null,null,0,null,null,null,null,0]
[null,null,null,null,null,null,null,"x",null,"","",null,"",null,"x",null,null,"x",null,null,"x",null,null,null,0,null,null,null,null,0]
[null,null,null,null,null,null,null,"x",null,"","",null,"",null,"x",null,null,"x",null,null,"x",null,null,null,0,null,null,null,null,0]
[null,null,null,null,null,null,null,"x",null,"","",null,"",null,"x",null,null,"x",null,null,"x",null,null,null,0,null,null,null,null,0]
[null,null,null,null,null,null,null,"x",null,"","",null,"",null,"x",null,null,"x",null,null,"x",null,null,null,0,null,null,null,null,0]
[null,null,null,null,null,null,null,"x",null,"","",null,"",null,"x",null,null,"x",null,null,"x",null,null,null,0,null,null,null,null,0]
[null,null,null,null,null,null,null,"x",null,"","",null,"",null,"x",null,null,"x",null,null,"x",null,null,null,0,null,null,null,null,0]
[null,null,null,null,null,null,null,"x",null,"","",null,"",null,"x",null,null,"x",null,null,"x",null,null,null,0,null,null,null,null,0]
[null,null,null,null,null,null,null,"x",null,"","",null,"",null,"x",null,null,"x",null,null,"x",null,null,null,0,null,null,null,null,0]
[null,null,null,null,null,null,null,"x",null,"","",null,"",null,"x",null,null,"x",null,null,"x",null,null,null,0,null,null,null,null,0]
[null,null,null,null,null,null,null,"x",null,"","",null,"",null,"x",null,null,"x",null,null,"x",null,null,null,0,null,null,null,null,0]
[null,null,null,null,null,null,null,"x",null,"","",null,"",null,"x",null,null,"x",null,null,"x",null,null,null,0,null,null,null,null,0]
[null,null,null,null,null,null,null,"x",null,"","",null,"",null,"x",null,null,"x",null,null,"x",null,null,null,0,null,null,null,null,0]
[null,null,null,null,null,null,null,"x",null,"","",null,"",null,"x",null,null,"x",null,null,"x",null,null,null,0,null,null,null,null,0]
[null,null,null,null,null,null,null,"x",null,"","",null,"",null,"x",null,null,"x",null,null,"x",null,null,null,0,null,null,null,null,0]
[null,null,null,null,null,null,null,"x",null,"","",null,"",null,"x",null,null,null,null,null,null,null,null,null,0,null,null,null,null,0]
[1,null,null,null,null,null,null,8,9,null,10,12,13,14,15,16,17,18,19,20,21,22,23,24,25,26,27,28,29,30,31,32,33]

{"sheet":"Sheet3","index":3,"n_rows":0,"n_cols":0,"rows_kept":0,"cut":false,"hidden":false,"merged":[]}